﻿Department Family,Entity,Date,Expense Type,Expense Area,Supplier,Transaction Number,Amount,Item Description
BEIS,UKRI - AHRC,01/12/2022,Fees (Including College Members),Operations,Unspecified,99847850,230.00,Fees (Including College Members)
BEIS,UKRI - AHRC,01/12/2022,Fees (Including College Members),Operations,Unspecified,99847904,340.00,Fees (Including College Members)
BEIS,UKRI - AHRC,01/12/2022,Research Grant Expenditure,International Placement Scheme,"Royal Holloway, University of London",99848294,1000.00,Research Grant Expenditure
BEIS,UKRI - AHRC,01/12/2022,Fees (Including College Members),Operations,Unspecified,99848361,170.00,Fees (Including College Members)
BEIS,UKRI - AHRC,01/12/2022,Non-staff travel and subsistance,SPF_ Towards a National Collection,Unspecified,99848362,267.30,Non-staff travel and subsistance
BEIS,UKRI - AHRC,01/12/2022,T&S Overseas - Subsistence,"Heritage, Culture & Creative Arts (HCCA)",Unspecified,99848444,13.07,T&S Overseas - Subsistence
BEIS,UKRI - AHRC,01/12/2022,T&S Overseas - Subsistence,"Heritage, Culture & Creative Arts (HCCA)",Unspecified,99848444,10.40,T&S Overseas - Subsistence
BEIS,UKRI - AHRC,01/12/2022,T&S Overseas - Subsistence,"Heritage, Culture & Creative Arts (HCCA)",Unspecified,99848444,15.00,T&S Overseas - Subsistence
BEIS,UKRI - AHRC,01/12/2022,T&S UK - Public Transport,Programme Management Office,Unspecified,99848445,15.00,T&S UK - Public Transport
BEIS,UKRI - AHRC,01/12/2022,T&S UK - Subsistence,Programme Management Office,Unspecified,99848445,33.98,T&S UK - Subsistence
BEIS,UKRI - AHRC,01/12/2022,T&S UK - Subsistence,Programme Management Office,Unspecified,99848445,45.00,T&S UK - Subsistence
BEIS,UKRI - AHRC,01/12/2022,T&S UK - Subsistence,Programme Management Office,Unspecified,99848445,10.00,T&S UK - Subsistence
BEIS,UKRI - AHRC,01/12/2022,T&S UK - Public Transport,Infrastruture Roadmap,Unspecified,99848446,7.30,T&S UK - Public Transport
BEIS,UKRI - AHRC,01/12/2022,T&S UK - Subsistence,Infrastruture Roadmap,Unspecified,99848446,51.50,T&S UK - Subsistence
BEIS,UKRI - AHRC,01/12/2022,T&S UK - Subsistence,Infrastruture Roadmap,Unspecified,99848447,12.25,T&S UK - Subsistence
BEIS,UKRI - AHRC,01/12/2022,T&S Overseas - Other Charges,Infrastruture Roadmap,Unspecified,99848448,12.64,T&S Overseas - Other Charges
BEIS,UKRI - AHRC,01/12/2022,T&S Overseas - Public Transport,Infrastruture Roadmap,Unspecified,99848448,27.57,T&S Overseas - Public Transport
BEIS,UKRI - AHRC,01/12/2022,T&S Overseas - Public Transport,Infrastruture Roadmap,Unspecified,99848448,26.70,T&S Overseas - Public Transport
BEIS,UKRI - AHRC,01/12/2022,T&S Overseas - Subsistence,Infrastruture Roadmap,Unspecified,99848448,17.32,T&S Overseas - Subsistence
BEIS,UKRI - AHRC,01/12/2022,T&S Overseas - Subsistence,Infrastruture Roadmap,Unspecified,99848448,38.74,T&S Overseas - Subsistence
BEIS,UKRI - AHRC,01/12/2022,T&S Overseas - Subsistence,Infrastruture Roadmap,Unspecified,99848448,25.00,T&S Overseas - Subsistence
BEIS,UKRI - AHRC,05/12/2022,Fees (Including College Members),Operations,Unspecified,99850610,170.00,Fees (Including College Members)
BEIS,UKRI - AHRC,05/12/2022,Fees (Including College Members),Operations,Unspecified,99850611,170.00,Fees (Including College Members)
BEIS,UKRI - AHRC,05/12/2022,Fees (Including College Members),Operations,Unspecified,99850612,170.00,Fees (Including College Members)
BEIS,UKRI - AHRC,05/12/2022,Fees (Including College Members),Operations,Unspecified,99850613,170.00,Fees (Including College Members)
BEIS,UKRI - AHRC,05/12/2022,Education Fees & Study Materials,International Partnership and Engagement,Unspecified,99850934,39.62,Education Fees & Study Materials
BEIS,UKRI - AHRC,05/12/2022,T&S UK - Public Transport,HERA JRP Project,Unspecified,99850935,26.07,T&S UK - Public Transport
BEIS,UKRI - AHRC,06/12/2022,Unspecified,Skills Strategy,Melian Dialogue Research Ltd,99839445,60.00,Legal & Professional Services
BEIS,UKRI - AHRC,06/12/2022,Unspecified,Skills Strategy,Melian Dialogue Research Ltd,99839445,12960.00,Legal & Professional Services
BEIS,UKRI - AHRC,06/12/2022,Fees (Including College Members),Operations,Unspecified,99850968,170.00,Fees (Including College Members)
BEIS,UKRI - AHRC,06/12/2022,Health & Safety (inc. Medicals & Opticians),SMT,Unspecified,99851513,12.00,Health & Safety (inc. Medicals & Opticians)
BEIS,UKRI - AHRC,06/12/2022,Health & Safety (inc. Medicals & Opticians),International Partnership and Engagement,Unspecified,99851514,16.99,Health & Safety (inc. Medicals & Opticians)
BEIS,UKRI - AHRC,06/12/2022,T&S UK - Subsistence,SMT,Unspecified,99851515,19.10,T&S UK - Subsistence
BEIS,UKRI - AHRC,06/12/2022,Conferences & Seminars,Public and Stakeholder Engagement,Unspecified,99851516,102.00,Conferences & Seminars
BEIS,UKRI - AHRC,06/12/2022,T&S UK - Public Transport,AI&Design,Unspecified,99851518,12.60,T&S UK - Public Transport
BEIS,UKRI - AHRC,06/12/2022,T&S UK - Subsistence,AI&Design,Unspecified,99851518,16.59,T&S UK - Subsistence
BEIS,UKRI - AHRC,06/12/2022,T&S UK - Mileage,Public and Stakeholder Engagement,Unspecified,99851519,5.50,T&S UK - Mileage
BEIS,UKRI - AHRC,06/12/2022,T&S UK - Subsistence,Public and Stakeholder Engagement,Unspecified,99851519,15.00,T&S UK - Subsistence
BEIS,UKRI - AHRC,06/12/2022,Conferences & Seminars,Infrastruture Roadmap,Unspecified,99851520,8.01,Conferences & Seminars
BEIS,UKRI - AHRC,06/12/2022,T&S UK - Mileage,SMT,Unspecified,99851521,33.93,T&S UK - Mileage
BEIS,UKRI - AHRC,06/12/2022,UK - Professional Memberships & Subscriptions,AHRC - Creative Industries,CREATIVE INDUSTRIES FEDERATION,99852128,7200.00,UK - Professional Memberships & Subscriptions
BEIS,UKRI - AHRC,07/12/2022,Fees (Including College Members),Operations,Unspecified,99855136,501.02,Fees (Including College Members)
BEIS,UKRI - AHRC,07/12/2022,Fees (Including College Members),Operations,Unspecified,99855137,510.00,Fees (Including College Members)
BEIS,UKRI - AHRC,07/12/2022,Fees (Including College Members),Operations,Unspecified,99856280,340.00,Fees (Including College Members)
BEIS,UKRI - AHRC,07/12/2022,Fees (Including College Members),Operations,Unspecified,99856342,170.00,Fees (Including College Members)
BEIS,UKRI - AHRC,07/12/2022,Fees (Including College Members),Operations,Unspecified,99856343,170.00,Fees (Including College Members)
BEIS,UKRI - AHRC,07/12/2022,Fees (Including College Members),Operations,Unspecified,99856344,170.00,Fees (Including College Members)
BEIS,UKRI - AHRC,07/12/2022,Fees (Including College Members),Operations,Unspecified,99856345,170.00,Fees (Including College Members)
BEIS,UKRI - AHRC,07/12/2022,Fees (Including College Members),Operations,Unspecified,99856346,170.00,Fees (Including College Members)
BEIS,UKRI - AHRC,07/12/2022,Fees (Including College Members),Operations,Unspecified,99856347,170.00,Fees (Including College Members)
BEIS,UKRI - AHRC,07/12/2022,Fees (Including College Members),Operations,Unspecified,99856348,340.00,Fees (Including College Members)
BEIS,UKRI - AHRC,07/12/2022,Fees (Including College Members),Operations,Unspecified,99856349,115.00,Fees (Including College Members)
BEIS,UKRI - AHRC,08/12/2022,Research Grant Expenditure,Urban Living,UKRI - Economic & Social Research Council,99827777,-4245.28,Research Grant Expenditure
BEIS,UKRI - AHRC,08/12/2022,Unspecified,SMT,University of St Andrews,99849261,20197.10,Secondments
BEIS,UKRI - AHRC,08/12/2022,Unspecified,Infrastructure Fund - RICHeS,Alexander Mann Solutions Ltd,99854696,1732.66,Legal & Professional Services
BEIS,UKRI - AHRC,08/12/2022,Unspecified,Operations,Abbey Business Interiors Ltd,99856399,368.40,Legal & Professional Services
BEIS,UKRI - AHRC,08/12/2022,Other Programme Costs,Daphne Jackson Fellowships,UKRI - Economic & Social Research Council,99856724,7682.19,Other Programme Costs
BEIS,UKRI - AHRC,08/12/2022,T&S UK - Subsistence,Skills Strategy,Unspecified,99858276,4.99,T&S UK - Subsistence
BEIS,UKRI - AHRC,08/12/2022,T&S UK - Subsistence,Skills Strategy,Unspecified,99858276,18.16,T&S UK - Subsistence
BEIS,UKRI - AHRC,09/12/2022,Research Grant Expenditure,NPIF Research Talent (RCUK Innovation Fellowships),UKRI - Engineering & Physical Sciences Research Council,99814183,-1347.13,Research Grant Expenditure
BEIS,UKRI - AHRC,09/12/2022,Research Grant Expenditure,NPIF Research Talent (RCUK Innovation Fellowships),UKRI - Engineering & Physical Sciences Research Council,99814183,-1618.16,Research Grant Expenditure
BEIS,UKRI - AHRC,09/12/2022,Conferences & Seminars,FIC- China,UKRI - Engineering & Physical Sciences Research Council,99859422,3525.44,Conferences & Seminars
BEIS,UKRI - AHRC,12/12/2022,T&S UK - Subsistence,Executive Office,Unspecified,99860267,21.88,T&S UK - Subsistence
BEIS,UKRI - AHRC,12/12/2022,T&S UK - Other Charges,Executive Office,Unspecified,99860268,6.40,T&S UK - Other Charges
BEIS,UKRI - AHRC,12/12/2022,T&S UK - Subsistence,Executive Office,Unspecified,99860268,24.33,T&S UK - Subsistence
BEIS,UKRI - AHRC,12/12/2022,T&S UK - Public Transport,Infrastruture Roadmap,Unspecified,99860269,24.74,T&S UK - Public Transport
BEIS,UKRI - AHRC,12/12/2022,T&S UK - Public Transport,Infrastruture Roadmap,Unspecified,99860269,7.45,T&S UK - Public Transport
BEIS,UKRI - AHRC,12/12/2022,T&S UK - Subsistence,Infrastruture Roadmap,Unspecified,99860269,2.75,T&S UK - Subsistence
BEIS,UKRI - AHRC,12/12/2022,T&S UK - Subsistence,Infrastruture Roadmap,Unspecified,99860269,25.00,T&S UK - Subsistence
BEIS,UKRI - AHRC,13/12/2022,Fees (Including College Members),Operations,Unspecified,99860427,340.00,Fees (Including College Members)
BEIS,UKRI - AHRC,13/12/2022,T&S Overseas - Flights,Infrastruture Roadmap,Corporate Travel Management (North) Ltd,99862804,2.50,T&S Overseas - Flights
BEIS,UKRI - AHRC,13/12/2022,T&S Overseas - Flights,Infrastruture Roadmap,Corporate Travel Management (North) Ltd,99862804,438.81,T&S Overseas - Flights
BEIS,UKRI - AHRC,13/12/2022,T&S Overseas - Flights,International Partnership and Engagement,Corporate Travel Management (North) Ltd,99862804,1.25,T&S Overseas - Flights
BEIS,UKRI - AHRC,13/12/2022,T&S Overseas - Flights,International Partnership and Engagement,Corporate Travel Management (North) Ltd,99862804,231.66,T&S Overseas - Flights
BEIS,UKRI - AHRC,13/12/2022,T&S Overseas - Flights,International Partnership and Engagement,Corporate Travel Management (North) Ltd,99862804,1.25,T&S Overseas - Flights
BEIS,UKRI - AHRC,13/12/2022,T&S Overseas - Flights,International Partnership and Engagement,Corporate Travel Management (North) Ltd,99862804,231.66,T&S Overseas - Flights
BEIS,UKRI - AHRC,13/12/2022,T&S UK - Accommodation,AHRC - Creative Industries,Corporate Travel Management (North) Ltd,99862804,0.80,T&S UK - Accommodation
BEIS,UKRI - AHRC,13/12/2022,T&S UK - Accommodation,AHRC - Creative Industries,Corporate Travel Management (North) Ltd,99862804,118.08,T&S UK - Accommodation
BEIS,UKRI - AHRC,13/12/2022,T&S UK - Accommodation,AHRC - Creative Industries,Corporate Travel Management (North) Ltd,99862804,0.80,T&S UK - Accommodation
BEIS,UKRI - AHRC,13/12/2022,T&S UK - Accommodation,AHRC - Creative Industries,Corporate Travel Management (North) Ltd,99862804,0.32,T&S UK - Accommodation
BEIS,UKRI - AHRC,13/12/2022,T&S UK - Accommodation,AI&Design,Corporate Travel Management (North) Ltd,99862804,2.00,T&S UK - Accommodation
BEIS,UKRI - AHRC,13/12/2022,T&S UK - Accommodation,AI&Design,Corporate Travel Management (North) Ltd,99862804,78.00,T&S UK - Accommodation
BEIS,UKRI - AHRC,13/12/2022,T&S UK - Accommodation,AI&Design,Corporate Travel Management (North) Ltd,99862804,2.00,T&S UK - Accommodation
BEIS,UKRI - AHRC,13/12/2022,T&S UK - Accommodation,AI&Design,Corporate Travel Management (North) Ltd,99862804,78.00,T&S UK - Accommodation
BEIS,UKRI - AHRC,13/12/2022,T&S UK - Accommodation,AI&Design,Corporate Travel Management (North) Ltd,99862804,2.00,T&S UK - Accommodation
BEIS,UKRI - AHRC,13/12/2022,T&S UK - Accommodation,AI&Design,Corporate Travel Management (North) Ltd,99862804,78.00,T&S UK - Accommodation
BEIS,UKRI - AHRC,13/12/2022,T&S UK - Accommodation,AI&Design,Corporate Travel Management (North) Ltd,99862804,2.00,T&S UK - Accommodation
BEIS,UKRI - AHRC,13/12/2022,T&S UK - Accommodation,AI&Design,Corporate Travel Management (North) Ltd,99862804,85.50,T&S UK - Accommodation
BEIS,UKRI - AHRC,13/12/2022,T&S UK - Accommodation,AI&Design,Corporate Travel Management (North) Ltd,99862804,2.00,T&S UK - Accommodation
BEIS,UKRI - AHRC,13/12/2022,T&S UK - Accommodation,AI&Design,Corporate Travel Management (North) Ltd,99862804,85.50,T&S UK - Accommodation
BEIS,UKRI - AHRC,13/12/2022,T&S UK - Accommodation,AI&Design,Corporate Travel Management (North) Ltd,99862804,2.00,T&S UK - Accommodation
BEIS,UKRI - AHRC,13/12/2022,T&S UK - Accommodation,AI&Design,Corporate Travel Management (North) Ltd,99862804,85.50,T&S UK - Accommodation
BEIS,UKRI - AHRC,13/12/2022,T&S UK - Accommodation,AI&Design,Corporate Travel Management (North) Ltd,99862804,2.40,T&S UK - Accommodation
BEIS,UKRI - AHRC,13/12/2022,T&S UK - Accommodation,Board and Committee,Corporate Travel Management (North) Ltd,99862804,0.80,T&S UK - Accommodation
BEIS,UKRI - AHRC,13/12/2022,T&S UK - Accommodation,Board and Committee,Corporate Travel Management (North) Ltd,99862804,0.16,T&S UK - Accommodation
BEIS,UKRI - AHRC,13/12/2022,T&S UK - Accommodation,Infrastruture Roadmap,Corporate Travel Management (North) Ltd,99862804,0.80,T&S UK - Accommodation
BEIS,UKRI - AHRC,13/12/2022,T&S UK - Accommodation,Infrastruture Roadmap,Corporate Travel Management (North) Ltd,99862804,172.00,T&S UK - Accommodation
BEIS,UKRI - AHRC,13/12/2022,T&S UK - Accommodation,Infrastruture Roadmap,Corporate Travel Management (North) Ltd,99862804,0.80,T&S UK - Accommodation
BEIS,UKRI - AHRC,13/12/2022,T&S UK - Accommodation,Infrastruture Roadmap,Corporate Travel Management (North) Ltd,99862804,79.00,T&S UK - Accommodation
BEIS,UKRI - AHRC,13/12/2022,T&S UK - Accommodation,Infrastruture Roadmap,Corporate Travel Management (North) Ltd,99862804,0.80,T&S UK - Accommodation
BEIS,UKRI - AHRC,13/12/2022,T&S UK - Accommodation,Infrastruture Roadmap,Corporate Travel Management (North) Ltd,99862804,105.00,T&S UK - Accommodation
BEIS,UKRI - AHRC,13/12/2022,T&S UK - Accommodation,Infrastruture Roadmap,Corporate Travel Management (North) Ltd,99862804,0.80,T&S UK - Accommodation
BEIS,UKRI - AHRC,13/12/2022,T&S UK - Accommodation,Infrastruture Roadmap,Corporate Travel Management (North) Ltd,99862804,95.00,T&S UK - Accommodation
BEIS,UKRI - AHRC,13/12/2022,T&S UK - Accommodation,Infrastruture Roadmap,Corporate Travel Management (North) Ltd,99862804,0.80,T&S UK - Accommodation
BEIS,UKRI - AHRC,13/12/2022,T&S UK - Accommodation,Infrastruture Roadmap,Corporate Travel Management (North) Ltd,99862804,109.00,T&S UK - Accommodation
BEIS,UKRI - AHRC,13/12/2022,T&S UK - Accommodation,Infrastruture Roadmap,Corporate Travel Management (North) Ltd,99862804,0.80,T&S UK - Accommodation
BEIS,UKRI - AHRC,13/12/2022,T&S UK - Accommodation,Infrastruture Roadmap,Corporate Travel Management (North) Ltd,99862804,152.00,T&S UK - Accommodation
BEIS,UKRI - AHRC,13/12/2022,T&S UK - Accommodation,Infrastruture Roadmap,Corporate Travel Management (North) Ltd,99862804,0.80,T&S UK - Accommodation
BEIS,UKRI - AHRC,13/12/2022,T&S UK - Accommodation,Infrastruture Roadmap,Corporate Travel Management (North) Ltd,99862804,105.00,T&S UK - Accommodation
BEIS,UKRI - AHRC,13/12/2022,T&S UK - Accommodation,Infrastruture Roadmap,Corporate Travel Management (North) Ltd,99862804,0.80,T&S UK - Accommodation
BEIS,UKRI - AHRC,13/12/2022,T&S UK - Accommodation,Infrastruture Roadmap,Corporate Travel Management (North) Ltd,99862804,148.20,T&S UK - Accommodation
BEIS,UKRI - AHRC,13/12/2022,T&S UK - Accommodation,Infrastruture Roadmap,Corporate Travel Management (North) Ltd,99862804,0.80,T&S UK - Accommodation
BEIS,UKRI - AHRC,13/12/2022,T&S UK - Accommodation,Infrastruture Roadmap,Corporate Travel Management (North) Ltd,99862804,135.29,T&S UK - Accommodation
BEIS,UKRI - AHRC,13/12/2022,T&S UK - Accommodation,Infrastruture Roadmap,Corporate Travel Management (North) Ltd,99862804,1.44,T&S UK - Accommodation
BEIS,UKRI - AHRC,13/12/2022,T&S UK - Accommodation,Strategy and Evidence,Corporate Travel Management (North) Ltd,99862804,0.80,T&S UK - Accommodation
BEIS,UKRI - AHRC,13/12/2022,T&S UK - Accommodation,Strategy and Evidence,Corporate Travel Management (North) Ltd,99862804,106.00,T&S UK - Accommodation
BEIS,UKRI - AHRC,13/12/2022,T&S UK - Accommodation,Strategy and Evidence,Corporate Travel Management (North) Ltd,99862804,0.80,T&S UK - Accommodation
BEIS,UKRI - AHRC,13/12/2022,T&S UK - Accommodation,Strategy and Evidence,Corporate Travel Management (North) Ltd,99862804,0.32,T&S UK - Accommodation
BEIS,UKRI - AHRC,13/12/2022,T&S UK - Public Transport,AHRC - Creative Industries,Corporate Travel Management (North) Ltd,99862804,0.25,T&S UK - Public Transport
BEIS,UKRI - AHRC,13/12/2022,T&S UK - Public Transport,AHRC - Creative Industries,Corporate Travel Management (North) Ltd,99862804,13.10,T&S UK - Public Transport
BEIS,UKRI - AHRC,13/12/2022,T&S UK - Public Transport,AHRC - Creative Industries,Corporate Travel Management (North) Ltd,99862804,0.25,T&S UK - Public Transport
BEIS,UKRI - AHRC,13/12/2022,T&S UK - Public Transport,AHRC - Creative Industries,Corporate Travel Management (North) Ltd,99862804,87.00,T&S UK - Public Transport
BEIS,UKRI - AHRC,13/12/2022,T&S UK - Public Transport,AHRC - Creative Industries,Corporate Travel Management (North) Ltd,99862804,0.25,T&S UK - Public Transport
BEIS,UKRI - AHRC,13/12/2022,T&S UK - Public Transport,AHRC - Creative Industries,Corporate Travel Management (North) Ltd,99862804,20.00,T&S UK - Public Transport
BEIS,UKRI - AHRC,13/12/2022,T&S UK - Public Transport,AHRC - Creative Industries,Corporate Travel Management (North) Ltd,99862804,0.25,T&S UK - Public Transport
BEIS,UKRI - AHRC,13/12/2022,T&S UK - Public Transport,AHRC - Creative Industries,Corporate Travel Management (North) Ltd,99862804,26.20,T&S UK - Public Transport
BEIS,UKRI - AHRC,13/12/2022,T&S UK - Public Transport,AHRC - Creative Industries,Corporate Travel Management (North) Ltd,99862804,0.25,T&S UK - Public Transport
BEIS,UKRI - AHRC,13/12/2022,T&S UK - Public Transport,AHRC - Creative Industries,Corporate Travel Management (North) Ltd,99862804,27.50,T&S UK - Public Transport
BEIS,UKRI - AHRC,13/12/2022,T&S UK - Public Transport,AI&Design,Corporate Travel Management (North) Ltd,99862804,0.13,T&S UK - Public Transport
BEIS,UKRI - AHRC,13/12/2022,T&S UK - Public Transport,AI&Design,Corporate Travel Management (North) Ltd,99862804,57.40,T&S UK - Public Transport
BEIS,UKRI - AHRC,13/12/2022,T&S UK - Public Transport,AI&Design,Corporate Travel Management (North) Ltd,99862804,0.12,T&S UK - Public Transport
BEIS,UKRI - AHRC,13/12/2022,T&S UK - Public Transport,AI&Design,Corporate Travel Management (North) Ltd,99862804,57.40,T&S UK - Public Transport
BEIS,UKRI - AHRC,13/12/2022,T&S UK - Public Transport,AI&Design,Corporate Travel Management (North) Ltd,99862804,0.25,T&S UK - Public Transport
BEIS,UKRI - AHRC,13/12/2022,T&S UK - Public Transport,AI&Design,Corporate Travel Management (North) Ltd,99862804,68.40,T&S UK - Public Transport
BEIS,UKRI - AHRC,13/12/2022,T&S UK - Public Transport,Executive Office,Corporate Travel Management (North) Ltd,99862804,0.38,T&S UK - Public Transport
BEIS,UKRI - AHRC,13/12/2022,T&S UK - Public Transport,Executive Office,Corporate Travel Management (North) Ltd,99862804,40.60,T&S UK - Public Transport
BEIS,UKRI - AHRC,13/12/2022,T&S UK - Public Transport,Executive Office,Corporate Travel Management (North) Ltd,99862804,113.20,T&S UK - Public Transport
BEIS,UKRI - AHRC,13/12/2022,T&S UK - Public Transport,Executive Office,Corporate Travel Management (North) Ltd,99862804,0.12,T&S UK - Public Transport
BEIS,UKRI - AHRC,13/12/2022,T&S UK - Public Transport,Executive Office,Corporate Travel Management (North) Ltd,99862804,113.20,T&S UK - Public Transport
BEIS,UKRI - AHRC,13/12/2022,T&S UK - Public Transport,"Health, Environmental & Urban Humanities (HEUH)",Corporate Travel Management (North) Ltd,99862804,0.50,T&S UK - Public Transport
BEIS,UKRI - AHRC,13/12/2022,T&S UK - Public Transport,"Health, Environmental & Urban Humanities (HEUH)",Corporate Travel Management (North) Ltd,99862804,28.00,T&S UK - Public Transport
BEIS,UKRI - AHRC,13/12/2022,T&S UK - Public Transport,"Health, Environmental & Urban Humanities (HEUH)",Corporate Travel Management (North) Ltd,99862804,54.00,T&S UK - Public Transport
BEIS,UKRI - AHRC,13/12/2022,T&S UK - Public Transport,"Heritage, Culture & Creative Arts (HCCA)",Corporate Travel Management (North) Ltd,99862804,0.25,T&S UK - Public Transport
BEIS,UKRI - AHRC,13/12/2022,T&S UK - Public Transport,"Heritage, Culture & Creative Arts (HCCA)",Corporate Travel Management (North) Ltd,99862804,204.10,T&S UK - Public Transport
BEIS,UKRI - AHRC,13/12/2022,T&S UK - Public Transport,Infrastruture Roadmap,Corporate Travel Management (North) Ltd,99862804,0.25,T&S UK - Public Transport
BEIS,UKRI - AHRC,13/12/2022,T&S UK - Public Transport,Infrastruture Roadmap,Corporate Travel Management (North) Ltd,99862804,54.60,T&S UK - Public Transport
BEIS,UKRI - AHRC,13/12/2022,T&S UK - Public Transport,Infrastruture Roadmap,Corporate Travel Management (North) Ltd,99862804,0.25,T&S UK - Public Transport
BEIS,UKRI - AHRC,13/12/2022,T&S UK - Public Transport,Infrastruture Roadmap,Corporate Travel Management (North) Ltd,99862804,54.40,T&S UK - Public Transport
BEIS,UKRI - AHRC,13/12/2022,T&S UK - Public Transport,Infrastruture Roadmap,Corporate Travel Management (North) Ltd,99862804,0.25,T&S UK - Public Transport
BEIS,UKRI - AHRC,13/12/2022,T&S UK - Public Transport,Infrastruture Roadmap,Corporate Travel Management (North) Ltd,99862804,67.40,T&S UK - Public Transport
BEIS,UKRI - AHRC,13/12/2022,T&S UK - Public Transport,Infrastruture Roadmap,Corporate Travel Management (North) Ltd,99862804,0.25,T&S UK - Public Transport
BEIS,UKRI - AHRC,13/12/2022,T&S UK - Public Transport,Infrastruture Roadmap,Corporate Travel Management (North) Ltd,99862804,7.50,T&S UK - Public Transport
BEIS,UKRI - AHRC,13/12/2022,T&S UK - Public Transport,Infrastruture Roadmap,Corporate Travel Management (North) Ltd,99862804,0.25,T&S UK - Public Transport
BEIS,UKRI - AHRC,13/12/2022,T&S UK - Public Transport,Infrastruture Roadmap,Corporate Travel Management (North) Ltd,99862804,180.80,T&S UK - Public Transport
BEIS,UKRI - AHRC,13/12/2022,T&S UK - Public Transport,Infrastruture Roadmap,Corporate Travel Management (North) Ltd,99862804,0.25,T&S UK - Public Transport
BEIS,UKRI - AHRC,13/12/2022,T&S UK - Public Transport,Infrastruture Roadmap,Corporate Travel Management (North) Ltd,99862804,55.50,T&S UK - Public Transport
BEIS,UKRI - AHRC,13/12/2022,T&S UK - Public Transport,Infrastruture Roadmap,Corporate Travel Management (North) Ltd,99862804,0.25,T&S UK - Public Transport
BEIS,UKRI - AHRC,13/12/2022,T&S UK - Public Transport,Infrastruture Roadmap,Corporate Travel Management (North) Ltd,99862804,82.60,T&S UK - Public Transport
BEIS,UKRI - AHRC,13/12/2022,T&S UK - Public Transport,Infrastruture Roadmap,Corporate Travel Management (North) Ltd,99862804,10.00,T&S UK - Public Transport
BEIS,UKRI - AHRC,13/12/2022,T&S UK - Public Transport,Infrastruture Roadmap,Corporate Travel Management (North) Ltd,99862804,-161.80,T&S UK - Public Transport
BEIS,UKRI - AHRC,13/12/2022,T&S UK - Public Transport,Infrastruture Roadmap,Corporate Travel Management (North) Ltd,99862804,0.25,T&S UK - Public Transport
BEIS,UKRI - AHRC,13/12/2022,T&S UK - Public Transport,Infrastruture Roadmap,Corporate Travel Management (North) Ltd,99862804,251.00,T&S UK - Public Transport
BEIS,UKRI - AHRC,13/12/2022,T&S UK - Public Transport,Infrastruture Roadmap,Corporate Travel Management (North) Ltd,99862804,0.25,T&S UK - Public Transport
BEIS,UKRI - AHRC,13/12/2022,T&S UK - Public Transport,Infrastruture Roadmap,Corporate Travel Management (North) Ltd,99862804,53.50,T&S UK - Public Transport
BEIS,UKRI - AHRC,13/12/2022,T&S UK - Public Transport,Infrastruture Roadmap,Corporate Travel Management (North) Ltd,99862804,0.25,T&S UK - Public Transport
BEIS,UKRI - AHRC,13/12/2022,T&S UK - Public Transport,Infrastruture Roadmap,Corporate Travel Management (North) Ltd,99862804,56.00,T&S UK - Public Transport
BEIS,UKRI - AHRC,13/12/2022,T&S UK - Public Transport,Infrastruture Roadmap,Corporate Travel Management (North) Ltd,99862804,0.25,T&S UK - Public Transport
BEIS,UKRI - AHRC,13/12/2022,T&S UK - Public Transport,Infrastruture Roadmap,Corporate Travel Management (North) Ltd,99862804,157.20,T&S UK - Public Transport
BEIS,UKRI - AHRC,13/12/2022,T&S UK - Public Transport,Infrastruture Roadmap,Corporate Travel Management (North) Ltd,99862804,0.25,T&S UK - Public Transport
BEIS,UKRI - AHRC,13/12/2022,T&S UK - Public Transport,Infrastruture Roadmap,Corporate Travel Management (North) Ltd,99862804,89.85,T&S UK - Public Transport
BEIS,UKRI - AHRC,13/12/2022,T&S UK - Public Transport,Infrastruture Roadmap,Corporate Travel Management (North) Ltd,99862804,0.25,T&S UK - Public Transport
BEIS,UKRI - AHRC,13/12/2022,T&S UK - Public Transport,Infrastruture Roadmap,Corporate Travel Management (North) Ltd,99862804,221.20,T&S UK - Public Transport
BEIS,UKRI - AHRC,13/12/2022,T&S UK - Public Transport,Infrastruture Roadmap,Corporate Travel Management (North) Ltd,99862804,10.00,T&S UK - Public Transport
BEIS,UKRI - AHRC,13/12/2022,T&S UK - Public Transport,Infrastruture Roadmap,Corporate Travel Management (North) Ltd,99862804,-101.00,T&S UK - Public Transport
BEIS,UKRI - AHRC,13/12/2022,T&S UK - Public Transport,Infrastruture Roadmap,Corporate Travel Management (North) Ltd,99862804,-45.20,T&S UK - Public Transport
BEIS,UKRI - AHRC,13/12/2022,T&S UK - Public Transport,Infrastruture Roadmap,Corporate Travel Management (North) Ltd,99862804,5.00,T&S UK - Public Transport
BEIS,UKRI - AHRC,13/12/2022,T&S UK - Public Transport,Infrastruture Roadmap,Corporate Travel Management (North) Ltd,99862804,-208.30,T&S UK - Public Transport
BEIS,UKRI - AHRC,13/12/2022,T&S UK - Public Transport,Infrastruture Roadmap,Corporate Travel Management (North) Ltd,99862804,0.25,T&S UK - Public Transport
BEIS,UKRI - AHRC,13/12/2022,T&S UK - Public Transport,Infrastruture Roadmap,Corporate Travel Management (North) Ltd,99862804,79.00,T&S UK - Public Transport
BEIS,UKRI - AHRC,13/12/2022,T&S UK - Public Transport,Infrastruture Roadmap,Corporate Travel Management (North) Ltd,99862804,5.00,T&S UK - Public Transport
BEIS,UKRI - AHRC,13/12/2022,T&S UK - Public Transport,Infrastruture Roadmap,Corporate Travel Management (North) Ltd,99862804,-175.00,T&S UK - Public Transport
BEIS,UKRI - AHRC,13/12/2022,T&S UK - Public Transport,International Development and Area Studies,Corporate Travel Management (North) Ltd,99862804,0.25,T&S UK - Public Transport
BEIS,UKRI - AHRC,13/12/2022,T&S UK - Public Transport,International Development and Area Studies,Corporate Travel Management (North) Ltd,99862804,59.30,T&S UK - Public Transport
BEIS,UKRI - AHRC,13/12/2022,T&S UK - Public Transport,International Development and Area Studies,Corporate Travel Management (North) Ltd,99862804,0.25,T&S UK - Public Transport
BEIS,UKRI - AHRC,13/12/2022,T&S UK - Public Transport,International Development and Area Studies,Corporate Travel Management (North) Ltd,99862804,76.60,T&S UK - Public Transport
BEIS,UKRI - AHRC,13/12/2022,T&S UK - Public Transport,International Partnership and Engagement,Corporate Travel Management (North) Ltd,99862804,0.25,T&S UK - Public Transport
BEIS,UKRI - AHRC,13/12/2022,T&S UK - Public Transport,International Partnership and Engagement,Corporate Travel Management (North) Ltd,99862804,81.60,T&S UK - Public Transport
BEIS,UKRI - AHRC,13/12/2022,T&S UK - Public Transport,International Partnership and Engagement,Corporate Travel Management (North) Ltd,99862804,0.25,T&S UK - Public Transport
BEIS,UKRI - AHRC,13/12/2022,T&S UK - Public Transport,International Partnership and Engagement,Corporate Travel Management (North) Ltd,99862804,50.00,T&S UK - Public Transport
BEIS,UKRI - AHRC,13/12/2022,T&S UK - Public Transport,International Partnership and Engagement,Corporate Travel Management (North) Ltd,99862804,0.25,T&S UK - Public Transport
BEIS,UKRI - AHRC,13/12/2022,T&S UK - Public Transport,International Partnership and Engagement,Corporate Travel Management (North) Ltd,99862804,14.40,T&S UK - Public Transport
BEIS,UKRI - AHRC,13/12/2022,T&S UK - Public Transport,Public and Stakeholder Engagement,Corporate Travel Management (North) Ltd,99862804,0.25,T&S UK - Public Transport
BEIS,UKRI - AHRC,13/12/2022,T&S UK - Public Transport,Public and Stakeholder Engagement,Corporate Travel Management (North) Ltd,99862804,6.90,T&S UK - Public Transport
BEIS,UKRI - AHRC,13/12/2022,T&S UK - Public Transport,Public and Stakeholder Engagement,Corporate Travel Management (North) Ltd,99862804,0.50,T&S UK - Public Transport
BEIS,UKRI - AHRC,13/12/2022,T&S UK - Public Transport,Public and Stakeholder Engagement,Corporate Travel Management (North) Ltd,99862804,69.20,T&S UK - Public Transport
BEIS,UKRI - AHRC,13/12/2022,T&S UK - Public Transport,Public and Stakeholder Engagement,Corporate Travel Management (North) Ltd,99862804,14.40,T&S UK - Public Transport
BEIS,UKRI - AHRC,13/12/2022,T&S UK - Public Transport,SMT,Corporate Travel Management (North) Ltd,99862804,0.25,T&S UK - Public Transport
BEIS,UKRI - AHRC,13/12/2022,T&S UK - Public Transport,SMT,Corporate Travel Management (North) Ltd,99862804,3.90,T&S UK - Public Transport
BEIS,UKRI - AHRC,13/12/2022,T&S UK - Public Transport,SMT,Corporate Travel Management (North) Ltd,99862804,0.25,T&S UK - Public Transport
BEIS,UKRI - AHRC,13/12/2022,T&S UK - Public Transport,SMT,Corporate Travel Management (North) Ltd,99862804,16.20,T&S UK - Public Transport
BEIS,UKRI - AHRC,13/12/2022,T&S UK - Public Transport,SMT,Corporate Travel Management (North) Ltd,99862804,0.25,T&S UK - Public Transport
BEIS,UKRI - AHRC,13/12/2022,T&S UK - Public Transport,SMT,Corporate Travel Management (North) Ltd,99862804,57.20,T&S UK - Public Transport
BEIS,UKRI - AHRC,13/12/2022,T&S UK - Public Transport,SMT,Corporate Travel Management (North) Ltd,99862804,0.50,T&S UK - Public Transport
BEIS,UKRI - AHRC,13/12/2022,T&S UK - Public Transport,SMT,Corporate Travel Management (North) Ltd,99862804,75.60,T&S UK - Public Transport
BEIS,UKRI - AHRC,13/12/2022,T&S UK - Public Transport,SMT,Corporate Travel Management (North) Ltd,99862804,13.00,T&S UK - Public Transport
BEIS,UKRI - AHRC,13/12/2022,T&S UK - Public Transport,SMT,Corporate Travel Management (North) Ltd,99862804,0.25,T&S UK - Public Transport
BEIS,UKRI - AHRC,13/12/2022,T&S UK - Public Transport,SMT,Corporate Travel Management (North) Ltd,99862804,57.20,T&S UK - Public Transport
BEIS,UKRI - AHRC,13/12/2022,T&S UK - Public Transport,SMT,Corporate Travel Management (North) Ltd,99862804,5.00,T&S UK - Public Transport
BEIS,UKRI - AHRC,13/12/2022,T&S UK - Public Transport,SMT,Corporate Travel Management (North) Ltd,99862804,-52.20,T&S UK - Public Transport
BEIS,UKRI - AHRC,13/12/2022,T&S UK - Public Transport,SMT,Corporate Travel Management (North) Ltd,99862804,10.00,T&S UK - Public Transport
BEIS,UKRI - AHRC,13/12/2022,T&S UK - Public Transport,SMT,Corporate Travel Management (North) Ltd,99862804,-45.00,T&S UK - Public Transport
BEIS,UKRI - AHRC,13/12/2022,T&S UK - Public Transport,SMT,Corporate Travel Management (North) Ltd,99862804,5.00,T&S UK - Public Transport
BEIS,UKRI - AHRC,13/12/2022,T&S UK - Public Transport,SMT,Corporate Travel Management (North) Ltd,99862804,-15.30,T&S UK - Public Transport
BEIS,UKRI - AHRC,13/12/2022,T&S UK - Public Transport,SMT,Corporate Travel Management (North) Ltd,99862804,5.00,T&S UK - Public Transport
BEIS,UKRI - AHRC,13/12/2022,T&S UK - Public Transport,SMT,Corporate Travel Management (North) Ltd,99862804,-168.60,T&S UK - Public Transport
BEIS,UKRI - AHRC,13/12/2022,T&S UK - Public Transport,SMT,Corporate Travel Management (North) Ltd,99862804,0.25,T&S UK - Public Transport
BEIS,UKRI - AHRC,13/12/2022,T&S UK - Public Transport,SMT,Corporate Travel Management (North) Ltd,99862804,50.90,T&S UK - Public Transport
BEIS,UKRI - AHRC,13/12/2022,T&S UK - Public Transport,SMT,Corporate Travel Management (North) Ltd,99862804,0.25,T&S UK - Public Transport
BEIS,UKRI - AHRC,13/12/2022,T&S UK - Public Transport,SMT,Corporate Travel Management (North) Ltd,99862804,27.40,T&S UK - Public Transport
BEIS,UKRI - AHRC,13/12/2022,T&S UK - Public Transport,SMT,Corporate Travel Management (North) Ltd,99862804,0.25,T&S UK - Public Transport
BEIS,UKRI - AHRC,13/12/2022,T&S UK - Public Transport,SMT,Corporate Travel Management (North) Ltd,99862804,244.80,T&S UK - Public Transport
BEIS,UKRI - AHRC,13/12/2022,T&S UK - Public Transport,SMT,Corporate Travel Management (North) Ltd,99862804,0.25,T&S UK - Public Transport
BEIS,UKRI - AHRC,13/12/2022,T&S UK - Public Transport,SMT,Corporate Travel Management (North) Ltd,99862804,57.20,T&S UK - Public Transport
BEIS,UKRI - AHRC,13/12/2022,T&S UK - Public Transport,SMT,Corporate Travel Management (North) Ltd,99862804,0.25,T&S UK - Public Transport
BEIS,UKRI - AHRC,13/12/2022,T&S UK - Public Transport,SMT,Corporate Travel Management (North) Ltd,99862804,248.30,T&S UK - Public Transport
BEIS,UKRI - AHRC,13/12/2022,T&S UK - Public Transport,SMT,Corporate Travel Management (North) Ltd,99862804,0.25,T&S UK - Public Transport
BEIS,UKRI - AHRC,13/12/2022,T&S UK - Public Transport,SMT,Corporate Travel Management (North) Ltd,99862804,173.60,T&S UK - Public Transport
BEIS,UKRI - AHRC,13/12/2022,T&S UK - Public Transport,SMT,Corporate Travel Management (North) Ltd,99862804,0.25,T&S UK - Public Transport
BEIS,UKRI - AHRC,13/12/2022,T&S UK - Public Transport,SMT,Corporate Travel Management (North) Ltd,99862804,90.30,T&S UK - Public Transport
BEIS,UKRI - AHRC,13/12/2022,T&S UK - Public Transport,Skills Strategy,Corporate Travel Management (North) Ltd,99862804,0.25,T&S UK - Public Transport
BEIS,UKRI - AHRC,13/12/2022,T&S UK - Public Transport,Skills Strategy,Corporate Travel Management (North) Ltd,99862804,87.10,T&S UK - Public Transport
BEIS,UKRI - AHRC,13/12/2022,T&S UK - Public Transport,Skills Strategy,Corporate Travel Management (North) Ltd,99862804,0.25,T&S UK - Public Transport
BEIS,UKRI - AHRC,13/12/2022,T&S UK - Public Transport,Skills Strategy,Corporate Travel Management (North) Ltd,99862804,151.20,T&S UK - Public Transport
BEIS,UKRI - AHRC,13/12/2022,T&S UK - Public Transport,Skills Strategy,Corporate Travel Management (North) Ltd,99862804,0.25,T&S UK - Public Transport
BEIS,UKRI - AHRC,13/12/2022,T&S UK - Public Transport,Skills Strategy,Corporate Travel Management (North) Ltd,99862804,13.40,T&S UK - Public Transport
BEIS,UKRI - AHRC,13/12/2022,T&S UK - Public Transport,Skills Strategy,Corporate Travel Management (North) Ltd,99862804,0.25,T&S UK - Public Transport
BEIS,UKRI - AHRC,13/12/2022,T&S UK - Public Transport,Skills Strategy,Corporate Travel Management (North) Ltd,99862804,47.30,T&S UK - Public Transport
BEIS,UKRI - AHRC,13/12/2022,T&S UK - Public Transport,Skills Strategy,Corporate Travel Management (North) Ltd,99862804,0.25,T&S UK - Public Transport
BEIS,UKRI - AHRC,13/12/2022,T&S UK - Public Transport,Skills Strategy,Corporate Travel Management (North) Ltd,99862804,106.80,T&S UK - Public Transport
BEIS,UKRI - AHRC,13/12/2022,T&S UK - Public Transport,Skills Strategy,Corporate Travel Management (North) Ltd,99862804,0.25,T&S UK - Public Transport
BEIS,UKRI - AHRC,13/12/2022,T&S UK - Public Transport,Skills Strategy,Corporate Travel Management (North) Ltd,99862804,136.00,T&S UK - Public Transport
BEIS,UKRI - AHRC,13/12/2022,T&S UK - Public Transport,Strategy and Evidence,Corporate Travel Management (North) Ltd,99862804,0.25,T&S UK - Public Transport
BEIS,UKRI - AHRC,13/12/2022,T&S UK - Public Transport,Strategy and Evidence,Corporate Travel Management (North) Ltd,99862804,151.20,T&S UK - Public Transport
BEIS,UKRI - AHRC,13/12/2022,T&S UK - Public Transport,Strategy and Evidence,Corporate Travel Management (North) Ltd,99862804,0.25,T&S UK - Public Transport
BEIS,UKRI - AHRC,13/12/2022,T&S UK - Public Transport,Strategy and Evidence,Corporate Travel Management (North) Ltd,99862804,46.65,T&S UK - Public Transport
BEIS,UKRI - AHRC,13/12/2022,T&S UK - Public Transport,Strategy and Evidence,Corporate Travel Management (North) Ltd,99862804,0.80,T&S UK - Public Transport
BEIS,UKRI - AHRC,13/12/2022,T&S UK - Public Transport,Strategy and Evidence,Corporate Travel Management (North) Ltd,99862804,0.25,T&S UK - Public Transport
BEIS,UKRI - AHRC,13/12/2022,T&S UK - Public Transport,Strategy and Evidence,Corporate Travel Management (North) Ltd,99862804,220.00,T&S UK - Public Transport
BEIS,UKRI - AHRC,13/12/2022,T&S UK - Public Transport,Strategy and Evidence,Corporate Travel Management (North) Ltd,99862804,0.16,T&S UK - Public Transport
BEIS,UKRI - AHRC,13/12/2022,Fees (Including College Members),Operations,Unspecified,99863608,170.00,Fees (Including College Members)
BEIS,UKRI - AHRC,13/12/2022,Fees (Including College Members),Operations,Unspecified,99863631,340.00,Fees (Including College Members)
BEIS,UKRI - AHRC,13/12/2022,T&S UK - Mileage,Executive Office,Unspecified,99864013,53.10,T&S UK - Mileage
BEIS,UKRI - AHRC,13/12/2022,Other Programme Costs,International Placement Scheme,University of Hull,99864025,750.00,Other Programme Costs
BEIS,UKRI - AHRC,14/12/2022,Fees (Including College Members),Operations,Unspecified,99856584,690.00,Fees (Including College Members)
BEIS,UKRI - AHRC,14/12/2022,Unspecified,Balance Sheet,HM Revenue & Customs,99860200,69318.37,NI Payable Salaries
BEIS,UKRI - AHRC,14/12/2022,Unspecified,Balance Sheet,HM Revenue & Customs,99860201,55586.02,PAYE Payable Salaries
BEIS,UKRI - AHRC,14/12/2022,Unspecified,Balance Sheet,HM Revenue & Customs,99860202,6958.00,Student Loans
BEIS,UKRI - AHRC,14/12/2022,Unspecified,Corporate Services,HM Revenue & Customs,99860203,1845.00,Apprenticeship Levy
BEIS,UKRI - AHRC,15/12/2022,Staff Training,SMT,Hemsley Fraser Training Group Ltd,99830386,-540.00,Staff Training
BEIS,UKRI - AHRC,15/12/2022,Voluntary Deductions,Balance Sheet,Swindon Office Sports and Social Club,99860204,34.00,Voluntary Deductions
BEIS,UKRI - AHRC,15/12/2022,Union Deductions,Balance Sheet,PCS Union,99860205,58.67,Union Deductions
BEIS,UKRI - AHRC,15/12/2022,Unspecified,Balance Sheet,Unspecified,99860206,7200.39,Ees Pension Deductions - JSS
BEIS,UKRI - AHRC,15/12/2022,Unspecified,Balance Sheet,Unspecified,99860207,36027.09,Ers Pension Deductions - JSS
BEIS,UKRI - AHRC,15/12/2022,Unspecified,Balance Sheet,Scottish Widows,99860208,179.05,Partnership Pension Deductions
BEIS,UKRI - AHRC,15/12/2022,Unspecified,Balance Sheet,Cabinet Office RM Shared Services,99860209,11938.23,Ees Pension Deductions - MyCSP
BEIS,UKRI - AHRC,15/12/2022,Unspecified,Balance Sheet,Cabinet Office RM Shared Services,99860210,53389.51,Ers Pension Deductions - MyCSP
BEIS,UKRI - AHRC,15/12/2022,Unspecified,Balance Sheet,Unspecified,99860211,388.81,Ees Pension Deductions - MRC
BEIS,UKRI - AHRC,15/12/2022,Unspecified,Balance Sheet,Unspecified,99860212,957.06,Ers Pension Deductions - MRC
BEIS,UKRI - AHRC,15/12/2022,Nursery Deductions,Balance Sheet,UKRI - Engineering & Physical Sciences Research Council,99860213,1256.00,Nursery Deductions
BEIS,UKRI - AHRC,15/12/2022,Payroll Clearing,Balance Sheet,Civil Service Benevolent Fund,99860214,5.00,Payroll Clearing
BEIS,UKRI - AHRC,15/12/2022,Research Grant Expenditure,Commissioned Research,UKRI - Economic & Social Research Council,99865443,12702.31,Research Grant Expenditure
BEIS,UKRI - AHRC,15/12/2022,Research Grant Expenditure,Commissioned Research,UKRI - Economic & Social Research Council,99865443,3883.24,Research Grant Expenditure
BEIS,UKRI - AHRC,15/12/2022,Other Programme Costs,International Placement Scheme,University of Stirling,99865503,750.00,Other Programme Costs
BEIS,UKRI - AHRC,15/12/2022,Staff Training,SMT,Hemsley Fraser Training Group Ltd,99866092,540.00,Staff Training
BEIS,UKRI - AHRC,15/12/2022,Staff Training,SMT,Hemsley Fraser Training Group Ltd,99866092,540.00,Staff Training
BEIS,UKRI - AHRC,15/12/2022,Fees (Including College Members),Operations,Unspecified,99866236,340.00,Fees (Including College Members)
BEIS,UKRI - AHRC,15/12/2022,Fees (Including College Members),Operations,Unspecified,99866237,170.00,Fees (Including College Members)
BEIS,UKRI - AHRC,15/12/2022,Fees (Including College Members),Operations,Unspecified,99866238,170.00,Fees (Including College Members)
BEIS,UKRI - AHRC,15/12/2022,Fees (Including College Members),Operations,Unspecified,99866239,340.00,Fees (Including College Members)
BEIS,UKRI - AHRC,15/12/2022,Other Programme Costs,International Placement Scheme,University of Cambridge,99866252,4000.00,Other Programme Costs
BEIS,UKRI - AHRC,15/12/2022,T&S UK - Subsistence,Executive Office,Unspecified,99866414,19.95,T&S UK - Subsistence
BEIS,UKRI - AHRC,16/12/2022,Research Grant Expenditure,Digital Transformations,The British Library,99857867,55942.02,Research Grant Expenditure
BEIS,UKRI - AHRC,16/12/2022,Research Grant Expenditure,Artificial Intelligence,University of Edinburgh,99857868,570089.00,Research Grant Expenditure
BEIS,UKRI - AHRC,16/12/2022,Research Grant Expenditure,HERA Joint Research Programme,Museum of London Archaeology,99857869,44712.55,Research Grant Expenditure
BEIS,UKRI - AHRC,16/12/2022,Research Grant Expenditure,ECR Fellowships in GLAM,Victoria and Albert Museum,99857871,18396.60,Research Grant Expenditure
BEIS,UKRI - AHRC,16/12/2022,Research Grant Expenditure,AHRC - DCMS International Heritage Partnership,University of Edinburgh,99857872,21625.61,Research Grant Expenditure
BEIS,UKRI - AHRC,16/12/2022,Research Grant Expenditure,HERA Joint Research Programme,University of Durham,99857873,27559.03,Research Grant Expenditure
BEIS,UKRI - AHRC,16/12/2022,Research Grant Expenditure,HERA Joint Research Programme,University of Plymouth,99857874,18708.37,Research Grant Expenditure
BEIS,UKRI - AHRC,16/12/2022,Research Grant Expenditure,Mobilising Cultural and Natural Assets,University of Southampton GRANT,99857875,76721.36,Research Grant Expenditure
BEIS,UKRI - AHRC,16/12/2022,Research Grant Expenditure,HERA Joint Research Programme,London School of Economics and Political Science,99857876,29170.13,Research Grant Expenditure
BEIS,UKRI - AHRC,16/12/2022,Research Grant Expenditure,Mobilising Cultural and Natural Assets,University of Huddersfield,99857877,71311.25,Research Grant Expenditure
BEIS,UKRI - AHRC,16/12/2022,Research Grant Expenditure,Mobilising Cultural and Natural Assets,"City, University of London",99857878,72140.89,Research Grant Expenditure
BEIS,UKRI - AHRC,16/12/2022,Research Grant Expenditure,Mobilising Cultural and Natural Assets,University of Essex,99857879,72807.02,Research Grant Expenditure
BEIS,UKRI - AHRC,16/12/2022,Research Grant Expenditure,Mobilising Cultural and Natural Assets,The University of Manchester,99857880,74190.32,Research Grant Expenditure
BEIS,UKRI - AHRC,16/12/2022,Research Grant Expenditure,Mobilising Cultural and Natural Assets,University of Bristol GRANT,99857881,75824.23,Research Grant Expenditure
BEIS,UKRI - AHRC,16/12/2022,Research Grant Expenditure,Mobilising Cultural and Natural Assets,University of Edinburgh,99857882,74406.59,Research Grant Expenditure
BEIS,UKRI - AHRC,16/12/2022,Research Grant Expenditure,Mobilising Cultural and Natural Assets,Institute of Development Studies,99857883,76306.31,Research Grant Expenditure
BEIS,UKRI - AHRC,16/12/2022,Research Grant Expenditure,Mobilising Cultural and Natural Assets,University of Plymouth,99857884,70169.06,Research Grant Expenditure
BEIS,UKRI - AHRC,16/12/2022,Research Grant Expenditure,HERA Joint Research Programme,Manchester Metropolitan University,99857885,47518.71,Research Grant Expenditure
BEIS,UKRI - AHRC,16/12/2022,Research Grant Expenditure,Mobilising Cultural and Natural Assets,University College London,99857886,75487.26,Research Grant Expenditure
BEIS,UKRI - AHRC,16/12/2022,Research Grant Expenditure,Mobilising Cultural and Natural Assets,University of Dundee,99857887,46643.96,Research Grant Expenditure
BEIS,UKRI - AHRC,16/12/2022,Research Grant Expenditure,Mobilising Cultural and Natural Assets,University of Liverpool,99857888,74610.59,Research Grant Expenditure
BEIS,UKRI - AHRC,16/12/2022,Research Grant Expenditure,Mobilising Cultural and Natural Assets,UNIVERSITY OF ULSTER,99857889,69974.04,Research Grant Expenditure
BEIS,UKRI - AHRC,16/12/2022,Research Grant Expenditure,Mobilising Cultural and Natural Assets,Northumbria University,99857890,69230.39,Research Grant Expenditure
BEIS,UKRI - AHRC,16/12/2022,Research Grant Expenditure,Mobilising Cultural and Natural Assets,Glasgow Caledonian University,99857891,65551.76,Research Grant Expenditure
BEIS,UKRI - AHRC,16/12/2022,Research Grant Expenditure,HERA Joint Research Programme,Sheffield Hallam University,99857892,50274.86,Research Grant Expenditure
BEIS,UKRI - AHRC,16/12/2022,Research Grant Expenditure,HERA Joint Research Programme,University of Huddersfield,99857893,39562.35,Research Grant Expenditure
BEIS,UKRI - AHRC,16/12/2022,Research Grant Expenditure,Mobilising Cultural and Natural Assets,Liverpool School of Tropical Medicine,99857894,73406.73,Research Grant Expenditure
BEIS,UKRI - AHRC,16/12/2022,Research Grant Expenditure,HERA Joint Research Programme,University of Edinburgh,99857895,44619.81,Research Grant Expenditure
BEIS,UKRI - AHRC,16/12/2022,Research Grant Expenditure,HERA Joint Research Programme,University of Birmingham GRANT,99857896,15189.95,Research Grant Expenditure
BEIS,UKRI - AHRC,16/12/2022,Research Grant Expenditure,International Other,"SOAS, University of London",99857897,25721.10,Research Grant Expenditure
BEIS,UKRI - AHRC,16/12/2022,Research Grant Expenditure,Networks & Workshops,University of Brighton,99857898,3143.90,Research Grant Expenditure
BEIS,UKRI - AHRC,16/12/2022,Research Grant Expenditure,Impact Accelerator Accounts (IAA's),University College London,99857899,37500.00,Research Grant Expenditure
BEIS,UKRI - AHRC,16/12/2022,Research Grant Expenditure,Impact Accelerator Accounts (IAA's),Lancaster University,99857900,37500.00,Research Grant Expenditure
BEIS,UKRI - AHRC,16/12/2022,Research Grant Expenditure,Impact Accelerator Accounts (IAA's),University of the West of England,99857901,37500.00,Research Grant Expenditure
BEIS,UKRI - AHRC,16/12/2022,Research Grant Expenditure,Impact Accelerator Accounts (IAA's),Cardiff University,99857902,37500.00,Research Grant Expenditure
BEIS,UKRI - AHRC,16/12/2022,Research Grant Expenditure,Impact Accelerator Accounts (IAA's),University of Cambridge,99857903,37500.00,Research Grant Expenditure
BEIS,UKRI - AHRC,16/12/2022,Research Grant Expenditure,Impact Accelerator Accounts (IAA's),Swansea University,99857904,37500.00,Research Grant Expenditure
BEIS,UKRI - AHRC,16/12/2022,Research Grant Expenditure,Impact Accelerator Accounts (IAA's),University of Sussex,99857905,37500.00,Research Grant Expenditure
BEIS,UKRI - AHRC,16/12/2022,Research Grant Expenditure,Impact Accelerator Accounts (IAA's),Museum of London Archaeology,99857906,37500.00,Research Grant Expenditure
BEIS,UKRI - AHRC,16/12/2022,Research Grant Expenditure,Impact Accelerator Accounts (IAA's),The University of Manchester,99857907,37500.00,Research Grant Expenditure
BEIS,UKRI - AHRC,16/12/2022,Research Grant Expenditure,Impact Accelerator Accounts (IAA's),King's College London,99857908,37500.00,Research Grant Expenditure
BEIS,UKRI - AHRC,16/12/2022,Research Grant Expenditure,Impact Accelerator Accounts (IAA's),University of Brighton,99857909,37500.00,Research Grant Expenditure
BEIS,UKRI - AHRC,16/12/2022,Research Grant Expenditure,Impact Accelerator Accounts (IAA's),University of Reading,99857910,37500.00,Research Grant Expenditure
BEIS,UKRI - AHRC,16/12/2022,Research Grant Expenditure,Impact Accelerator Accounts (IAA's),University of East Anglia,99857911,37500.00,Research Grant Expenditure
BEIS,UKRI - AHRC,16/12/2022,Research Grant Expenditure,Impact Accelerator Accounts (IAA's),University of Huddersfield,99857912,44525.69,Research Grant Expenditure
BEIS,UKRI - AHRC,16/12/2022,Research Grant Expenditure,Impact Accelerator Accounts (IAA's),University of Huddersfield,99857912,37500.00,Research Grant Expenditure
BEIS,UKRI - AHRC,16/12/2022,Research Grant Expenditure,Impact Accelerator Accounts (IAA's),Queen's University Belfast GRANT,99857913,37500.00,Research Grant Expenditure
BEIS,UKRI - AHRC,16/12/2022,Research Grant Expenditure,Impact Accelerator Accounts (IAA's),The Royal Central School of Speech and Drama,99857914,37500.00,Research Grant Expenditure
BEIS,UKRI - AHRC,16/12/2022,Research Grant Expenditure,Impact Accelerator Accounts (IAA's),University of Glasgow,99857915,37500.00,Research Grant Expenditure
BEIS,UKRI - AHRC,16/12/2022,Research Grant Expenditure,Impact Accelerator Accounts (IAA's),University of Birmingham GRANT,99857916,37500.00,Research Grant Expenditure
BEIS,UKRI - AHRC,16/12/2022,Research Grant Expenditure,Impact Accelerator Accounts (IAA's),Royal College of Art,99857917,37500.00,Research Grant Expenditure
BEIS,UKRI - AHRC,16/12/2022,Research Grant Expenditure,Impact Accelerator Accounts (IAA's),UNIVERSITY OF ULSTER,99857918,37500.00,Research Grant Expenditure
BEIS,UKRI - AHRC,16/12/2022,Research Grant Expenditure,Impact Accelerator Accounts (IAA's),Teesside University,99857919,37500.00,Research Grant Expenditure
BEIS,UKRI - AHRC,16/12/2022,Research Grant Expenditure,Impact Accelerator Accounts (IAA's),University of Southampton GRANT,99857920,37500.00,Research Grant Expenditure
BEIS,UKRI - AHRC,16/12/2022,Research Grant Expenditure,Impact Accelerator Accounts (IAA's),University of Hull,99857921,37500.00,Research Grant Expenditure
BEIS,UKRI - AHRC,16/12/2022,Research Grant Expenditure,Impact Accelerator Accounts (IAA's),University of Exeter,99857922,37500.00,Research Grant Expenditure
BEIS,UKRI - AHRC,16/12/2022,Research Grant Expenditure,Impact Accelerator Accounts (IAA's),Bath Spa University,99857923,37500.00,Research Grant Expenditure
BEIS,UKRI - AHRC,16/12/2022,Research Grant Expenditure,Impact Accelerator Accounts (IAA's),University of Kent,99857924,37500.00,Research Grant Expenditure
BEIS,UKRI - AHRC,16/12/2022,Research Grant Expenditure,Impact Accelerator Accounts (IAA's),University for the Creative Arts,99857925,37500.00,Research Grant Expenditure
BEIS,UKRI - AHRC,16/12/2022,Research Grant Expenditure,Impact Accelerator Accounts (IAA's),University of Liverpool,99857926,37500.00,Research Grant Expenditure
BEIS,UKRI - AHRC,16/12/2022,Research Grant Expenditure,Follow-on Fund,Loughborough University,99857927,15367.71,Research Grant Expenditure
BEIS,UKRI - AHRC,16/12/2022,Research Grant Expenditure,Follow-on Fund,Loughborough University,99857927,20016.68,Research Grant Expenditure
BEIS,UKRI - AHRC,16/12/2022,Research Grant Expenditure,Impact Accelerator Accounts (IAA's),University of Plymouth,99857928,37500.00,Research Grant Expenditure
BEIS,UKRI - AHRC,16/12/2022,Research Grant Expenditure,Impact Accelerator Accounts (IAA's),University of Bristol GRANT,99857929,37500.00,Research Grant Expenditure
BEIS,UKRI - AHRC,16/12/2022,Research Grant Expenditure,Storycraft fellowship (Bambo Soyinka),Bath Spa University,99857930,54723.97,Research Grant Expenditure
BEIS,UKRI - AHRC,16/12/2022,Research Grant Expenditure,Storycraft fellowship (Bambo Soyinka),Bath Spa University,99857930,54724.18,Research Grant Expenditure
BEIS,UKRI - AHRC,16/12/2022,Research Grant Expenditure,Storycraft fellowship (Bambo Soyinka),Bath Spa University,99857930,78343.94,Research Grant Expenditure
BEIS,UKRI - AHRC,16/12/2022,Research Grant Expenditure,Impact Accelerator Accounts (IAA's),University of Nottingham,99857931,37500.00,Research Grant Expenditure
BEIS,UKRI - AHRC,16/12/2022,Research Grant Expenditure,Impact Accelerator Accounts (IAA's),University of Hertfordshire,99857932,37500.00,Research Grant Expenditure
BEIS,UKRI - AHRC,16/12/2022,Research Grant Expenditure,International Other,University of East Anglia,99857933,21296.00,Research Grant Expenditure
BEIS,UKRI - AHRC,16/12/2022,Research Grant Expenditure,Public Policy,Northumbria University,99857934,106766.52,Research Grant Expenditure
BEIS,UKRI - AHRC,16/12/2022,Research Grant Expenditure,International Other,University of Sheffield,99857935,24867.06,Research Grant Expenditure
BEIS,UKRI - AHRC,16/12/2022,Research Grant Expenditure,International Other,Queen's University Belfast GRANT,99857936,21976.65,Research Grant Expenditure
BEIS,UKRI - AHRC,16/12/2022,Research Grant Expenditure,Modern Slavery and Human Rights (SPF),University of Exeter,99857937,53011.75,Research Grant Expenditure
BEIS,UKRI - AHRC,16/12/2022,Research Grant Expenditure,Modern Slavery and Human Rights (SPF),University of Portsmouth,99857938,38615.17,Research Grant Expenditure
BEIS,UKRI - AHRC,16/12/2022,Research Grant Expenditure,Modern Slavery and Human Rights (SPF),University of Essex,99857939,54196.15,Research Grant Expenditure
BEIS,UKRI - AHRC,16/12/2022,Fellowships,Commissioned Research,Aston University,99858314,-5065.17,Fellowships
BEIS,UKRI - AHRC,16/12/2022,Fellowships,Commissioned Research,University of Aberdeen,99858315,22431.96,Fellowships
BEIS,UKRI - AHRC,16/12/2022,Fellowships,Commissioned Research,University of Nottingham,99858316,-2254.24,Fellowships
BEIS,UKRI - AHRC,16/12/2022,Fellowships,Commissioned Research,"Royal Holloway, University of London",99858317,19948.15,Fellowships
BEIS,UKRI - AHRC,16/12/2022,Fellowships,Commissioned Research,The Open University,99858318,-9196.27,Fellowships
BEIS,UKRI - AHRC,16/12/2022,Fellowships,Research Fellowships,University of Bristol GRANT,99858319,27109.95,Fellowships
BEIS,UKRI - AHRC,16/12/2022,Fellowships,Research Fellowships,University of the Arts London,99858320,21382.36,Fellowships
BEIS,UKRI - AHRC,16/12/2022,Fellowships,Research Fellowships,University of Central Lancashire,99858321,11636.67,Fellowships
BEIS,UKRI - AHRC,16/12/2022,Fellowships,Research Fellowships,University of Nottingham,99858322,22197.79,Fellowships
BEIS,UKRI - AHRC,16/12/2022,Fellowships,Research Fellowships,Bath Spa University,99858323,28246.59,Fellowships
BEIS,UKRI - AHRC,16/12/2022,Fellowships,Research Fellowships,University of Nottingham,99858324,22160.84,Fellowships
BEIS,UKRI - AHRC,16/12/2022,Fellowships,Commissioned Research,University of St Andrews,99858325,-4381.75,Fellowships
BEIS,UKRI - AHRC,16/12/2022,Fellowships,Research Fellowships,University of Leeds,99858326,23143.65,Fellowships
BEIS,UKRI - AHRC,16/12/2022,Fellowships,Research Fellowships,University of Leicester,99858327,24093.81,Fellowships
BEIS,UKRI - AHRC,16/12/2022,Fellowships,Research Fellowships,University of St Andrews,99858328,23590.77,Fellowships
BEIS,UKRI - AHRC,16/12/2022,Fellowships,NPIF Research Talent (RCUK Innovation Fellowships),University of Edinburgh,99858329,7320.36,Fellowships
BEIS,UKRI - AHRC,16/12/2022,Fellowships,Research Fellowships,Keele University,99858330,20364.95,Fellowships
BEIS,UKRI - AHRC,16/12/2022,Research Grant Expenditure,Modern Slavery and Human Rights (SPF),University of Nottingham,99858940,50353.99,Research Grant Expenditure
BEIS,UKRI - AHRC,16/12/2022,Research Grant Expenditure,Modern Slavery and Human Rights (SPF),University of Leicester,99858941,54104.46,Research Grant Expenditure
BEIS,UKRI - AHRC,16/12/2022,Research Grant Expenditure,Research Grants,Historic Royal Palaces,99858942,58748.51,Research Grant Expenditure
BEIS,UKRI - AHRC,16/12/2022,Research Grant Expenditure,World Class Labs (WCL),Museum of London Archaeology,99858943,7318.23,Research Grant Expenditure
BEIS,UKRI - AHRC,16/12/2022,Research Grant Expenditure,Mobilising Cultural and Natural Assets,Royal College of Art,99858944,35727.33,Research Grant Expenditure
BEIS,UKRI - AHRC,16/12/2022,Research Grant Expenditure,Mobilising Cultural and Natural Assets,Nottingham Trent University,99858945,36142.91,Research Grant Expenditure
BEIS,UKRI - AHRC,16/12/2022,Research Grant Expenditure,Follow-on Fund,University of the West of England,99858946,20147.96,Research Grant Expenditure
BEIS,UKRI - AHRC,16/12/2022,Research Grant Expenditure,Networks & Workshops,University of Liverpool,99858947,4705.03,Research Grant Expenditure
BEIS,UKRI - AHRC,16/12/2022,Research Grant Expenditure,AHRC - DFG Collaborative Research Grant,Cardiff University,99858948,22716.26,Research Grant Expenditure
BEIS,UKRI - AHRC,16/12/2022,Research Grant Expenditure,AHRC - DFG Collaborative Research Grant,University of Durham,99858949,26209.67,Research Grant Expenditure
BEIS,UKRI - AHRC,16/12/2022,Research Grant Expenditure,AHRC - DFG Collaborative Research Grant,University of Edinburgh,99858950,25757.57,Research Grant Expenditure
BEIS,UKRI - AHRC,16/12/2022,Research Grant Expenditure,AHRC - DFG Collaborative Research Grant,University of Cambridge,99858951,25302.07,Research Grant Expenditure
BEIS,UKRI - AHRC,16/12/2022,Research Grant Expenditure,AHRC - DFG Collaborative Research Grant,University of Edinburgh,99858952,26202.20,Research Grant Expenditure
BEIS,UKRI - AHRC,16/12/2022,Research Grant Expenditure,AHRC - DFG Collaborative Research Grant,University of Essex,99858953,27930.87,Research Grant Expenditure
BEIS,UKRI - AHRC,16/12/2022,Research Grant Expenditure,AHRC - DFG Collaborative Research Grant,University of the Highlands and Islands,99858954,25021.65,Research Grant Expenditure
BEIS,UKRI - AHRC,16/12/2022,Research Grant Expenditure,AHRC - DFG Collaborative Research Grant,University of Oxford,99858955,35281.37,Research Grant Expenditure
BEIS,UKRI - AHRC,16/12/2022,Research Grant Expenditure,AHRC - DFG Collaborative Research Grant,Teesside University,99858956,30263.64,Research Grant Expenditure
BEIS,UKRI - AHRC,16/12/2022,Research Grant Expenditure,AHRC - DFG Collaborative Research Grant,University of Oxford,99858957,25085.84,Research Grant Expenditure
BEIS,UKRI - AHRC,16/12/2022,Research Grant Expenditure,AHRC - DFG Collaborative Research Grant,University of Newcastle Upon Tyne,99858958,23439.14,Research Grant Expenditure
BEIS,UKRI - AHRC,16/12/2022,Research Grant Expenditure,AHRC - DFG Collaborative Research Grant,University of Liverpool,99858959,21775.43,Research Grant Expenditure
BEIS,UKRI - AHRC,16/12/2022,Research Grant Expenditure,AHRC - DFG Collaborative Research Grant,University of Warwick,99858960,35280.69,Research Grant Expenditure
BEIS,UKRI - AHRC,16/12/2022,Research Grant Expenditure,AHRC - DFG Collaborative Research Grant,University of Birmingham GRANT,99858961,25733.45,Research Grant Expenditure
BEIS,UKRI - AHRC,16/12/2022,Research Grant Expenditure,AHRC - DFG Collaborative Research Grant,University of Bristol GRANT,99858962,33668.44,Research Grant Expenditure
BEIS,UKRI - AHRC,16/12/2022,Research Grant Expenditure,AHRC - DFG Collaborative Research Grant,University of Exeter,99858963,23735.83,Research Grant Expenditure
BEIS,UKRI - AHRC,16/12/2022,Research Grant Expenditure,AHRC - DFG Collaborative Research Grant,University of Southampton GRANT,99858964,29848.07,Research Grant Expenditure
BEIS,UKRI - AHRC,16/12/2022,Research Grant Expenditure,AHRC - DFG Collaborative Research Grant,University of Stirling,99858965,27064.40,Research Grant Expenditure
BEIS,UKRI - AHRC,16/12/2022,Research Grant Expenditure,Networks & Workshops,London School of Economics and Political Science,99858966,7156.46,Research Grant Expenditure
BEIS,UKRI - AHRC,16/12/2022,Research Grant Expenditure,Research Grants,University of Wales Trinity St David,99858967,53886.25,Research Grant Expenditure
BEIS,UKRI - AHRC,16/12/2022,Research Grant Expenditure,Research Grants,Birmingham City University,99858968,59030.86,Research Grant Expenditure
BEIS,UKRI - AHRC,16/12/2022,Research Grant Expenditure,Networks & Workshops,Institute of Development Studies,99858969,12612.04,Research Grant Expenditure
BEIS,UKRI - AHRC,16/12/2022,Research Grant Expenditure,Networks & Workshops,UNIVERSITY OF ULSTER,99858970,12668.78,Research Grant Expenditure
BEIS,UKRI - AHRC,16/12/2022,Research Grant Expenditure,Networks & Workshops,University of Aberdeen,99858971,13436.47,Research Grant Expenditure
BEIS,UKRI - AHRC,16/12/2022,Research Grant Expenditure,Networks & Workshops,UNIVERSITY OF ULSTER,99858972,13301.42,Research Grant Expenditure
BEIS,UKRI - AHRC,16/12/2022,Research Grant Expenditure,Networks & Workshops,Coventry University,99858973,13052.52,Research Grant Expenditure
BEIS,UKRI - AHRC,16/12/2022,Research Grant Expenditure,Networks & Workshops,University of Birmingham GRANT,99858974,12263.67,Research Grant Expenditure
BEIS,UKRI - AHRC,16/12/2022,Research Grant Expenditure,Research Grants,University of London,99858975,53605.58,Research Grant Expenditure
BEIS,UKRI - AHRC,16/12/2022,Research Grant Expenditure,Networks & Workshops,University of the Arts London,99858976,4020.06,Research Grant Expenditure
BEIS,UKRI - AHRC,16/12/2022,Research Grant Expenditure,Networks & Workshops,University of the Arts London,99858976,4020.05,Research Grant Expenditure
BEIS,UKRI - AHRC,16/12/2022,Research Grant Expenditure,Networks & Workshops,University of the Arts London,99858976,4020.05,Research Grant Expenditure
BEIS,UKRI - AHRC,16/12/2022,Research Grant Expenditure,Funds for International Collaboration (FIC 21 China),Falmouth University,99858977,20058.80,Research Grant Expenditure
BEIS,UKRI - AHRC,16/12/2022,Research Grant Expenditure,Funds for International Collaboration (FIC 21 China),Nottingham Trent University,99858978,19992.73,Research Grant Expenditure
BEIS,UKRI - AHRC,16/12/2022,Research Grant Expenditure,Funds for International Collaboration (FIC 21 China),Bournemouth University,99858979,21376.00,Research Grant Expenditure
BEIS,UKRI - AHRC,16/12/2022,Research Grant Expenditure,Networks & Workshops,University of Oxford,99858980,4222.22,Research Grant Expenditure
BEIS,UKRI - AHRC,16/12/2022,Research Grant Expenditure,Hidden Histories,University of Sussex,99858981,12398.48,Research Grant Expenditure
BEIS,UKRI - AHRC,16/12/2022,Research Grant Expenditure,Labex,University of Exeter,99858982,16737.27,Research Grant Expenditure
BEIS,UKRI - AHRC,16/12/2022,Research Grant Expenditure,Hidden Histories,University of Liverpool,99858983,12356.64,Research Grant Expenditure
BEIS,UKRI - AHRC,16/12/2022,Research Grant Expenditure,Investment in Place,University of Bradford,99858984,15166.45,Research Grant Expenditure
BEIS,UKRI - AHRC,16/12/2022,Research Grant Expenditure,Hidden Histories,University of Strathclyde,99858985,13383.65,Research Grant Expenditure
BEIS,UKRI - AHRC,16/12/2022,Research Grant Expenditure,Investment in Place,Glasgow School of Art,99858986,15202.37,Research Grant Expenditure
BEIS,UKRI - AHRC,16/12/2022,Research Grant Expenditure,Investment in Place,University of Exeter,99858987,15188.48,Research Grant Expenditure
BEIS,UKRI - AHRC,16/12/2022,Research Grant Expenditure,Hidden Histories,The University of Manchester,99858988,9073.75,Research Grant Expenditure
BEIS,UKRI - AHRC,16/12/2022,Research Grant Expenditure,Hidden Histories,UK Centre for Ecology and Hydrology (UKCEH),99858989,14396.89,Research Grant Expenditure
BEIS,UKRI - AHRC,16/12/2022,Research Grant Expenditure,Hidden Histories,University of East Anglia,99858990,12670.16,Research Grant Expenditure
BEIS,UKRI - AHRC,16/12/2022,Research Grant Expenditure,Investment in Place,University of Edinburgh,99858991,15201.14,Research Grant Expenditure
BEIS,UKRI - AHRC,16/12/2022,Research Grant Expenditure,Hidden Histories,University of Southampton GRANT,99858992,12423.60,Research Grant Expenditure
BEIS,UKRI - AHRC,16/12/2022,Research Grant Expenditure,Investment in Place,The Open University,99858993,13921.11,Research Grant Expenditure
BEIS,UKRI - AHRC,16/12/2022,Research Grant Expenditure,Hidden Histories,University of Oxford,99858994,12483.66,Research Grant Expenditure
BEIS,UKRI - AHRC,16/12/2022,Research Grant Expenditure,Investment in Place,Coventry University,99858995,16083.84,Research Grant Expenditure
BEIS,UKRI - AHRC,16/12/2022,Research Grant Expenditure,Investment in Place,Coventry University,99858995,15097.74,Research Grant Expenditure
BEIS,UKRI - AHRC,16/12/2022,Research Grant Expenditure,Hidden Histories,University of Hull,99858996,12511.81,Research Grant Expenditure
BEIS,UKRI - AHRC,16/12/2022,Research Grant Expenditure,Investment in Place,University of Southampton GRANT,99858997,15115.36,Research Grant Expenditure
BEIS,UKRI - AHRC,16/12/2022,Research Grant Expenditure,Investment in Place,University of Nottingham,99858998,15805.22,Research Grant Expenditure
BEIS,UKRI - AHRC,16/12/2022,Research Grant Expenditure,Hidden Histories,University of Winchester,99858999,11697.40,Research Grant Expenditure
BEIS,UKRI - AHRC,16/12/2022,Research Grant Expenditure,Networks & Workshops,University of Liverpool,99859000,10533.74,Research Grant Expenditure
BEIS,UKRI - AHRC,16/12/2022,Research Grant Expenditure,Labex,University of Leeds,99859001,21890.77,Research Grant Expenditure
BEIS,UKRI - AHRC,16/12/2022,Research Grant Expenditure,Research Grants,University of Glasgow,99859002,65902.91,Research Grant Expenditure
BEIS,UKRI - AHRC,16/12/2022,Research Grant Expenditure,Labex,Loughborough University,99859003,17934.88,Research Grant Expenditure
BEIS,UKRI - AHRC,16/12/2022,Research Grant Expenditure,Investment in Place,University of Sheffield,99859004,10410.43,Research Grant Expenditure
BEIS,UKRI - AHRC,16/12/2022,Research Grant Expenditure,Mobilising Cultural and Natural Assets,University of the Highlands and Islands,99859005,22068.29,Research Grant Expenditure
BEIS,UKRI - AHRC,16/12/2022,Research Grant Expenditure,Mobilising Cultural and Natural Assets,University of Newcastle Upon Tyne,99859006,36282.36,Research Grant Expenditure
BEIS,UKRI - AHRC,16/12/2022,Research Grant Expenditure,Mobilising Cultural and Natural Assets,Leeds Beckett University,99859007,36290.78,Research Grant Expenditure
BEIS,UKRI - AHRC,16/12/2022,Research Grant Expenditure,Mobilising Cultural and Natural Assets,Edge Hill University College,99859008,36283.58,Research Grant Expenditure
BEIS,UKRI - AHRC,16/12/2022,Research Grant Expenditure,Mobilising Cultural and Natural Assets,Bournemouth University,99859009,34268.51,Research Grant Expenditure
BEIS,UKRI - AHRC,16/12/2022,Research Grant Expenditure,Mobilising Cultural and Natural Assets,University of Nottingham,99859010,35198.74,Research Grant Expenditure
BEIS,UKRI - AHRC,16/12/2022,Research Grant Expenditure,Mobilising Cultural and Natural Assets,University College London,99859011,34479.22,Research Grant Expenditure
BEIS,UKRI - AHRC,16/12/2022,Research Grant Expenditure,Networks & Workshops,University of Bristol GRANT,99859012,4358.69,Research Grant Expenditure
BEIS,UKRI - AHRC,16/12/2022,Research Grant Expenditure,Networks & Workshops,University of Bristol GRANT,99859012,4358.70,Research Grant Expenditure
BEIS,UKRI - AHRC,16/12/2022,Research Grant Expenditure,Mobilising Cultural and Natural Assets,University of Dundee,99859013,35799.81,Research Grant Expenditure
BEIS,UKRI - AHRC,16/12/2022,Research Grant Expenditure,Artificial Intelligence,University of Cambridge,99859014,13865.99,Research Grant Expenditure
BEIS,UKRI - AHRC,16/12/2022,Research Grant Expenditure,Artificial Intelligence,University of Sheffield,99859015,11508.50,Research Grant Expenditure
BEIS,UKRI - AHRC,16/12/2022,Research Grant Expenditure,Investment in Place,University of Glasgow,99859016,35319.32,Research Grant Expenditure
BEIS,UKRI - AHRC,16/12/2022,Research Grant Expenditure,Research Grants,University of Cambridge,99859018,25068.07,Research Grant Expenditure
BEIS,UKRI - AHRC,16/12/2022,Research Grant Expenditure,Networks & Workshops,De Montfort University,99859019,4261.48,Research Grant Expenditure
BEIS,UKRI - AHRC,16/12/2022,Research Grant Expenditure,Intergenerational Justice,National Museums of Scotland,99859020,148231.79,Research Grant Expenditure
BEIS,UKRI - AHRC,16/12/2022,Research Grant Expenditure,Follow-on Fund,"SOAS, University of London",99859021,2485.34,Research Grant Expenditure
BEIS,UKRI - AHRC,16/12/2022,Research Grant Expenditure,Networks & Workshops,University of East London,99859022,4462.30,Research Grant Expenditure
BEIS,UKRI - AHRC,16/12/2022,Research Grant Expenditure,Networks & Workshops,University of the Arts London,99859023,8441.57,Research Grant Expenditure
BEIS,UKRI - AHRC,16/12/2022,Research Grant Expenditure,Networks & Workshops,University of Exeter,99859024,3766.88,Research Grant Expenditure
BEIS,UKRI - AHRC,16/12/2022,Research Grant Expenditure,Follow-on Fund,Leeds Beckett University,99859025,17577.60,Research Grant Expenditure
BEIS,UKRI - AHRC,16/12/2022,Research Grant Expenditure,Networks & Workshops,University of Oxford,99859026,6949.64,Research Grant Expenditure
BEIS,UKRI - AHRC,16/12/2022,Research Grant Expenditure,Research Grants,Queen Mary University of London,99859027,26712.48,Research Grant Expenditure
BEIS,UKRI - AHRC,16/12/2022,Research Grant Expenditure,Research Grants,International Institute For Environment And Development,99859028,24142.35,Research Grant Expenditure
BEIS,UKRI - AHRC,16/12/2022,Research Grant Expenditure,Research Grants,"Royal Holloway, University of London",99859029,62024.64,Research Grant Expenditure
BEIS,UKRI - AHRC,16/12/2022,Research Grant Expenditure,Networks & Workshops,University of Portsmouth,99859030,4717.31,Research Grant Expenditure
BEIS,UKRI - AHRC,16/12/2022,Research Grant Expenditure,Follow-on Fund,University of Sheffield,99859031,23337.61,Research Grant Expenditure
BEIS,UKRI - AHRC,16/12/2022,Research Grant Expenditure,Funds for International Collaboration (FIC 20 US),University of Edinburgh,99859032,9398.88,Research Grant Expenditure
BEIS,UKRI - AHRC,16/12/2022,Research Grant Expenditure,Funds for International Collaboration (FIC 20 US),University of Oxford,99859033,25044.53,Research Grant Expenditure
BEIS,UKRI - AHRC,16/12/2022,Research Grant Expenditure,Funds for International Collaboration (FIC 20 US),"SOAS, University of London",99859034,15523.52,Research Grant Expenditure
BEIS,UKRI - AHRC,16/12/2022,Research Grant Expenditure,Funds for International Collaboration (FIC 20 US),University of Edinburgh,99859035,29872.42,Research Grant Expenditure
BEIS,UKRI - AHRC,16/12/2022,Research Grant Expenditure,Funds for International Collaboration (FIC 20 US),University of Kent,99859036,12045.88,Research Grant Expenditure
BEIS,UKRI - AHRC,16/12/2022,Research Grant Expenditure,Funds for International Collaboration (FIC 20 US),Birkbeck College,99859037,6707.09,Research Grant Expenditure
BEIS,UKRI - AHRC,16/12/2022,Research Grant Expenditure,Funds for International Collaboration (FIC 20 US),Brunel University London,99859038,24957.69,Research Grant Expenditure
BEIS,UKRI - AHRC,16/12/2022,Research Grant Expenditure,Funds for International Collaboration (FIC 20 US),Lancaster University,99859039,14292.31,Research Grant Expenditure
BEIS,UKRI - AHRC,16/12/2022,Research Grant Expenditure,Funds for International Collaboration (FIC 20 US),University of Cambridge,99859040,10583.92,Research Grant Expenditure
BEIS,UKRI - AHRC,16/12/2022,Research Grant Expenditure,Funds for International Collaboration (FIC 20 US),Cardiff University,99859041,19832.28,Research Grant Expenditure
BEIS,UKRI - AHRC,16/12/2022,Research Grant Expenditure,Funds for International Collaboration (FIC 20 US),University of Newcastle Upon Tyne,99859042,4255.12,Research Grant Expenditure
BEIS,UKRI - AHRC,16/12/2022,Research Grant Expenditure,Research Grants,The University of Manchester,99859043,54171.16,Research Grant Expenditure
BEIS,UKRI - AHRC,16/12/2022,Research Grant Expenditure,Networks & Workshops,University of Exeter,99859044,4397.29,Research Grant Expenditure
BEIS,UKRI - AHRC,16/12/2022,Research Grant Expenditure,Networks & Workshops,The University of Manchester,99859045,2461.72,Research Grant Expenditure
BEIS,UKRI - AHRC,16/12/2022,Research Grant Expenditure,Research Grants,University of Oxford,99859046,65462.86,Research Grant Expenditure
BEIS,UKRI - AHRC,16/12/2022,Research Grant Expenditure,Follow-on Fund,University of Leeds,99859047,19984.25,Research Grant Expenditure
BEIS,UKRI - AHRC,16/12/2022,Research Grant Expenditure,Networks & Workshops,University of Central Lancashire,99859048,3013.69,Research Grant Expenditure
BEIS,UKRI - AHRC,16/12/2022,Research Grant Expenditure,Follow-on Fund,Cardiff University,99859049,20161.79,Research Grant Expenditure
BEIS,UKRI - AHRC,16/12/2022,Research Grant Expenditure,Research Grants,"SOAS, University of London",99859050,62557.18,Research Grant Expenditure
BEIS,UKRI - AHRC,16/12/2022,Research Grant Expenditure,Networks & Workshops,Middlesex University,99859051,8058.88,Research Grant Expenditure
BEIS,UKRI - AHRC,16/12/2022,Research Grant Expenditure,Research Grants,The University of Manchester,99859052,45126.35,Research Grant Expenditure
BEIS,UKRI - AHRC,16/12/2022,Research Grant Expenditure,Networks & Workshops,Imperial College London,99859053,3946.05,Research Grant Expenditure
BEIS,UKRI - AHRC,16/12/2022,Research Grant Expenditure,Networks & Workshops,Imperial College London,99859053,3946.06,Research Grant Expenditure
BEIS,UKRI - AHRC,16/12/2022,Research Grant Expenditure,Research Grants,University of Southampton GRANT,99859054,67034.43,Research Grant Expenditure
BEIS,UKRI - AHRC,16/12/2022,Research Grant Expenditure,Networks & Workshops,Goldsmiths College University of London,99859055,5918.85,Research Grant Expenditure
BEIS,UKRI - AHRC,16/12/2022,Research Grant Expenditure,Networks & Workshops,Northumbria University,99859056,3024.29,Research Grant Expenditure
BEIS,UKRI - AHRC,16/12/2022,Research Grant Expenditure,Networks & Workshops,The University of Manchester,99859057,7016.14,Research Grant Expenditure
BEIS,UKRI - AHRC,16/12/2022,Research Grant Expenditure,Networks & Workshops,The University of Manchester,99859057,7016.16,Research Grant Expenditure
BEIS,UKRI - AHRC,16/12/2022,Research Grant Expenditure,Research Grants,Bournemouth University,99859058,54535.19,Research Grant Expenditure
BEIS,UKRI - AHRC,16/12/2022,Research Grant Expenditure,Research Grants,University of Oxford,99859059,50383.30,Research Grant Expenditure
BEIS,UKRI - AHRC,16/12/2022,Research Grant Expenditure,Networks & Workshops,University of Sussex,99859060,4159.80,Research Grant Expenditure
BEIS,UKRI - AHRC,16/12/2022,Research Grant Expenditure,Towards a National Collection (SPF),University College London,99859061,238516.60,Research Grant Expenditure
BEIS,UKRI - AHRC,16/12/2022,Research Grant Expenditure,Towards a National Collection (SPF),University of the Arts London,99859063,247406.20,Research Grant Expenditure
BEIS,UKRI - AHRC,16/12/2022,Research Grant Expenditure,Research Grants,University of Bradford,99859064,70255.28,Research Grant Expenditure
BEIS,UKRI - AHRC,16/12/2022,Research Grant Expenditure,Towards a National Collection (SPF),Science Museum Group,99859065,247201.60,Research Grant Expenditure
BEIS,UKRI - AHRC,16/12/2022,Research Grant Expenditure,Towards a National Collection (SPF),University of Glasgow,99859066,251383.66,Research Grant Expenditure
BEIS,UKRI - AHRC,16/12/2022,Research Grant Expenditure,Research Grants,Royal College of Art,99859067,40793.74,Research Grant Expenditure
BEIS,UKRI - AHRC,16/12/2022,Research Grant Expenditure,Research Grants,University of Kent,99859068,88414.12,Research Grant Expenditure
BEIS,UKRI - AHRC,16/12/2022,Research Grant Expenditure,Research Grants,University of Kent,99859068,88414.03,Research Grant Expenditure
BEIS,UKRI - AHRC,16/12/2022,Research Grant Expenditure,Research Grants,University of Kent,99859068,91794.03,Research Grant Expenditure
BEIS,UKRI - AHRC,16/12/2022,Research Grant Expenditure,Research Grants,The University of Manchester,99859069,63443.66,Research Grant Expenditure
BEIS,UKRI - AHRC,16/12/2022,Research Grant Expenditure,Research Grants,University of Warwick,99859070,22196.58,Research Grant Expenditure
BEIS,UKRI - AHRC,16/12/2022,Research Grant Expenditure,Research Grants,University of Southampton GRANT,99859071,48347.06,Research Grant Expenditure
BEIS,UKRI - AHRC,16/12/2022,Research Grant Expenditure,Research Grants,UNIVERSITY OF ULSTER,99859072,37530.26,Research Grant Expenditure
BEIS,UKRI - AHRC,16/12/2022,Research Grant Expenditure,Research Grants,UNIVERSITY OF ULSTER,99859072,37530.28,Research Grant Expenditure
BEIS,UKRI - AHRC,16/12/2022,Research Grant Expenditure,Research Grants,Northumbria University,99859073,60640.52,Research Grant Expenditure
BEIS,UKRI - AHRC,16/12/2022,Research Grant Expenditure,Research Grants,University of Oxford,99859074,66853.99,Research Grant Expenditure
BEIS,UKRI - AHRC,16/12/2022,Research Grant Expenditure,Networks & Workshops,Northumbria University,99859075,4030.77,Research Grant Expenditure
BEIS,UKRI - AHRC,16/12/2022,Research Grant Expenditure,Networks & Workshops,Anglia Ruskin University,99859076,3942.56,Research Grant Expenditure
BEIS,UKRI - AHRC,16/12/2022,Research Grant Expenditure,Funds for International Collaboration (FIC2-06 Ireland),University of Oxford,99859077,23543.15,Research Grant Expenditure
BEIS,UKRI - AHRC,16/12/2022,Research Grant Expenditure,Funds for International Collaboration (FIC2-06 Ireland),University of Glasgow,99859078,27085.07,Research Grant Expenditure
BEIS,UKRI - AHRC,16/12/2022,Research Grant Expenditure,Funds for International Collaboration (FIC2-06 Ireland),Manchester Metropolitan University,99859079,43560.28,Research Grant Expenditure
BEIS,UKRI - AHRC,16/12/2022,Research Grant Expenditure,Funds for International Collaboration (FIC2-06 Ireland),University of Edinburgh,99859080,28740.82,Research Grant Expenditure
BEIS,UKRI - AHRC,16/12/2022,Research Grant Expenditure,Funds for International Collaboration (FIC2-06 Ireland),Loughborough University,99859081,27099.48,Research Grant Expenditure
BEIS,UKRI - AHRC,16/12/2022,Research Grant Expenditure,Funds for International Collaboration (FIC2-06 Ireland),Queen's University Belfast GRANT,99859082,32892.92,Research Grant Expenditure
BEIS,UKRI - AHRC,16/12/2022,Research Grant Expenditure,Funds for International Collaboration (FIC2-06 Ireland),University of East Anglia,99859083,34958.12,Research Grant Expenditure
BEIS,UKRI - AHRC,16/12/2022,Research Grant Expenditure,Funds for International Collaboration (FIC2-06 Ireland),University of Sussex,99859084,32229.93,Research Grant Expenditure
BEIS,UKRI - AHRC,16/12/2022,Research Grant Expenditure,Funds for International Collaboration (FIC2-06 Ireland),University of Brighton,99859085,34766.53,Research Grant Expenditure
BEIS,UKRI - AHRC,16/12/2022,Research Grant Expenditure,Funds for International Collaboration (FIC2-06 Ireland),Cardiff University,99859086,31572.24,Research Grant Expenditure
BEIS,UKRI - AHRC,16/12/2022,Research Grant Expenditure,Funds for International Collaboration (FIC2-06 Ireland),University of Sheffield,99859087,33213.40,Research Grant Expenditure
BEIS,UKRI - AHRC,16/12/2022,Research Grant Expenditure,Research Grants,King's College London,99859088,18644.88,Research Grant Expenditure
BEIS,UKRI - AHRC,16/12/2022,Research Grant Expenditure,Research Grants,University of Newcastle Upon Tyne,99859089,33165.55,Research Grant Expenditure
BEIS,UKRI - AHRC,16/12/2022,Research Grant Expenditure,Networks & Workshops,University of Hertfordshire,99859090,6017.07,Research Grant Expenditure
BEIS,UKRI - AHRC,16/12/2022,Research Grant Expenditure,COVID-19 (AHRC funded),University of Exeter,99859091,27201.78,Research Grant Expenditure
BEIS,UKRI - AHRC,16/12/2022,Research Grant Expenditure,Networks & Workshops,The Open University,99859092,5217.29,Research Grant Expenditure
BEIS,UKRI - AHRC,16/12/2022,Research Grant Expenditure,Follow-on Fund,University of Aberdeen,99859093,20119.84,Research Grant Expenditure
BEIS,UKRI - AHRC,16/12/2022,Research Grant Expenditure,Research Grants,Cardiff University,99859094,59187.06,Research Grant Expenditure
BEIS,UKRI - AHRC,16/12/2022,Research Grant Expenditure,Networks & Workshops,Teesside University,99859095,7424.16,Research Grant Expenditure
BEIS,UKRI - AHRC,16/12/2022,Research Grant Expenditure,Research Grants,Roehampton University (University of Roehampton),99859096,23466.12,Research Grant Expenditure
BEIS,UKRI - AHRC,16/12/2022,Research Grant Expenditure,Networks & Workshops,University of Warwick,99859097,4570.94,Research Grant Expenditure
BEIS,UKRI - AHRC,16/12/2022,Research Grant Expenditure,JPI Cultural Heritage,Sheffield Hallam University,99859098,15793.08,Research Grant Expenditure
BEIS,UKRI - AHRC,16/12/2022,Research Grant Expenditure,JPI Cultural Heritage,University of the Highlands and Islands,99859099,12148.70,Research Grant Expenditure
BEIS,UKRI - AHRC,16/12/2022,Research Grant Expenditure,JPI Cultural Heritage,Falmouth University,99859100,17997.82,Research Grant Expenditure
BEIS,UKRI - AHRC,16/12/2022,Research Grant Expenditure,JPI Cultural Heritage,"SOAS, University of London",99859101,10288.98,Research Grant Expenditure
BEIS,UKRI - AHRC,16/12/2022,Research Grant Expenditure,Networks & Workshops,The Open University,99859102,3646.13,Research Grant Expenditure
BEIS,UKRI - AHRC,16/12/2022,Research Grant Expenditure,JPI Cultural Heritage,Kingston University,99859103,21308.20,Research Grant Expenditure
BEIS,UKRI - AHRC,16/12/2022,Research Grant Expenditure,Research Grants,King's College London,99859104,44970.33,Research Grant Expenditure
BEIS,UKRI - AHRC,16/12/2022,Research Grant Expenditure,Networks & Workshops,Manchester Metropolitan University,99859105,4543.97,Research Grant Expenditure
BEIS,UKRI - AHRC,16/12/2022,Research Grant Expenditure,Research Grants,University of York,99859106,54520.79,Research Grant Expenditure
BEIS,UKRI - AHRC,16/12/2022,Research Grant Expenditure,Research Grants,De Montfort University,99859107,40736.44,Research Grant Expenditure
BEIS,UKRI - AHRC,16/12/2022,Research Grant Expenditure,Research Grants,King's College London,99859108,21778.69,Research Grant Expenditure
BEIS,UKRI - AHRC,16/12/2022,Research Grant Expenditure,Research Grants,Northumbria University,99859109,41920.32,Research Grant Expenditure
BEIS,UKRI - AHRC,16/12/2022,Research Grant Expenditure,Research Grants,University of Cambridge,99859110,71974.61,Research Grant Expenditure
BEIS,UKRI - AHRC,16/12/2022,Research Grant Expenditure,Networks & Workshops,Northumbria University,99859111,5728.06,Research Grant Expenditure
BEIS,UKRI - AHRC,16/12/2022,Research Grant Expenditure,Research Grants,University of Lincoln,99859112,39118.95,Research Grant Expenditure
BEIS,UKRI - AHRC,16/12/2022,Research Grant Expenditure,Networks & Workshops,Kingston University,99859113,6410.31,Research Grant Expenditure
BEIS,UKRI - AHRC,16/12/2022,Research Grant Expenditure,Research Grants,Northumbria University,99859114,64121.62,Research Grant Expenditure
BEIS,UKRI - AHRC,16/12/2022,Research Grant Expenditure,Research Grants,University College London,99859115,42511.91,Research Grant Expenditure
BEIS,UKRI - AHRC,16/12/2022,Research Grant Expenditure,Research Grants,Staffordshire University GRANT,99859116,8834.38,Research Grant Expenditure
BEIS,UKRI - AHRC,16/12/2022,Research Grant Expenditure,Networks & Workshops,National Maritime Museum,99859117,6063.11,Research Grant Expenditure
BEIS,UKRI - AHRC,16/12/2022,Research Grant Expenditure,COVID-19,University College London,99859118,63321.40,Research Grant Expenditure
BEIS,UKRI - AHRC,16/12/2022,Research Grant Expenditure,Research Grants,University of London,99859119,61974.59,Research Grant Expenditure
BEIS,UKRI - AHRC,16/12/2022,Research Grant Expenditure,Research Grants,University of Sheffield,99859120,43340.37,Research Grant Expenditure
BEIS,UKRI - AHRC,16/12/2022,Research Grant Expenditure,Networks & Workshops,University of Newcastle Upon Tyne,99859121,3818.33,Research Grant Expenditure
BEIS,UKRI - AHRC,16/12/2022,Research Grant Expenditure,Research Grants,The University of Manchester,99859122,8512.79,Research Grant Expenditure
BEIS,UKRI - AHRC,16/12/2022,Research Grant Expenditure,Research Grants,Aberystwyth University,99859123,57805.69,Research Grant Expenditure
BEIS,UKRI - AHRC,16/12/2022,Research Grant Expenditure,Research Grants,University of Edinburgh,99859124,71128.03,Research Grant Expenditure
BEIS,UKRI - AHRC,16/12/2022,Research Grant Expenditure,Research Grants,University of the Arts London,99859125,20145.78,Research Grant Expenditure
BEIS,UKRI - AHRC,16/12/2022,Research Grant Expenditure,Research Grants,Queen's University Belfast GRANT,99859126,48072.22,Research Grant Expenditure
BEIS,UKRI - AHRC,16/12/2022,Research Grant Expenditure,Networks & Workshops,University of Birmingham GRANT,99859127,4604.41,Research Grant Expenditure
BEIS,UKRI - AHRC,16/12/2022,Research Grant Expenditure,Research Grants,University of Exeter,99859128,43444.72,Research Grant Expenditure
BEIS,UKRI - AHRC,16/12/2022,Research Grant Expenditure,Research Grants,"SOAS, University of London",99859129,49585.72,Research Grant Expenditure
BEIS,UKRI - AHRC,16/12/2022,Research Grant Expenditure,Research Grants,University of Aberdeen,99859130,42689.02,Research Grant Expenditure
BEIS,UKRI - AHRC,16/12/2022,Research Grant Expenditure,Research Grants,University of Greenwich,99859131,32911.55,Research Grant Expenditure
BEIS,UKRI - AHRC,16/12/2022,Research Grant Expenditure,Networks & Workshops,The University of Manchester,99859132,4534.72,Research Grant Expenditure
BEIS,UKRI - AHRC,16/12/2022,Research Grant Expenditure,Research Grants,University of London,99859133,50817.83,Research Grant Expenditure
BEIS,UKRI - AHRC,16/12/2022,Research Grant Expenditure,Networks & Workshops,University of Brighton,99859134,4820.87,Research Grant Expenditure
BEIS,UKRI - AHRC,16/12/2022,Research Grant Expenditure,Networks & Workshops,Coventry University,99859135,3454.80,Research Grant Expenditure
BEIS,UKRI - AHRC,16/12/2022,Research Grant Expenditure,Networks & Workshops,Coventry University,99859135,3454.80,Research Grant Expenditure
BEIS,UKRI - AHRC,16/12/2022,Research Grant Expenditure,Networks & Workshops,University of York,99859136,3546.36,Research Grant Expenditure
BEIS,UKRI - AHRC,16/12/2022,Research Grant Expenditure,Funds for International Collaboration (FIC 20 US),Nottingham Trent University,99859137,16933.11,Research Grant Expenditure
BEIS,UKRI - AHRC,16/12/2022,Research Grant Expenditure,Funds for International Collaboration (FIC 20 US),"City, University of London",99859138,15112.64,Research Grant Expenditure
BEIS,UKRI - AHRC,16/12/2022,Research Grant Expenditure,Funds for International Collaboration (FIC 20 US),University of York,99859139,34874.61,Research Grant Expenditure
BEIS,UKRI - AHRC,16/12/2022,Research Grant Expenditure,Funds for International Collaboration (FIC 20 US),University of Reading,99859140,19349.43,Research Grant Expenditure
BEIS,UKRI - AHRC,16/12/2022,Research Grant Expenditure,Funds for International Collaboration (FIC 20 US),University of Oxford,99859141,24525.83,Research Grant Expenditure
BEIS,UKRI - AHRC,16/12/2022,Research Grant Expenditure,Funds for International Collaboration (FIC 20 US),University of Exeter,99859142,23231.02,Research Grant Expenditure
BEIS,UKRI - AHRC,16/12/2022,Research Grant Expenditure,Funds for International Collaboration (FIC 20 US),Lancaster University,99859143,19417.84,Research Grant Expenditure
BEIS,UKRI - AHRC,16/12/2022,Research Grant Expenditure,Funds for International Collaboration (FIC 20 US),Science Museum Group,99859144,21786.58,Research Grant Expenditure
BEIS,UKRI - AHRC,16/12/2022,Research Grant Expenditure,Funds for International Collaboration (FIC 20 US),University of Cambridge,99859145,17368.42,Research Grant Expenditure
BEIS,UKRI - AHRC,16/12/2022,Research Grant Expenditure,Funds for International Collaboration (FIC 20 US),Loughborough University,99859146,6095.98,Research Grant Expenditure
BEIS,UKRI - AHRC,16/12/2022,Research Grant Expenditure,Research Grants,Loughborough University,99859147,30396.52,Research Grant Expenditure
BEIS,UKRI - AHRC,16/12/2022,Research Grant Expenditure,Research Grants,The Open University,99859148,62662.21,Research Grant Expenditure
BEIS,UKRI - AHRC,16/12/2022,Research Grant Expenditure,Research Grants,University of Reading,99859149,65180.11,Research Grant Expenditure
BEIS,UKRI - AHRC,16/12/2022,Research Grant Expenditure,Research Grants,De Montfort University,99859150,19232.39,Research Grant Expenditure
BEIS,UKRI - AHRC,16/12/2022,Research Grant Expenditure,Research Grants,"SOAS, University of London",99859151,38764.35,Research Grant Expenditure
BEIS,UKRI - AHRC,16/12/2022,Research Grant Expenditure,Networks & Workshops,University of Kent,99859152,4508.16,Research Grant Expenditure
BEIS,UKRI - AHRC,16/12/2022,Research Grant Expenditure,Research Grants,Queen's University Belfast GRANT,99859153,59548.88,Research Grant Expenditure
BEIS,UKRI - AHRC,16/12/2022,Research Grant Expenditure,Networks & Workshops,University of Glasgow,99859154,4162.62,Research Grant Expenditure
BEIS,UKRI - AHRC,16/12/2022,Research Grant Expenditure,Networks & Workshops,The University of Manchester,99859155,4531.94,Research Grant Expenditure
BEIS,UKRI - AHRC,16/12/2022,Research Grant Expenditure,Follow-on Fund,Manchester Metropolitan University,99859156,21204.75,Research Grant Expenditure
BEIS,UKRI - AHRC,16/12/2022,Research Grant Expenditure,Research Grants,University of Cambridge,99859157,23941.31,Research Grant Expenditure
BEIS,UKRI - AHRC,16/12/2022,Research Grant Expenditure,Research Grants,The University of Manchester,99859158,29300.70,Research Grant Expenditure
BEIS,UKRI - AHRC,16/12/2022,Research Grant Expenditure,Networks & Workshops,University of Leicester,99859159,3424.63,Research Grant Expenditure
BEIS,UKRI - AHRC,16/12/2022,Research Grant Expenditure,Research Grants,University of Warwick,99859160,13556.80,Research Grant Expenditure
BEIS,UKRI - AHRC,16/12/2022,Research Grant Expenditure,Research Grants,University College London,99859161,65564.38,Research Grant Expenditure
BEIS,UKRI - AHRC,16/12/2022,Research Grant Expenditure,Research Grants,Northumbria University,99859162,70517.29,Research Grant Expenditure
BEIS,UKRI - AHRC,16/12/2022,Research Grant Expenditure,Research Grants,Oxford Brookes University,99859163,66974.55,Research Grant Expenditure
BEIS,UKRI - AHRC,16/12/2022,Research Grant Expenditure,Research Grants,University of Leeds,99859164,20002.03,Research Grant Expenditure
BEIS,UKRI - AHRC,16/12/2022,Research Grant Expenditure,Networks & Workshops,University of Warwick,99859165,3929.03,Research Grant Expenditure
BEIS,UKRI - AHRC,16/12/2022,Research Grant Expenditure,Research Grants,University of Sussex,99859166,66663.26,Research Grant Expenditure
BEIS,UKRI - AHRC,16/12/2022,Research Grant Expenditure,Networks & Workshops,University of Southampton GRANT,99859167,4887.18,Research Grant Expenditure
BEIS,UKRI - AHRC,16/12/2022,Research Grant Expenditure,Research Grants,Lancaster University,99859168,74028.32,Research Grant Expenditure
BEIS,UKRI - AHRC,16/12/2022,Research Grant Expenditure,Research Grants,Northumbria University,99859169,55433.97,Research Grant Expenditure
BEIS,UKRI - AHRC,16/12/2022,Research Grant Expenditure,JPI Cultural Heritage,University College London,99859170,11282.75,Research Grant Expenditure
BEIS,UKRI - AHRC,16/12/2022,Research Grant Expenditure,Research Grants,"City, University of London",99859171,58820.61,Research Grant Expenditure
BEIS,UKRI - AHRC,16/12/2022,Research Grant Expenditure,AHRC - DFG Collaborative Research Grant,University College London,99859172,25981.17,Research Grant Expenditure
BEIS,UKRI - AHRC,16/12/2022,Research Grant Expenditure,Research Grants,University of Exeter,99859173,54643.44,Research Grant Expenditure
BEIS,UKRI - AHRC,16/12/2022,Research Grant Expenditure,JPI Cultural Heritage,University of Durham,99859174,10916.44,Research Grant Expenditure
BEIS,UKRI - AHRC,16/12/2022,Research Grant Expenditure,Research Grants,Lancaster University,99859175,72186.52,Research Grant Expenditure
BEIS,UKRI - AHRC,16/12/2022,Research Grant Expenditure,Research Grants,University of Birmingham GRANT,99859176,69704.84,Research Grant Expenditure
BEIS,UKRI - AHRC,16/12/2022,Research Grant Expenditure,Networks & Workshops,University of Stirling,99859177,4642.25,Research Grant Expenditure
BEIS,UKRI - AHRC,16/12/2022,Research Grant Expenditure,Research Grants,Queen Mary University of London,99859178,43409.91,Research Grant Expenditure
BEIS,UKRI - AHRC,16/12/2022,Research Grant Expenditure,Research Grants,The University of Manchester,99859179,69536.96,Research Grant Expenditure
BEIS,UKRI - AHRC,16/12/2022,Research Grant Expenditure,JPI Cultural Heritage,University of York,99859180,7436.43,Research Grant Expenditure
BEIS,UKRI - AHRC,16/12/2022,Research Grant Expenditure,Research Grants,National Museums of Scotland,99859181,67116.84,Research Grant Expenditure
BEIS,UKRI - AHRC,16/12/2022,Research Grant Expenditure,Research Grants,Brunel University London,99859182,33117.81,Research Grant Expenditure
BEIS,UKRI - AHRC,16/12/2022,Research Grant Expenditure,Networks & Workshops,University of Sheffield,99859183,6008.04,Research Grant Expenditure
BEIS,UKRI - AHRC,16/12/2022,Research Grant Expenditure,Towards a National Collection (SPF),Historic Environment Scotland (GRANT),99859184,197493.78,Research Grant Expenditure
BEIS,UKRI - AHRC,16/12/2022,Research Grant Expenditure,RCUK Global Challenges Research Fund (RCUK GCRF),University of Liverpool,99859185,67592.53,Research Grant Expenditure
BEIS,UKRI - AHRC,16/12/2022,Research Grant Expenditure,Commissioned Research,"Royal Holloway, University of London",99859186,37311.15,Research Grant Expenditure
BEIS,UKRI - AHRC,16/12/2022,Research Grant Expenditure,Commissioned Research,Institute of Development Studies,99859187,33361.72,Research Grant Expenditure
BEIS,UKRI - AHRC,16/12/2022,Research Grant Expenditure,RCUK Global Challenges Research Fund (RCUK GCRF),Institute of Development Studies,99859188,71113.86,Research Grant Expenditure
BEIS,UKRI - AHRC,16/12/2022,Research Grant Expenditure,Research Grants,University of Oxford,99859189,67936.46,Research Grant Expenditure
BEIS,UKRI - AHRC,16/12/2022,Research Grant Expenditure,AHRC - DFG Collaborative Research Grant,University of Leeds,99859190,57139.65,Research Grant Expenditure
BEIS,UKRI - AHRC,16/12/2022,Research Grant Expenditure,AHRC - DFG Collaborative Research Grant,University of Glasgow,99859191,112313.44,Research Grant Expenditure
BEIS,UKRI - AHRC,16/12/2022,Research Grant Expenditure,Creative Economy,Loughborough University,99859192,68586.58,Research Grant Expenditure
BEIS,UKRI - AHRC,16/12/2022,Research Grant Expenditure,Networks & Workshops,Queen Mary University of London,99859193,7321.86,Research Grant Expenditure
BEIS,UKRI - AHRC,16/12/2022,Research Grant Expenditure,Research Grants,University of Cambridge,99859194,80800.44,Research Grant Expenditure
BEIS,UKRI - AHRC,16/12/2022,Research Grant Expenditure,Research Grants,University of Sheffield,99859195,47898.43,Research Grant Expenditure
BEIS,UKRI - AHRC,16/12/2022,Research Grant Expenditure,AHRC - DFG Collaborative Research Grant,University of Strathclyde,99859196,54223.92,Research Grant Expenditure
BEIS,UKRI - AHRC,16/12/2022,Research Grant Expenditure,AHRC - DFG Collaborative Research Grant,Bath Spa University,99859197,58642.02,Research Grant Expenditure
BEIS,UKRI - AHRC,16/12/2022,Research Grant Expenditure,AHRC - DFG Collaborative Research Grant,Queen Mary University of London,99859198,57012.61,Research Grant Expenditure
BEIS,UKRI - AHRC,16/12/2022,Research Grant Expenditure,Research Grants,University of York,99859199,31739.77,Research Grant Expenditure
BEIS,UKRI - AHRC,16/12/2022,Research Grant Expenditure,AHRC - DFG Collaborative Research Grant,University of Oxford,99859200,57082.91,Research Grant Expenditure
BEIS,UKRI - AHRC,16/12/2022,Research Grant Expenditure,AHRC - DFG Collaborative Research Grant,University of Oxford,99859201,57115.84,Research Grant Expenditure
BEIS,UKRI - AHRC,16/12/2022,Research Grant Expenditure,AHRC - DFG Collaborative Research Grant,University of Aberdeen,99859202,57082.44,Research Grant Expenditure
BEIS,UKRI - AHRC,16/12/2022,Research Grant Expenditure,AHRC - DFG Collaborative Research Grant,University of Cambridge,99859203,57140.01,Research Grant Expenditure
BEIS,UKRI - AHRC,16/12/2022,Research Grant Expenditure,AHRC - DFG Collaborative Research Grant,University of Liverpool,99859204,57140.01,Research Grant Expenditure
BEIS,UKRI - AHRC,16/12/2022,Research Grant Expenditure,AHRC - DFG Collaborative Research Grant,The British Museum,99859205,51155.76,Research Grant Expenditure
BEIS,UKRI - AHRC,16/12/2022,Research Grant Expenditure,AHRC - DFG Collaborative Research Grant,University of Cambridge,99859206,57133.83,Research Grant Expenditure
BEIS,UKRI - AHRC,16/12/2022,Research Grant Expenditure,AHRC - DFG Collaborative Research Grant,University College London,99859207,57140.12,Research Grant Expenditure
BEIS,UKRI - AHRC,16/12/2022,Research Grant Expenditure,AHRC - DFG Collaborative Research Grant,University of the Highlands and Islands,99859208,57048.08,Research Grant Expenditure
BEIS,UKRI - AHRC,16/12/2022,Research Grant Expenditure,AHRC - DFG Collaborative Research Grant,University of Birmingham GRANT,99859209,57098.03,Research Grant Expenditure
BEIS,UKRI - AHRC,16/12/2022,Research Grant Expenditure,Research Grants,The University of Manchester,99859210,66338.80,Research Grant Expenditure
BEIS,UKRI - AHRC,16/12/2022,Research Grant Expenditure,Networks & Workshops,University of Birmingham GRANT,99859211,4523.04,Research Grant Expenditure
BEIS,UKRI - AHRC,16/12/2022,Research Grant Expenditure,Modern Slavery and Human Rights (SPF),British Institute Of International And Comparative Law,99859212,695026.07,Research Grant Expenditure
BEIS,UKRI - AHRC,16/12/2022,Research Grant Expenditure,Research Grants,National Museums of Scotland,99859213,65722.79,Research Grant Expenditure
BEIS,UKRI - AHRC,16/12/2022,Research Grant Expenditure,Funds for International Collaboration (FIC 20 US),Abertay University,99859214,40322.88,Research Grant Expenditure
BEIS,UKRI - AHRC,16/12/2022,Research Grant Expenditure,Funds for International Collaboration (FIC 20 US),Robert Gordon University,99859215,41029.07,Research Grant Expenditure
BEIS,UKRI - AHRC,16/12/2022,Research Grant Expenditure,Funds for International Collaboration (FIC 20 US),Goldsmiths College University of London,99859216,41615.67,Research Grant Expenditure
BEIS,UKRI - AHRC,16/12/2022,Research Grant Expenditure,Funds for International Collaboration (FIC 20 US),University College London,99859217,34940.40,Research Grant Expenditure
BEIS,UKRI - AHRC,16/12/2022,Research Grant Expenditure,Funds for International Collaboration (FIC 20 US),University of Leeds,99859218,40936.01,Research Grant Expenditure
BEIS,UKRI - AHRC,16/12/2022,Research Grant Expenditure,Research Grants,University of Huddersfield,99859219,16658.01,Research Grant Expenditure
BEIS,UKRI - AHRC,16/12/2022,Research Grant Expenditure,Research Grants,University of Huddersfield,99859219,16792.93,Research Grant Expenditure
BEIS,UKRI - AHRC,16/12/2022,Research Grant Expenditure,Research Grants,University of Edinburgh,99859220,25349.45,Research Grant Expenditure
BEIS,UKRI - AHRC,16/12/2022,Research Grant Expenditure,Research Grants,University of Newcastle Upon Tyne,99859221,53526.50,Research Grant Expenditure
BEIS,UKRI - AHRC,16/12/2022,Research Grant Expenditure,Research Grants,University of Nottingham,99859222,43950.95,Research Grant Expenditure
BEIS,UKRI - AHRC,16/12/2022,Research Grant Expenditure,RCUK Global Challenges Research Fund (RCUK GCRF),University of Exeter,99859223,118581.45,Research Grant Expenditure
BEIS,UKRI - AHRC,16/12/2022,Research Grant Expenditure,RCUK Global Challenges Research Fund (RCUK GCRF),University of Lincoln,99859224,118780.76,Research Grant Expenditure
BEIS,UKRI - AHRC,16/12/2022,Research Grant Expenditure,RCUK Global Challenges Research Fund (RCUK GCRF),The Open University,99859225,126733.67,Research Grant Expenditure
BEIS,UKRI - AHRC,16/12/2022,Research Grant Expenditure,RCUK Global Challenges Research Fund (RCUK GCRF),University of Birmingham GRANT,99859226,117193.76,Research Grant Expenditure
BEIS,UKRI - AHRC,16/12/2022,Research Grant Expenditure,RCUK Global Challenges Research Fund (RCUK GCRF),UNIVERSITY OF ULSTER,99859227,132545.11,Research Grant Expenditure
BEIS,UKRI - AHRC,16/12/2022,Research Grant Expenditure,RCUK Global Challenges Research Fund (RCUK GCRF),University of Bath,99859228,115530.44,Research Grant Expenditure
BEIS,UKRI - AHRC,16/12/2022,Research Grant Expenditure,RCUK Global Challenges Research Fund (RCUK GCRF),Aberystwyth University,99859229,117482.26,Research Grant Expenditure
BEIS,UKRI - AHRC,16/12/2022,Research Grant Expenditure,RCUK Global Challenges Research Fund (RCUK GCRF),Keele University,99859230,117447.75,Research Grant Expenditure
BEIS,UKRI - AHRC,16/12/2022,Research Grant Expenditure,RCUK Global Challenges Research Fund (RCUK GCRF),University of Glasgow,99859231,136908.83,Research Grant Expenditure
BEIS,UKRI - AHRC,16/12/2022,Research Grant Expenditure,RCUK Global Challenges Research Fund (RCUK GCRF),University of Bristol GRANT,99859232,116491.04,Research Grant Expenditure
BEIS,UKRI - AHRC,16/12/2022,Research Grant Expenditure,Research Grants,UNIVERSITY OF ULSTER,99859233,16696.48,Research Grant Expenditure
BEIS,UKRI - AHRC,16/12/2022,Research Grant Expenditure,RCUK Global Challenges Research Fund (RCUK GCRF),University of Birmingham GRANT,99859234,109098.00,Research Grant Expenditure
BEIS,UKRI - AHRC,16/12/2022,Research Grant Expenditure,Research Grants,University of Oxford,99859235,47599.79,Research Grant Expenditure
BEIS,UKRI - AHRC,16/12/2022,Research Grant Expenditure,Research Grants,The British Museum,99859236,18217.81,Research Grant Expenditure
BEIS,UKRI - AHRC,16/12/2022,Research Grant Expenditure,Research Grants,University of Glasgow,99859237,62616.26,Research Grant Expenditure
BEIS,UKRI - AHRC,16/12/2022,Research Grant Expenditure,Research Grants,University of Leicester,99859238,35864.27,Research Grant Expenditure
BEIS,UKRI - AHRC,16/12/2022,Research Grant Expenditure,Research Grants,Cardiff University,99859239,17239.97,Research Grant Expenditure
BEIS,UKRI - AHRC,16/12/2022,Research Grant Expenditure,Networks & Workshops,The University of Manchester,99859240,5133.68,Research Grant Expenditure
BEIS,UKRI - AHRC,16/12/2022,Research Grant Expenditure,Research Grants,Anglia Ruskin University,99859241,85137.65,Research Grant Expenditure
BEIS,UKRI - AHRC,16/12/2022,Research Grant Expenditure,Research Grants,University of Nottingham,99859242,73799.72,Research Grant Expenditure
BEIS,UKRI - AHRC,16/12/2022,Research Grant Expenditure,Research Grants,Cardiff University,99859243,15797.27,Research Grant Expenditure
BEIS,UKRI - AHRC,16/12/2022,Research Grant Expenditure,Research Grants,University of Hull,99859244,55309.94,Research Grant Expenditure
BEIS,UKRI - AHRC,16/12/2022,Research Grant Expenditure,Research Grants,University of Southampton GRANT,99859245,38908.48,Research Grant Expenditure
BEIS,UKRI - AHRC,16/12/2022,Research Grant Expenditure,Research Grants,University of Bristol GRANT,99859246,70504.98,Research Grant Expenditure
BEIS,UKRI - AHRC,16/12/2022,Research Grant Expenditure,Research Grants,The University of Manchester,99859247,63273.11,Research Grant Expenditure
BEIS,UKRI - AHRC,16/12/2022,Research Grant Expenditure,Research Grants,Keele University,99859248,33815.97,Research Grant Expenditure
BEIS,UKRI - AHRC,16/12/2022,Research Grant Expenditure,Research Grants,University of Sussex,99859249,52716.93,Research Grant Expenditure
BEIS,UKRI - AHRC,16/12/2022,Research Grant Expenditure,Research Grants,University of Stirling,99859250,69435.84,Research Grant Expenditure
BEIS,UKRI - AHRC,16/12/2022,Research Grant Expenditure,Research Grants,University of Durham,99859251,63640.56,Research Grant Expenditure
BEIS,UKRI - AHRC,16/12/2022,Research Grant Expenditure,Research Grants,University of Sussex,99859252,12563.23,Research Grant Expenditure
BEIS,UKRI - AHRC,16/12/2022,Research Grant Expenditure,Research Grants,University of Sheffield,99859253,66713.66,Research Grant Expenditure
BEIS,UKRI - AHRC,16/12/2022,Research Grant Expenditure,Research Grants,University of Stirling,99859254,61974.93,Research Grant Expenditure
BEIS,UKRI - AHRC,16/12/2022,Research Grant Expenditure,Research Grants,University of Leicester,99859255,43759.03,Research Grant Expenditure
BEIS,UKRI - AHRC,16/12/2022,Research Grant Expenditure,Research Grants,University of Leeds,99859256,42287.35,Research Grant Expenditure
BEIS,UKRI - AHRC,16/12/2022,Research Grant Expenditure,Research Grants,The British Museum,99859257,51675.69,Research Grant Expenditure
BEIS,UKRI - AHRC,16/12/2022,Research Grant Expenditure,Research Grants,Manchester Metropolitan University,99859258,63619.48,Research Grant Expenditure
BEIS,UKRI - AHRC,16/12/2022,Research Grant Expenditure,Research Grants,University of Oxford,99859259,44466.15,Research Grant Expenditure
BEIS,UKRI - AHRC,16/12/2022,Research Grant Expenditure,Research Grants,University of York,99859260,55798.67,Research Grant Expenditure
BEIS,UKRI - AHRC,16/12/2022,Research Grant Expenditure,Research Grants,University of Leeds,99859261,49983.06,Research Grant Expenditure
BEIS,UKRI - AHRC,16/12/2022,Research Grant Expenditure,Cultural Values Project,University of Leeds,99859262,103279.44,Research Grant Expenditure
BEIS,UKRI - AHRC,16/12/2022,Research Grant Expenditure,Living with Machines (SPF),The Alan Turing Institute,99859263,437118.18,Research Grant Expenditure
BEIS,UKRI - AHRC,16/12/2022,Research Grant Expenditure,Research Grants,University of Southampton GRANT,99859264,56033.16,Research Grant Expenditure
BEIS,UKRI - AHRC,16/12/2022,Research Grant Expenditure,Research Grants,University of Cambridge,99859265,53459.01,Research Grant Expenditure
BEIS,UKRI - AHRC,16/12/2022,Research Grant Expenditure,Research Grants,University of Oxford,99859266,46900.20,Research Grant Expenditure
BEIS,UKRI - AHRC,16/12/2022,Research Grant Expenditure,Research Grants,Lancaster University,99859267,52080.45,Research Grant Expenditure
BEIS,UKRI - AHRC,16/12/2022,Research Grant Expenditure,RCUK Global Challenges Research Fund (RCUK GCRF),London School of Economics and Political Science,99859268,769179.61,Research Grant Expenditure
BEIS,UKRI - AHRC,16/12/2022,Research Grant Expenditure,Industrial Strategy Challenge Fund (ISCF) - Creative Clusters,University of the West of England,99859269,135731.85,Research Grant Expenditure
BEIS,UKRI - AHRC,16/12/2022,Research Grant Expenditure,Industrial Strategy Challenge Fund (ISCF) - Creative Clusters,Abertay University,99859270,126730.14,Research Grant Expenditure
BEIS,UKRI - AHRC,16/12/2022,Research Grant Expenditure,Industrial Strategy Challenge Fund (ISCF) - Creative Clusters,UNIVERSITY OF ULSTER,99859271,136603.65,Research Grant Expenditure
BEIS,UKRI - AHRC,16/12/2022,Research Grant Expenditure,Industrial Strategy Challenge Fund (ISCF) - Creative Clusters,University of York,99859272,134494.56,Research Grant Expenditure
BEIS,UKRI - AHRC,16/12/2022,Research Grant Expenditure,Industrial Strategy Challenge Fund (ISCF) - Creative Clusters,University of Leeds,99859273,132762.21,Research Grant Expenditure
BEIS,UKRI - AHRC,16/12/2022,Research Grant Expenditure,Industrial Strategy Challenge Fund (ISCF) - Creative Clusters,University of the Arts London,99859274,132352.91,Research Grant Expenditure
BEIS,UKRI - AHRC,16/12/2022,Research Grant Expenditure,Industrial Strategy Challenge Fund (ISCF) - Creative Clusters,Cardiff University,99859275,128406.28,Research Grant Expenditure
BEIS,UKRI - AHRC,16/12/2022,Research Grant Expenditure,Industrial Strategy Challenge Fund (ISCF) - Creative Clusters,University of Edinburgh,99859276,135629.33,Research Grant Expenditure
BEIS,UKRI - AHRC,16/12/2022,Research Grant Expenditure,Industrial Strategy Challenge Fund (ISCF) - Creative Clusters,"Royal Holloway, University of London",99859277,136440.06,Research Grant Expenditure
BEIS,UKRI - AHRC,16/12/2022,Research Grant Expenditure,Research Grants,University of Oxford,99859278,32427.30,Research Grant Expenditure
BEIS,UKRI - AHRC,16/12/2022,Research Grant Expenditure,Industrial Strategy Challenge Fund (ISCF) - Creative Clusters,NESTA,99859279,297657.47,Research Grant Expenditure
BEIS,UKRI - AHRC,16/12/2022,Research Grant Expenditure,Newton Programme,University of Bedfordshire,99859280,34394.55,Research Grant Expenditure
BEIS,UKRI - AHRC,16/12/2022,Research Grant Expenditure,World Class Labs (WCL),Victoria and Albert Museum,99859282,28453.99,Research Grant Expenditure
BEIS,UKRI - AHRC,16/12/2022,Research Grant Expenditure,World Class Labs (WCL),Historic Environment Scotland (GRANT),99859283,9807.65,Research Grant Expenditure
BEIS,UKRI - AHRC,16/12/2022,Research Grant Expenditure,World Class Labs (WCL),University of London,99859284,14386.22,Research Grant Expenditure
BEIS,UKRI - AHRC,16/12/2022,Research Grant Expenditure,Design: Strategic Initiatives,University of Reading,99859285,5376.96,Research Grant Expenditure
BEIS,UKRI - AHRC,16/12/2022,Research Grant Expenditure,Design: Strategic Initiatives,University of the Arts London,99859286,6384.04,Research Grant Expenditure
BEIS,UKRI - AHRC,16/12/2022,Research Grant Expenditure,Design: Strategic Initiatives,University of the Arts London,99859287,7237.17,Research Grant Expenditure
BEIS,UKRI - AHRC,16/12/2022,Research Grant Expenditure,Design: Strategic Initiatives,Glasgow School of Art,99859288,7180.44,Research Grant Expenditure
BEIS,UKRI - AHRC,16/12/2022,Research Grant Expenditure,Design: Strategic Initiatives,University of Hertfordshire,99859289,7524.10,Research Grant Expenditure
BEIS,UKRI - AHRC,16/12/2022,Research Grant Expenditure,Design: Strategic Initiatives,University of Hertfordshire,99859290,7089.97,Research Grant Expenditure
BEIS,UKRI - AHRC,16/12/2022,Research Grant Expenditure,Design: Strategic Initiatives,University of Hertfordshire,99859291,7458.68,Research Grant Expenditure
BEIS,UKRI - AHRC,16/12/2022,Research Grant Expenditure,World Class Labs (WCL),The British Library,99859292,91989.11,Research Grant Expenditure
BEIS,UKRI - AHRC,16/12/2022,Research Grant Expenditure,World Class Labs (WCL),University of Edinburgh,99859293,-2383.40,Research Grant Expenditure
BEIS,UKRI - AHRC,16/12/2022,Research Grant Expenditure,Digital Transformations,The British Library,99859294,14463.37,Research Grant Expenditure
BEIS,UKRI - AHRC,16/12/2022,Research Grant Expenditure,Public and Stakeholder Engagement,University of Kent,99859295,-4940.17,Research Grant Expenditure
BEIS,UKRI - AHRC,16/12/2022,Research Grant Expenditure,COVID-19 (AHRC funded),University of Huddersfield,99859296,9579.05,Research Grant Expenditure
BEIS,UKRI - AHRC,16/12/2022,Research Grant Expenditure,Follow-on Fund,University of Exeter,99859297,24108.17,Research Grant Expenditure
BEIS,UKRI - AHRC,16/12/2022,Research Grant Expenditure,Commissioned Research,Goldsmiths College University of London,99859298,60162.44,Research Grant Expenditure
BEIS,UKRI - AHRC,16/12/2022,Research Grant Expenditure,COVID-19 (AHRC funded),University of Leicester,99859299,-21534.15,Research Grant Expenditure
BEIS,UKRI - AHRC,16/12/2022,Research Grant Expenditure,COVID-19 (AHRC funded),University of Glasgow,99859300,-13064.47,Research Grant Expenditure
BEIS,UKRI - AHRC,16/12/2022,Research Grant Expenditure,COVID-19 (AHRC funded),University of Nottingham,99859301,-37613.96,Research Grant Expenditure
BEIS,UKRI - AHRC,16/12/2022,Research Grant Expenditure,COVID-19,The Open University,99859302,10031.41,Research Grant Expenditure
BEIS,UKRI - AHRC,16/12/2022,Research Grant Expenditure,COVID-19 (AHRC funded),Queen Mary University of London,99859303,-11494.19,Research Grant Expenditure
BEIS,UKRI - AHRC,16/12/2022,Research Grant Expenditure,COVID-19,Northumbria University,99859304,11992.35,Research Grant Expenditure
BEIS,UKRI - AHRC,16/12/2022,Research Grant Expenditure,COVID-19,University of Exeter,99859305,40129.24,Research Grant Expenditure
BEIS,UKRI - AHRC,16/12/2022,Research Grant Expenditure,Modern Slavery and Human Rights (SPF),University of Birmingham GRANT,99859306,-11150.09,Research Grant Expenditure
BEIS,UKRI - AHRC,16/12/2022,Research Grant Expenditure,COVID-19,University of Kent,99859307,7600.00,Research Grant Expenditure
BEIS,UKRI - AHRC,16/12/2022,Research Grant Expenditure,COVID-19,UNIVERSITY OF ULSTER,99859308,8288.24,Research Grant Expenditure
BEIS,UKRI - AHRC,16/12/2022,Research Grant Expenditure,Follow-on Fund,University College London,99859309,-17769.58,Research Grant Expenditure
BEIS,UKRI - AHRC,16/12/2022,Research Grant Expenditure,World Class Labs (WCL),Manchester Metropolitan University,99859310,2278.30,Research Grant Expenditure
BEIS,UKRI - AHRC,16/12/2022,Research Grant Expenditure,Commissioned Research,University of Oxford,99859311,-16113.01,Research Grant Expenditure
BEIS,UKRI - AHRC,16/12/2022,Research Grant Expenditure,Funds for International Collaboration (FIC 20 US),University of Leicester,99859312,-139.99,Research Grant Expenditure
BEIS,UKRI - AHRC,16/12/2022,Research Grant Expenditure,Global Challenges Research Fund (GCRF),University College London,99859313,-93742.16,Research Grant Expenditure
BEIS,UKRI - AHRC,16/12/2022,Research Grant Expenditure,Research Grants,University of Brighton,99859314,-27003.10,Research Grant Expenditure
BEIS,UKRI - AHRC,16/12/2022,Research Grant Expenditure,COVID-19,University of Oxford,99859315,1709.06,Research Grant Expenditure
BEIS,UKRI - AHRC,16/12/2022,Research Grant Expenditure,Follow-on Fund,King's College London,99859316,-4959.28,Research Grant Expenditure
BEIS,UKRI - AHRC,16/12/2022,Research Grant Expenditure,Global Challenges Research Fund (GCRF),Nottingham Trent University,99859317,-0.01,Research Grant Expenditure
BEIS,UKRI - AHRC,16/12/2022,Research Grant Expenditure,Global Challenges Research Fund (GCRF),University of Edinburgh,99859318,-1376.90,Research Grant Expenditure
BEIS,UKRI - AHRC,16/12/2022,Research Grant Expenditure,Networks & Workshops,University of the Arts London,99859319,-1104.77,Research Grant Expenditure
BEIS,UKRI - AHRC,16/12/2022,Research Grant Expenditure,Follow-on Fund,University of Stirling,99859320,-11478.79,Research Grant Expenditure
BEIS,UKRI - AHRC,16/12/2022,Research Grant Expenditure,Funds for International Collaboration (FIC 20 US),The British Library,99859321,-27413.22,Research Grant Expenditure
BEIS,UKRI - AHRC,16/12/2022,Research Grant Expenditure,Funds for International Collaboration (FIC 20 US),King's College London,99859322,-5765.09,Research Grant Expenditure
BEIS,UKRI - AHRC,16/12/2022,Research Grant Expenditure,Research Grants,"Royal Holloway, University of London",99859323,32062.73,Research Grant Expenditure
BEIS,UKRI - AHRC,16/12/2022,Research Grant Expenditure,Towards a National Collection (SPF),The British Library,99859324,-8970.45,Research Grant Expenditure
BEIS,UKRI - AHRC,16/12/2022,Research Grant Expenditure,Towards a National Collection (SPF),The British Library,99859325,-17109.75,Research Grant Expenditure
BEIS,UKRI - AHRC,16/12/2022,Research Grant Expenditure,Networks & Workshops,"Royal Holloway, University of London",99859326,-14787.32,Research Grant Expenditure
BEIS,UKRI - AHRC,16/12/2022,Research Grant Expenditure,Research Grants,University of East Anglia,99859327,34419.62,Research Grant Expenditure
BEIS,UKRI - AHRC,16/12/2022,Research Grant Expenditure,Landscape Decisions (SPF),Middlesex University,99859328,-2125.68,Research Grant Expenditure
BEIS,UKRI - AHRC,16/12/2022,Research Grant Expenditure,Landscape Decisions (SPF),Lancaster University,99859329,-9341.54,Research Grant Expenditure
BEIS,UKRI - AHRC,16/12/2022,Research Grant Expenditure,Landscape Decisions (SPF),Keele University,99859330,-0.64,Research Grant Expenditure
BEIS,UKRI - AHRC,16/12/2022,Research Grant Expenditure,Networks & Workshops,Leeds Beckett University,99859331,-2447.84,Research Grant Expenditure
BEIS,UKRI - AHRC,16/12/2022,Research Grant Expenditure,RCUK Global Challenges Research Fund (RCUK GCRF),University of Bristol GRANT,99859332,-15453.32,Research Grant Expenditure
BEIS,UKRI - AHRC,16/12/2022,Research Grant Expenditure,Commissioned Research,University of Nottingham,99859333,-68676.47,Research Grant Expenditure
BEIS,UKRI - AHRC,16/12/2022,Research Grant Expenditure,Follow-on Fund,King's College London,99859334,-19933.65,Research Grant Expenditure
BEIS,UKRI - AHRC,16/12/2022,Research Grant Expenditure,Networks & Workshops,University of Liverpool,99859335,-1757.28,Research Grant Expenditure
BEIS,UKRI - AHRC,16/12/2022,Research Grant Expenditure,RCUK Global Challenges Research Fund (RCUK GCRF),University of Sussex,99859336,-31754.64,Research Grant Expenditure
BEIS,UKRI - AHRC,16/12/2022,Research Grant Expenditure,Networks & Workshops,University of Warwick,99859337,393.40,Research Grant Expenditure
BEIS,UKRI - AHRC,16/12/2022,Research Grant Expenditure,JPI Cultural Heritage,University of Hull,99859338,-13148.14,Research Grant Expenditure
BEIS,UKRI - AHRC,16/12/2022,Research Grant Expenditure,Networks & Workshops,Birmingham City University,99859339,895.20,Research Grant Expenditure
BEIS,UKRI - AHRC,16/12/2022,Research Grant Expenditure,Newton Programme,Lancaster University,99859340,-49577.94,Research Grant Expenditure
BEIS,UKRI - AHRC,16/12/2022,Research Grant Expenditure,Research Grants,University of Stirling,99859341,22170.74,Research Grant Expenditure
BEIS,UKRI - AHRC,16/12/2022,Research Grant Expenditure,Research Grants,University of Newcastle Upon Tyne,99859342,25858.16,Research Grant Expenditure
BEIS,UKRI - AHRC,16/12/2022,Research Grant Expenditure,Research Grants,University of York,99859343,9508.97,Research Grant Expenditure
BEIS,UKRI - AHRC,16/12/2022,Research Grant Expenditure,Research Grants,Queen's University Belfast GRANT,99859344,22929.68,Research Grant Expenditure
BEIS,UKRI - AHRC,16/12/2022,Research Grant Expenditure,Research Grants,University of Bristol GRANT,99859345,43291.28,Research Grant Expenditure
BEIS,UKRI - AHRC,16/12/2022,Research Grant Expenditure,Research Grants,Birkbeck College,99859346,66457.81,Research Grant Expenditure
BEIS,UKRI - AHRC,16/12/2022,Research Grant Expenditure,Research Grants,University of Liverpool,99859347,52912.86,Research Grant Expenditure
BEIS,UKRI - AHRC,16/12/2022,Research Grant Expenditure,Research Grants,King's College London,99859348,66335.98,Research Grant Expenditure
BEIS,UKRI - AHRC,16/12/2022,Research Grant Expenditure,Newton Programme,Nottingham Trent University,99859349,51893.29,Research Grant Expenditure
BEIS,UKRI - AHRC,16/12/2022,Research Grant Expenditure,Research Grants,London School of Economics and Political Science,99859350,6549.75,Research Grant Expenditure
BEIS,UKRI - AHRC,16/12/2022,Research Grant Expenditure,Research Grants,University of Warwick,99859351,49143.35,Research Grant Expenditure
BEIS,UKRI - AHRC,16/12/2022,Research Grant Expenditure,Research Grants,University of Reading,99859352,55072.74,Research Grant Expenditure
BEIS,UKRI - AHRC,16/12/2022,Research Grant Expenditure,Research Grants,University of Durham,99859353,13393.88,Research Grant Expenditure
BEIS,UKRI - AHRC,16/12/2022,Research Grant Expenditure,Research Grants,Birmingham City University,99859354,40871.88,Research Grant Expenditure
BEIS,UKRI - AHRC,16/12/2022,Research Grant Expenditure,Research Grants,University of Hull,99859355,12761.55,Research Grant Expenditure
BEIS,UKRI - AHRC,16/12/2022,Research Grant Expenditure,Research Grants,University of York,99859356,38540.21,Research Grant Expenditure
BEIS,UKRI - AHRC,16/12/2022,Research Grant Expenditure,Research Grants,University of Nottingham,99859357,17241.74,Research Grant Expenditure
BEIS,UKRI - AHRC,16/12/2022,Research Grant Expenditure,Networks & Workshops,University of the West of England,99859358,-3188.86,Research Grant Expenditure
BEIS,UKRI - AHRC,16/12/2022,Research Grant Expenditure,Research Grants,University of Sussex,99859359,44214.08,Research Grant Expenditure
BEIS,UKRI - AHRC,16/12/2022,Research Grant Expenditure,Global Uncertainties Programme,Queen's University Belfast GRANT,99859360,40870.04,Research Grant Expenditure
BEIS,UKRI - AHRC,16/12/2022,Research Grant Expenditure,Science in Culture,University of London,99859361,-2459.05,Research Grant Expenditure
BEIS,UKRI - AHRC,16/12/2022,Research Grant Expenditure,Digital Transformations,The British Library,99859362,-28344.52,Research Grant Expenditure
BEIS,UKRI - AHRC,16/12/2022,Research Grant Expenditure,Funds for International Collaboration (FIC 20 US),National Trust,99859363,3542.30,Research Grant Expenditure
BEIS,UKRI - AHRC,16/12/2022,Research Grant Expenditure,Funds for International Collaboration (FIC 20 US),The British Library,99859364,64801.26,Research Grant Expenditure
BEIS,UKRI - AHRC,16/12/2022,Research Grant Expenditure,Towards a National Collection (SPF),The British Library,99859365,197911.58,Research Grant Expenditure
BEIS,UKRI - AHRC,16/12/2022,Fellowships,Public Policy,Institute of Development Studies,99859366,22795.55,Fellowships
BEIS,UKRI - AHRC,16/12/2022,Fellowships,Public Policy,University of Sheffield,99859367,34958.61,Fellowships
BEIS,UKRI - AHRC,16/12/2022,Fellowships,Research Fellowships,University of Bristol GRANT,99859368,28755.70,Fellowships
BEIS,UKRI - AHRC,16/12/2022,Fellowships,Research Fellowships,The Open University,99859369,27287.74,Fellowships
BEIS,UKRI - AHRC,16/12/2022,Fellowships,Research Fellowships,Royal College of Art,99859370,30066.50,Fellowships
BEIS,UKRI - AHRC,16/12/2022,Fellowships,Mobilising Cultural and Natural Assets,University College London,99859371,176409.10,Fellowships
BEIS,UKRI - AHRC,16/12/2022,Fellowships,Research Fellowships,University of Brighton,99859372,39041.03,Fellowships
BEIS,UKRI - AHRC,16/12/2022,Fellowships,Research Fellowships,"SOAS, University of London",99859373,19381.11,Fellowships
BEIS,UKRI - AHRC,16/12/2022,Fellowships,Research Fellowships,"Royal Holloway, University of London",99859374,25141.92,Fellowships
BEIS,UKRI - AHRC,16/12/2022,Fellowships,Research Fellowships,"Royal Holloway, University of London",99859374,25141.92,Fellowships
BEIS,UKRI - AHRC,16/12/2022,Fellowships,Research Fellowships,National Museums of Scotland,99859375,12420.30,Fellowships
BEIS,UKRI - AHRC,16/12/2022,Fellowships,Research Fellowships,University of Bristol GRANT,99859376,22648.79,Fellowships
BEIS,UKRI - AHRC,16/12/2022,Fellowships,Research Fellowships,"Royal Holloway, University of London",99859377,25110.65,Fellowships
BEIS,UKRI - AHRC,16/12/2022,Fellowships,Research Fellowships,The Royal Central School of Speech and Drama,99859378,21403.76,Fellowships
BEIS,UKRI - AHRC,16/12/2022,Fellowships,Research Fellowships,University of Leeds,99859379,39845.63,Fellowships
BEIS,UKRI - AHRC,16/12/2022,Fellowships,Research Fellowships,Manchester Metropolitan University,99859380,33597.29,Fellowships
BEIS,UKRI - AHRC,16/12/2022,Fellowships,Research Fellowships,University College London,99859381,29259.76,Fellowships
BEIS,UKRI - AHRC,16/12/2022,Fellowships,Research Fellowships,University College London,99859381,29259.76,Fellowships
BEIS,UKRI - AHRC,16/12/2022,Fellowships,Research Fellowships,University of Leicester,99859382,38847.92,Fellowships
BEIS,UKRI - AHRC,16/12/2022,Fellowships,Research Fellowships,University of Liverpool,99859383,18142.07,Fellowships
BEIS,UKRI - AHRC,16/12/2022,Fellowships,Research Fellowships,University of Leeds,99859384,43012.88,Fellowships
BEIS,UKRI - AHRC,16/12/2022,Fellowships,Research Fellowships,University of Liverpool,99859385,20518.20,Fellowships
BEIS,UKRI - AHRC,16/12/2022,Fellowships,Research Fellowships,University of Liverpool,99859386,29862.70,Fellowships
BEIS,UKRI - AHRC,16/12/2022,Fellowships,Research Fellowships,University of Birmingham GRANT,99859387,36660.49,Fellowships
BEIS,UKRI - AHRC,16/12/2022,Fellowships,Research Fellowships,University of the West of England,99859388,25385.31,Fellowships
BEIS,UKRI - AHRC,16/12/2022,Fellowships,Research Fellowships,University of Leicester,99859389,21959.36,Fellowships
BEIS,UKRI - AHRC,16/12/2022,Fellowships,Research Fellowships,University of Edinburgh,99859390,38728.38,Fellowships
BEIS,UKRI - AHRC,16/12/2022,Fellowships,Research Fellowships,University of Leeds,99859391,35284.53,Fellowships
BEIS,UKRI - AHRC,16/12/2022,Fellowships,Research Fellowships,University of Bristol GRANT,99859392,38457.44,Fellowships
BEIS,UKRI - AHRC,16/12/2022,Fellowships,Research Fellowships,University of Bristol GRANT,99859393,34671.25,Fellowships
BEIS,UKRI - AHRC,16/12/2022,Fellowships,Research Fellowships,University of Bristol GRANT,99859393,34671.25,Fellowships
BEIS,UKRI - AHRC,16/12/2022,Fellowships,Research Fellowships,University of Bristol GRANT,99859393,36299.47,Fellowships
BEIS,UKRI - AHRC,16/12/2022,Fellowships,Research Fellowships,University of Bristol GRANT,99859393,26530.17,Fellowships
BEIS,UKRI - AHRC,16/12/2022,Fellowships,Research Fellowships,"Royal Holloway, University of London",99859394,27270.05,Fellowships
BEIS,UKRI - AHRC,16/12/2022,Fellowships,Research Fellowships,Queen's University Belfast GRANT,99859395,24291.04,Fellowships
BEIS,UKRI - AHRC,16/12/2022,Fellowships,Research Fellowships,Queen's University Belfast GRANT,99859395,24291.04,Fellowships
BEIS,UKRI - AHRC,16/12/2022,Fellowships,Research Fellowships,Queen's University Belfast GRANT,99859395,24291.04,Fellowships
BEIS,UKRI - AHRC,16/12/2022,Fellowships,Research Fellowships,Queen's University Belfast GRANT,99859395,24291.04,Fellowships
BEIS,UKRI - AHRC,16/12/2022,Fellowships,Research Fellowships,University of Brighton,99859396,38067.61,Fellowships
BEIS,UKRI - AHRC,16/12/2022,Fellowships,Research Fellowships,University of St Andrews,99859397,37366.14,Fellowships
BEIS,UKRI - AHRC,16/12/2022,Fellowships,Research Fellowships,University of Exeter,99859398,33602.12,Fellowships
BEIS,UKRI - AHRC,16/12/2022,Fellowships,Research Fellowships,University of Sheffield,99859399,21272.77,Fellowships
BEIS,UKRI - AHRC,16/12/2022,Fellowships,Research Fellowships,University of Warwick,99859400,35700.22,Fellowships
BEIS,UKRI - AHRC,16/12/2022,Fellowships,Research Fellowships,Nottingham Trent University,99859401,25258.46,Fellowships
BEIS,UKRI - AHRC,16/12/2022,Fellowships,Research Fellowships,University of York,99859402,21586.29,Fellowships
BEIS,UKRI - AHRC,16/12/2022,Fellowships,Research Fellowships,University of Lincoln,99859403,19673.13,Fellowships
BEIS,UKRI - AHRC,16/12/2022,Fellowships,Research Fellowships,Birmingham City University,99859404,21368.61,Fellowships
BEIS,UKRI - AHRC,16/12/2022,Fellowships,Research Fellowships,Queen Mary University of London,99859405,37278.67,Fellowships
BEIS,UKRI - AHRC,16/12/2022,Fellowships,Research Fellowships,University of East Anglia,99859406,23225.00,Fellowships
BEIS,UKRI - AHRC,16/12/2022,Fellowships,Research Fellowships,University of Leeds,99859407,43767.85,Fellowships
BEIS,UKRI - AHRC,16/12/2022,Fellowships,Research Fellowships,Northumbria University,99859408,23080.20,Fellowships
BEIS,UKRI - AHRC,16/12/2022,Fellowships,Research Fellowships,Northumbria University,99859409,20491.94,Fellowships
BEIS,UKRI - AHRC,16/12/2022,Fellowships,Research Fellowships,University of Sussex,99859410,30990.26,Fellowships
BEIS,UKRI - AHRC,16/12/2022,Fellowships,Research Fellowships,University of Bristol GRANT,99859411,28411.61,Fellowships
BEIS,UKRI - AHRC,16/12/2022,Fellowships,Research Fellowships,University of St Andrews,99859412,27363.09,Fellowships
BEIS,UKRI - AHRC,16/12/2022,Fellowships,Research Fellowships,University of St Andrews,99859412,27363.09,Fellowships
BEIS,UKRI - AHRC,16/12/2022,Fellowships,Research Fellowships,University of South Wales,99859413,22384.47,Fellowships
BEIS,UKRI - AHRC,16/12/2022,Fellowships,Commissioned Research,University of Bristol GRANT,99859414,26840.34,Fellowships
BEIS,UKRI - AHRC,16/12/2022,Fellowships,Commissioned Research,University of Newcastle Upon Tyne,99859415,25014.97,Fellowships
BEIS,UKRI - AHRC,16/12/2022,Fellowships,Commissioned Research,Aston University,99859416,18422.67,Fellowships
BEIS,UKRI - AHRC,16/12/2022,Fellowships,Commissioned Research,University of Leicester,99859417,33646.22,Fellowships
BEIS,UKRI - AHRC,16/12/2022,Conferences & Seminars,Infrastructure Fund - CoSTAR,Creative Economy Team Ltd,99863661,29748.00,Conferences & Seminars
BEIS,UKRI - AHRC,16/12/2022,Meetings & Catering,"Health, Environmental & Urban Humanities (HEUH)",Calder Conference Ltd,99865898,96.90,Meetings & Catering
BEIS,UKRI - AHRC,19/12/2022,Research Grant Expenditure,AHRC - DCMS International Heritage Partnership,Marondera University of Agricultural Sciences and Technology,99857870,24695.91,Research Grant Expenditure
BEIS,UKRI - AHRC,19/12/2022,Research Grant Expenditure,Intergenerational Justice,Historic Buildings and Monuments Commission for England T/A Historic England,99859017,150259.66,Research Grant Expenditure
BEIS,UKRI - AHRC,19/12/2022,Research Grant Expenditure,Towards a National Collection (SPF),Historic Buildings and Monuments Commission for England T/A Historic England,99859062,246563.63,Research Grant Expenditure
BEIS,UKRI - AHRC,19/12/2022,Fees (Including College Members),Operations,Unspecified,99866871,170.00,Fees (Including College Members)
BEIS,UKRI - AHRC,19/12/2022,Fees (Including College Members),Operations,Unspecified,99866872,340.00,Fees (Including College Members)
BEIS,UKRI - AHRC,19/12/2022,Fees (Including College Members),Operations,Unspecified,99866873,170.00,Fees (Including College Members)
BEIS,UKRI - AHRC,19/12/2022,Fees (Including College Members),Operations,Unspecified,99866874,340.00,Fees (Including College Members)
BEIS,UKRI - AHRC,19/12/2022,Fees (Including College Members),Operations,Unspecified,99866875,170.00,Fees (Including College Members)
BEIS,UKRI - AHRC,19/12/2022,Fees (Including College Members),Operations,Unspecified,99866876,340.00,Fees (Including College Members)
BEIS,UKRI - AHRC,19/12/2022,Fees (Including College Members),Operations,Unspecified,99866877,460.00,Fees (Including College Members)
BEIS,UKRI - AHRC,19/12/2022,Fees (Including College Members),Operations,Unspecified,99866878,170.00,Fees (Including College Members)
BEIS,UKRI - AHRC,19/12/2022,Fees (Including College Members),Operations,Unspecified,99866879,170.00,Fees (Including College Members)
BEIS,UKRI - AHRC,19/12/2022,Fees (Including College Members),Operations,Unspecified,99866880,170.00,Fees (Including College Members)
BEIS,UKRI - AHRC,19/12/2022,Fees (Including College Members),Operations,Unspecified,99866881,170.00,Fees (Including College Members)
BEIS,UKRI - AHRC,19/12/2022,Non-staff travel and subsistance,Infrastruture Roadmap,Unspecified,99866888,25.10,Non-staff travel and subsistance
BEIS,UKRI - AHRC,19/12/2022,Fees (Including College Members),Operations,Unspecified,99867194,340.00,Fees (Including College Members)
BEIS,UKRI - AHRC,19/12/2022,Fees (Including College Members),Operations,Unspecified,99867195,230.00,Fees (Including College Members)
BEIS,UKRI - AHRC,19/12/2022,Fees (Including College Members),Operations,Unspecified,99867196,170.00,Fees (Including College Members)
BEIS,UKRI - AHRC,19/12/2022,Fees (Including College Members),Operations,Unspecified,99867197,170.00,Fees (Including College Members)
BEIS,UKRI - AHRC,19/12/2022,Fees (Including College Members),Operations,Unspecified,99867198,170.00,Fees (Including College Members)
BEIS,UKRI - AHRC,19/12/2022,Fees (Including College Members),Operations,Unspecified,99867199,170.00,Fees (Including College Members)
BEIS,UKRI - AHRC,19/12/2022,Fees (Including College Members),Executive Office,Unspecified,99867208,500.00,Fees (Including College Members)
BEIS,UKRI - AHRC,19/12/2022,Fees (Including College Members),Executive Office,Unspecified,99867209,500.00,Fees (Including College Members)
BEIS,UKRI - AHRC,19/12/2022,Fees (Including College Members),Executive Office,Unspecified,99867210,500.00,Fees (Including College Members)
BEIS,UKRI - AHRC,19/12/2022,Fees (Including College Members),Executive Office,Unspecified,99867211,500.00,Fees (Including College Members)
BEIS,UKRI - AHRC,19/12/2022,T&S UK - Other Charges,Strategy and Evidence,Unspecified,99867349,6.70,T&S UK - Other Charges
BEIS,UKRI - AHRC,19/12/2022,T&S UK - Public Transport,Strategy and Evidence,Unspecified,99867349,3.40,T&S UK - Public Transport
BEIS,UKRI - AHRC,19/12/2022,T&S UK - Subsistence,Strategy and Evidence,Unspecified,99867349,15.78,T&S UK - Subsistence
BEIS,UKRI - AHRC,19/12/2022,T&S UK - Subsistence,Strategy and Evidence,Unspecified,99867349,10.00,T&S UK - Subsistence
BEIS,UKRI - AHRC,20/12/2022,T&S UK - Public Transport,AHRC - Creative Industries,Unspecified,99868529,2.40,T&S UK - Public Transport
BEIS,UKRI - AHRC,20/12/2022,T&S UK - Public Transport,AHRC - Creative Industries,Unspecified,99868529,12.70,T&S UK - Public Transport
BEIS,UKRI - AHRC,20/12/2022,T&S UK - Subsistence,SMT,Unspecified,99868530,36.50,T&S UK - Subsistence
BEIS,UKRI - AHRC,21/12/2022,Research Grant Expenditure,Cross Council Responsive Mode Awards,UKRI - Economic & Social Research Council,99867753,6858.48,Research Grant Expenditure
BEIS,UKRI - AHRC,21/12/2022,Other Programme Costs,Commissioned Research,UKRI - Engineering & Physical Sciences Research Council,99867755,100000.00,Other Programme Costs
BEIS,UKRI - AHRC,21/12/2022,Research Grant Expenditure,Urban Living,UKRI - Economic & Social Research Council,99867757,4170.75,Research Grant Expenditure
BEIS,UKRI - AHRC,21/12/2022,Fellowships,Public Policy,UKRI - Economic & Social Research Council,99867758,36541.64,Fellowships
BEIS,UKRI - AHRC,21/12/2022,Fellowships,Public Policy,UKRI - Economic & Social Research Council,99867758,9961.45,Fellowships
BEIS,UKRI - AHRC,21/12/2022,Fellowships,Public Policy,UKRI - Economic & Social Research Council,99867758,13442.62,Fellowships
BEIS,UKRI - AHRC,21/12/2022,Fees (Including College Members),Operations,Unspecified,99867865,510.00,Fees (Including College Members)
BEIS,UKRI - AHRC,21/12/2022,Fees (Including College Members),Operations,Unspecified,99867866,172.98,Fees (Including College Members)
BEIS,UKRI - AHRC,21/12/2022,T&S UK - Other Charges,Public and Stakeholder Engagement,Unspecified,99868814,57.95,T&S UK - Other Charges
BEIS,UKRI - AHRC,21/12/2022,T&S UK - Public Transport,Public and Stakeholder Engagement,Unspecified,99868814,16.20,T&S UK - Public Transport
BEIS,UKRI - AHRC,21/12/2022,T&S UK - Public Transport,Public and Stakeholder Engagement,Unspecified,99868814,8.80,T&S UK - Public Transport
BEIS,UKRI - AHRC,21/12/2022,T&S UK - Subsistence,Public and Stakeholder Engagement,Unspecified,99868814,9.10,T&S UK - Subsistence
BEIS,UKRI - AHRC,21/12/2022,T&S UK - Subsistence,Public and Stakeholder Engagement,Unspecified,99868814,15.10,T&S UK - Subsistence
BEIS,UKRI - AHRC,21/12/2022,T&S UK - Subsistence,Public and Stakeholder Engagement,Unspecified,99868814,26.59,T&S UK - Subsistence
BEIS,UKRI - AHRC,22/12/2022,Other Programme Costs,International Placement Scheme,University of Oxford,99869399,3700.00,Other Programme Costs
BEIS,UKRI - AHRC,22/12/2022,Health & Safety (inc. Medicals & Opticians),AI&Design,Unspecified,99869560,12.00,Health & Safety (inc. Medicals & Opticians)
BEIS,UKRI - AHRC,28/12/2022,Other Programme Costs,Commissioned Research,Design Council,99867438,415000.00,Other Programme Costs
BEIS,UKRI - AHRC,28/12/2022,Non-staff travel and subsistance,Executive Office,Unspecified,99869919,104.68,Non-staff travel and subsistance
BEIS,UKRI - AHRC,28/12/2022,Fees (Including College Members),Executive Office,Unspecified,99869920,1000.00,Fees (Including College Members)
BEIS,UKRI - AHRC,28/12/2022,Fees (Including College Members),Operations,Unspecified,99870437,510.00,Fees (Including College Members)
BEIS,UKRI - AHRC,28/12/2022,Fees (Including College Members),Operations,Unspecified,99870438,170.00,Fees (Including College Members)
BEIS,UKRI - AHRC,28/12/2022,Fees (Including College Members),Operations,Unspecified,99870439,170.00,Fees (Including College Members)
BEIS,UKRI - AHRC,28/12/2022,Fees (Including College Members),Operations,Unspecified,99870440,230.00,Fees (Including College Members)
BEIS,UKRI - AHRC,28/12/2022,Fees (Including College Members),Operations,Unspecified,99870441,170.00,Fees (Including College Members)
BEIS,UKRI - AHRC,29/12/2022,Research Grant Expenditure,Design: Strategic Initiatives,THE DESIGN MUSEUM,99871216,501500.00,Research Grant Expenditure
BEIS,UKRI - AHRC,29/12/2022,Research Grant Expenditure,Design: Strategic Initiatives,THE DESIGN MUSEUM,99871219,262500.00,Research Grant Expenditure
BEIS,UKRI - BBSRC,01/12/2022,Research Grant Expenditure,Innovation and Skills Group,The Royal Society of Edinburgh,99844495,19987.05,Research Grant Expenditure
BEIS,UKRI - BBSRC,01/12/2022,Research Grant Expenditure,Innovation and Skills Group,The Royal Society of Edinburgh,99844498,8023.83,Research Grant Expenditure
BEIS,UKRI - BBSRC,01/12/2022,Research Grant Expenditure,Innovation and Skills Group,The Royal Society of Edinburgh,99844501,4529.22,Research Grant Expenditure
BEIS,UKRI - BBSRC,01/12/2022,Research Grant Expenditure,Innovation and Skills Group,The Royal Society of Edinburgh,99844506,24804.00,Research Grant Expenditure
BEIS,UKRI - BBSRC,01/12/2022,Research Institutes - Capital Grants: Minor Works,World Class Labs,Rothamsted Research Ltd,99844619,9420.64,Research Institutes - Capital Grants: Minor Works
BEIS,UKRI - BBSRC,01/12/2022,Conferences & Seminars,CE - CPS,Calder Conference Ltd,99847796,630.00,Conferences & Seminars
BEIS,UKRI - BBSRC,01/12/2022,T&S UK - Accommodation,Science Group – Admin Function,Unspecified,99848449,552.59,T&S UK - Accommodation
BEIS,UKRI - BBSRC,01/12/2022,T&S UK - Mileage,Science Group – Admin Function,Unspecified,99848449,59.32,T&S UK - Mileage
BEIS,UKRI - BBSRC,01/12/2022,T&S UK - Public Transport,Science Group – Admin Function,Unspecified,99848449,5.20,T&S UK - Public Transport
BEIS,UKRI - BBSRC,01/12/2022,T&S UK - Public Transport,Science Group – Admin Function,Unspecified,99848449,12.16,T&S UK - Public Transport
BEIS,UKRI - BBSRC,01/12/2022,T&S UK - Subsistence,Science Group – Admin Function,Unspecified,99848449,10.85,T&S UK - Subsistence
BEIS,UKRI - BBSRC,01/12/2022,T&S UK - Subsistence,Science Group – Admin Function,Unspecified,99848449,36.57,T&S UK - Subsistence
BEIS,UKRI - BBSRC,01/12/2022,T&S UK - Subsistence,Science Group – Admin Function,Unspecified,99848449,20.00,T&S UK - Subsistence
BEIS,UKRI - BBSRC,01/12/2022,T&S UK - Subsistence,Science Group – Admin Function,Unspecified,99848449,24.55,T&S UK - Subsistence
BEIS,UKRI - BBSRC,01/12/2022,T&S UK - Mileage,Innovation and Skills Group,Unspecified,99848450,36.00,T&S UK - Mileage
BEIS,UKRI - BBSRC,02/12/2022,Research Grant Expenditure,SPF W1 EMBL EBI,EMBL (European Molecular Biology Laboratory),99845593,5897.94,Research Grant Expenditure
BEIS,UKRI - BBSRC,02/12/2022,T&S UK - Mileage,Science Group,Unspecified,99848884,10.56,T&S UK - Mileage
BEIS,UKRI - BBSRC,02/12/2022,T&S UK - Other Charges,Science Group,Unspecified,99848884,7.99,T&S UK - Other Charges
BEIS,UKRI - BBSRC,02/12/2022,T&S UK - Subsistence,Science Group,Unspecified,99848884,5.50,T&S UK - Subsistence
BEIS,UKRI - BBSRC,02/12/2022,T&S UK - Subsistence,Science Group,Unspecified,99848884,8.09,T&S UK - Subsistence
BEIS,UKRI - BBSRC,02/12/2022,T&S UK - Mileage,CE - CPS,Unspecified,99848885,259.20,T&S UK - Mileage
BEIS,UKRI - BBSRC,02/12/2022,T&S UK - Parking Tolls Congestion Charges,CE - CPS,Unspecified,99848886,8.50,T&S UK - Parking Tolls Congestion Charges
BEIS,UKRI - BBSRC,02/12/2022,T&S UK - Public Transport,CE - CPS,Unspecified,99848886,5.00,T&S UK - Public Transport
BEIS,UKRI - BBSRC,02/12/2022,T&S UK - Subsistence,CE - CPS,Unspecified,99848886,16.06,T&S UK - Subsistence
BEIS,UKRI - BBSRC,02/12/2022,T&S UK - Subsistence,CE - CPS,Unspecified,99848886,5.65,T&S UK - Subsistence
BEIS,UKRI - BBSRC,02/12/2022,Health & Safety (inc. Medicals & Opticians),CE - CPS,Unspecified,99848887,16.99,Health & Safety (inc. Medicals & Opticians)
BEIS,UKRI - BBSRC,05/12/2022,Unspecified,Science Group - Delivery Function,Unspecified,99849248,170.00,Council & Committee Honoraria
BEIS,UKRI - BBSRC,05/12/2022,Unspecified,Science Group – Admin Function,Unspecified,99849249,170.00,Council & Committee Honoraria
BEIS,UKRI - BBSRC,05/12/2022,Unspecified,Science Group - Delivery Function,Unspecified,99849250,230.00,Council & Committee Honoraria
BEIS,UKRI - BBSRC,05/12/2022,Unspecified,Science Group – Admin Function,Unspecified,99850615,170.00,Council & Committee Honoraria
BEIS,UKRI - BBSRC,06/12/2022,Health & Safety (inc. Medicals & Opticians),Science Group,Unspecified,99851526,12.00,Health & Safety (inc. Medicals & Opticians)
BEIS,UKRI - BBSRC,06/12/2022,T&S UK - Public Transport,Science Group,Unspecified,99851527,20.00,T&S UK - Public Transport
BEIS,UKRI - BBSRC,06/12/2022,T&S UK - Subsistence,Science Group,Unspecified,99851527,9.38,T&S UK - Subsistence
BEIS,UKRI - BBSRC,07/12/2022,Non-staff travel and subsistance,European Initiatives,Unspecified,99847863,731.91,Non-staff travel and subsistance
BEIS,UKRI - BBSRC,07/12/2022,Non-staff travel and subsistance,European Initiatives,Unspecified,99847864,533.56,Non-staff travel and subsistance
BEIS,UKRI - BBSRC,07/12/2022,Non-staff travel and subsistance,European Initiatives,Unspecified,99847865,642.45,Non-staff travel and subsistance
BEIS,UKRI - BBSRC,07/12/2022,Non-staff travel and subsistance,European Initiatives,Unspecified,99847866,419.28,Non-staff travel and subsistance
BEIS,UKRI - BBSRC,07/12/2022,Non-staff travel and subsistance,European Initiatives,Unspecified,99848976,708.89,Non-staff travel and subsistance
BEIS,UKRI - BBSRC,07/12/2022,Non-staff travel and subsistance,European Initiatives,Unspecified,99848977,627.78,Non-staff travel and subsistance
BEIS,UKRI - BBSRC,07/12/2022,Non-staff travel and subsistance,CE - Chief Executive,Unspecified,99851666,190.28,Non-staff travel and subsistance
BEIS,UKRI - BBSRC,07/12/2022,Fees (Including College Members),Science Group - Delivery Function,Unspecified,99851667,170.00,Fees (Including College Members)
BEIS,UKRI - BBSRC,07/12/2022,T&S UK - Vehicle Hire,CIMG - Director,Enterprise Rent-A-Car UK Ltd,99854919,76.51,T&S UK - Vehicle Hire
BEIS,UKRI - BBSRC,07/12/2022,T&S UK - Vehicle Hire,CIMG - Director,Enterprise Rent-A-Car UK Ltd,99854919,15.30,T&S UK - Vehicle Hire
BEIS,UKRI - BBSRC,07/12/2022,Research Institutes - Capital Grants: Major Works,Funding Advanced Research Equipment - WCL 2020 Uplift,John Innes Centre,99855240,26878.86,Research Institutes - Capital Grants: Major Works
BEIS,UKRI - BBSRC,07/12/2022,Unspecified,Science Group - Delivery Function,Unspecified,99856356,255.00,Council & Committee Honoraria
BEIS,UKRI - BBSRC,07/12/2022,Unspecified,Science Group - Delivery Function,Unspecified,99856357,255.00,Council & Committee Honoraria
BEIS,UKRI - BBSRC,07/12/2022,Unspecified,Science Group - Delivery Function,Unspecified,99856358,255.00,Council & Committee Honoraria
BEIS,UKRI - BBSRC,07/12/2022,Unspecified,Science Group - Delivery Function,Unspecified,99856359,255.00,Council & Committee Honoraria
BEIS,UKRI - BBSRC,07/12/2022,Unspecified,Science Group - Delivery Function,Unspecified,99856360,255.00,Council & Committee Honoraria
BEIS,UKRI - BBSRC,07/12/2022,Unspecified,Science Group - Delivery Function,Unspecified,99856361,255.00,Council & Committee Honoraria
BEIS,UKRI - BBSRC,07/12/2022,Unspecified,Science Group - Delivery Function,Unspecified,99856362,255.00,Council & Committee Honoraria
BEIS,UKRI - BBSRC,07/12/2022,Unspecified,Science Group - Delivery Function,Unspecified,99856363,255.00,Council & Committee Honoraria
BEIS,UKRI - BBSRC,07/12/2022,Unspecified,Science Group - Delivery Function,Unspecified,99856364,345.00,Council & Committee Honoraria
BEIS,UKRI - BBSRC,07/12/2022,Unspecified,Science Group - Delivery Function,Unspecified,99856365,345.00,Council & Committee Honoraria
BEIS,UKRI - BBSRC,07/12/2022,Unspecified,Science Group - Delivery Function,Unspecified,99856366,255.00,Council & Committee Honoraria
BEIS,UKRI - BBSRC,07/12/2022,Unspecified,Science Group – Admin Function,Unspecified,99856367,170.00,Council & Committee Honoraria
BEIS,UKRI - BBSRC,07/12/2022,Unspecified,Science Group – Admin Function,Unspecified,99856368,170.00,Council & Committee Honoraria
BEIS,UKRI - BBSRC,07/12/2022,Unspecified,Science Group – Admin Function,Unspecified,99856369,170.00,Council & Committee Honoraria
BEIS,UKRI - BBSRC,08/12/2022,Institute Grant Expenditure,Research: Strategic National Capability,Rothamsted Research Ltd,99849236,50000.00,Institute Grant Expenditure
BEIS,UKRI - BBSRC,08/12/2022,Unspecified,FG - Estates,Womble Bond Dickinson LLP,99858130,1906.67,Legal & Professional Services
BEIS,UKRI - BBSRC,08/12/2022,T&S UK - Public Transport,CE - Chief Executive,Unspecified,99858273,32.00,T&S UK - Public Transport
BEIS,UKRI - BBSRC,08/12/2022,T&S UK - Public Transport,CE - Chief Executive,Unspecified,99858273,20.00,T&S UK - Public Transport
BEIS,UKRI - BBSRC,08/12/2022,T&S UK - Subsistence,CE - Chief Executive,Unspecified,99858273,10.25,T&S UK - Subsistence
BEIS,UKRI - BBSRC,08/12/2022,Health & Safety (inc. Medicals & Opticians),Science Group,Unspecified,99858274,100.00,Health & Safety (inc. Medicals & Opticians)
BEIS,UKRI - BBSRC,08/12/2022,T&S UK - Other Charges,Science Group,Unspecified,99858275,1.10,T&S UK - Other Charges
BEIS,UKRI - BBSRC,08/12/2022,T&S UK - Subsistence,Science Group,Unspecified,99858275,18.07,T&S UK - Subsistence
BEIS,UKRI - BBSRC,08/12/2022,T&S UK - Subsistence,Science Group,Unspecified,99858275,6.20,T&S UK - Subsistence
BEIS,UKRI - BBSRC,09/12/2022,Conferences & Seminars,CIMG - Director,Rothamsted Research Ltd,99847886,3095.34,Conferences & Seminars
BEIS,UKRI - BBSRC,09/12/2022,Conferences & Seminars,CIMG - Director,University of Edinburgh,99850921,4391.80,Conferences & Seminars
BEIS,UKRI - BBSRC,09/12/2022,Research Institutes - Capital Grants: Minor Works,Pirbright,The Pirbright Institute,99857854,4545.94,Research Institutes - Capital Grants: Minor Works
BEIS,UKRI - BBSRC,09/12/2022,Research Institutes - Capital Grants: Minor Works,Mid-Range Equipment,The Pirbright Institute,99857855,126000.00,Research Institutes - Capital Grants: Minor Works
BEIS,UKRI - BBSRC,09/12/2022,Research Institutes - Capital Grants: Minor Works,Mid-Range Equipment,The Pirbright Institute,99857856,24834.70,Research Institutes - Capital Grants: Minor Works
BEIS,UKRI - BBSRC,09/12/2022,Non-staff travel and subsistance,Science Group – Admin Function,Unspecified,99858357,86.40,Non-staff travel and subsistance
BEIS,UKRI - BBSRC,09/12/2022,Unspecified,Science Group – Admin Function,Unspecified,99858358,170.00,Council & Committee Honoraria
BEIS,UKRI - BBSRC,09/12/2022,Unspecified,Science Group – Admin Function,Unspecified,99858359,170.00,Council & Committee Honoraria
BEIS,UKRI - BBSRC,09/12/2022,Unspecified,Science Group - Delivery Function,Unspecified,99858360,345.00,Council & Committee Honoraria
BEIS,UKRI - BBSRC,09/12/2022,Unspecified,Science Group - Delivery Function,Unspecified,99858361,255.00,Council & Committee Honoraria
BEIS,UKRI - BBSRC,09/12/2022,Non-staff travel and subsistance,CE - CPS,Unspecified,99858362,41.89,Non-staff travel and subsistance
BEIS,UKRI - BBSRC,09/12/2022,Fees (Including College Members),CE - CPS,Unspecified,99858363,255.00,Fees (Including College Members)
BEIS,UKRI - BBSRC,09/12/2022,T&S UK - Public Transport,CE - Chief Executive,Unspecified,99858698,121.80,T&S UK - Public Transport
BEIS,UKRI - BBSRC,09/12/2022,T&S UK - Subsistence,CE - Chief Executive,Unspecified,99858698,18.15,T&S UK - Subsistence
BEIS,UKRI - BBSRC,09/12/2022,T&S UK - Subsistence,CE - Chief Executive,Unspecified,99858698,11.11,T&S UK - Subsistence
BEIS,UKRI - BBSRC,09/12/2022,Research Grant Expenditure,Impact & Knowledge Exchange,UKRI - Engineering & Physical Sciences Research Council,99859429,128144.75,Research Grant Expenditure
BEIS,UKRI - BBSRC,12/12/2022,Research Institutes - Capital Grants: Minor Works,Mid-Range Equipment,John Innes Centre,99822189,46532.91,Research Institutes - Capital Grants: Minor Works
BEIS,UKRI - BBSRC,12/12/2022,Research Institutes - Capital Grants: Minor Works,Mid-Range Equipment,John Innes Centre,99838505,44571.62,Research Institutes - Capital Grants: Minor Works
BEIS,UKRI - BBSRC,12/12/2022,Unspecified,FG - Estates,Womble Bond Dickinson LLP,99858132,1800.00,Legal & Professional Services
BEIS,UKRI - BBSRC,12/12/2022,T&S UK - Mileage,Science Group,Unspecified,99860303,37.80,T&S UK - Mileage
BEIS,UKRI - BBSRC,12/12/2022,T&S UK - Subsistence,Science Group,Unspecified,99860303,5.50,T&S UK - Subsistence
BEIS,UKRI - BBSRC,12/12/2022,T&S UK - Subsistence,Science Group,Unspecified,99860303,12.08,T&S UK - Subsistence
BEIS,UKRI - BBSRC,12/12/2022,T&S UK - Vehicle Hire,CIMG - Director,Unspecified,99860304,56.10,T&S UK - Vehicle Hire
BEIS,UKRI - BBSRC,13/12/2022,T&S UK - Public Transport,Innovation and Skills Group,Unspecified,99846499,45.00,T&S UK - Public Transport
BEIS,UKRI - BBSRC,13/12/2022,T&S UK - Subsistence,Innovation and Skills Group,Unspecified,99846499,28.24,T&S UK - Subsistence
BEIS,UKRI - BBSRC,13/12/2022,Unspecified,CE - Chief Executive,Unspecified,99861940,95.90,Council & Committee Honoraria
BEIS,UKRI - BBSRC,13/12/2022,Unspecified,Science Group – Admin Function,Unspecified,99861941,920.00,Council & Committee Honoraria
BEIS,UKRI - BBSRC,13/12/2022,Unspecified,Science Group – Admin Function,Unspecified,99861942,680.00,Council & Committee Honoraria
BEIS,UKRI - BBSRC,13/12/2022,Non-staff travel and subsistance,CE - CPS,Unspecified,99861943,138.29,Non-staff travel and subsistance
BEIS,UKRI - BBSRC,13/12/2022,Fees (Including College Members),CE - CPS,Unspecified,99861944,255.00,Fees (Including College Members)
BEIS,UKRI - BBSRC,13/12/2022,Other Staff Benefits,PDG - Director,UKRI - Engineering & Physical Sciences Research Council,99862886,70.00,Other Staff Benefits
BEIS,UKRI - BBSRC,13/12/2022,T&S UK - Accommodation,BBSRC Champions,Corporate Travel Management (North) Ltd,99862888,2.00,T&S UK - Accommodation
BEIS,UKRI - BBSRC,13/12/2022,T&S UK - Accommodation,BBSRC Champions,Corporate Travel Management (North) Ltd,99862888,198.00,T&S UK - Accommodation
BEIS,UKRI - BBSRC,13/12/2022,T&S UK - Accommodation,BBSRC Champions,Corporate Travel Management (North) Ltd,99862888,0.40,T&S UK - Accommodation
BEIS,UKRI - BBSRC,13/12/2022,T&S UK - Accommodation,CE - CPS,Corporate Travel Management (North) Ltd,99862888,0.80,T&S UK - Accommodation
BEIS,UKRI - BBSRC,13/12/2022,T&S UK - Accommodation,CE - CPS,Corporate Travel Management (North) Ltd,99862888,99.00,T&S UK - Accommodation
BEIS,UKRI - BBSRC,13/12/2022,T&S UK - Accommodation,CE - CPS,Corporate Travel Management (North) Ltd,99862888,0.16,T&S UK - Accommodation
BEIS,UKRI - BBSRC,13/12/2022,T&S UK - Accommodation,CE - Chief Executive,Corporate Travel Management (North) Ltd,99862888,0.80,T&S UK - Accommodation
BEIS,UKRI - BBSRC,13/12/2022,T&S UK - Accommodation,CE - Chief Executive,Corporate Travel Management (North) Ltd,99862888,87.29,T&S UK - Accommodation
BEIS,UKRI - BBSRC,13/12/2022,T&S UK - Accommodation,CE - Chief Executive,Corporate Travel Management (North) Ltd,99862888,0.80,T&S UK - Accommodation
BEIS,UKRI - BBSRC,13/12/2022,T&S UK - Accommodation,CE - Chief Executive,Corporate Travel Management (North) Ltd,99862888,0.80,T&S UK - Accommodation
BEIS,UKRI - BBSRC,13/12/2022,T&S UK - Accommodation,CE - Chief Executive,Corporate Travel Management (North) Ltd,99862888,0.80,T&S UK - Accommodation
BEIS,UKRI - BBSRC,13/12/2022,T&S UK - Accommodation,CE - Chief Executive,Corporate Travel Management (North) Ltd,99862888,215.70,T&S UK - Accommodation
BEIS,UKRI - BBSRC,13/12/2022,T&S UK - Accommodation,CE - Chief Executive,Corporate Travel Management (North) Ltd,99862888,0.80,T&S UK - Accommodation
BEIS,UKRI - BBSRC,13/12/2022,T&S UK - Accommodation,CE - Chief Executive,Corporate Travel Management (North) Ltd,99862888,203.35,T&S UK - Accommodation
BEIS,UKRI - BBSRC,13/12/2022,T&S UK - Accommodation,CE - Chief Executive,Corporate Travel Management (North) Ltd,99862888,2.00,T&S UK - Accommodation
BEIS,UKRI - BBSRC,13/12/2022,T&S UK - Accommodation,CE - Chief Executive,Corporate Travel Management (North) Ltd,99862888,0.80,T&S UK - Accommodation
BEIS,UKRI - BBSRC,13/12/2022,T&S UK - Accommodation,CE - Chief Executive,Corporate Travel Management (North) Ltd,99862888,2.00,T&S UK - Accommodation
BEIS,UKRI - BBSRC,13/12/2022,T&S UK - Accommodation,CE - Chief Executive,Corporate Travel Management (North) Ltd,99862888,1.76,T&S UK - Accommodation
BEIS,UKRI - BBSRC,13/12/2022,T&S UK - Accommodation,CIMG - Director,Corporate Travel Management (North) Ltd,99862888,0.80,T&S UK - Accommodation
BEIS,UKRI - BBSRC,13/12/2022,T&S UK - Accommodation,CIMG - Director,Corporate Travel Management (North) Ltd,99862888,0.80,T&S UK - Accommodation
BEIS,UKRI - BBSRC,13/12/2022,T&S UK - Accommodation,CIMG - Director,Corporate Travel Management (North) Ltd,99862888,0.32,T&S UK - Accommodation
BEIS,UKRI - BBSRC,13/12/2022,T&S UK - Accommodation,FG - Estates,Corporate Travel Management (North) Ltd,99862888,0.80,T&S UK - Accommodation
BEIS,UKRI - BBSRC,13/12/2022,T&S UK - Accommodation,FG - Estates,Corporate Travel Management (North) Ltd,99862888,85.00,T&S UK - Accommodation
BEIS,UKRI - BBSRC,13/12/2022,T&S UK - Accommodation,FG - Estates,Corporate Travel Management (North) Ltd,99862888,0.80,T&S UK - Accommodation
BEIS,UKRI - BBSRC,13/12/2022,T&S UK - Accommodation,FG - Estates,Corporate Travel Management (North) Ltd,99862888,114.00,T&S UK - Accommodation
BEIS,UKRI - BBSRC,13/12/2022,T&S UK - Accommodation,FG - Estates,Corporate Travel Management (North) Ltd,99862888,0.80,T&S UK - Accommodation
BEIS,UKRI - BBSRC,13/12/2022,T&S UK - Accommodation,FG - Estates,Corporate Travel Management (North) Ltd,99862888,0.48,T&S UK - Accommodation
BEIS,UKRI - BBSRC,13/12/2022,T&S UK - Accommodation,Innovation and Skills Group,Corporate Travel Management (North) Ltd,99862888,0.80,T&S UK - Accommodation
BEIS,UKRI - BBSRC,13/12/2022,T&S UK - Accommodation,Innovation and Skills Group,Corporate Travel Management (North) Ltd,99862888,99.00,T&S UK - Accommodation
BEIS,UKRI - BBSRC,13/12/2022,T&S UK - Accommodation,Innovation and Skills Group,Corporate Travel Management (North) Ltd,99862888,0.80,T&S UK - Accommodation
BEIS,UKRI - BBSRC,13/12/2022,T&S UK - Accommodation,Innovation and Skills Group,Corporate Travel Management (North) Ltd,99862888,100.70,T&S UK - Accommodation
BEIS,UKRI - BBSRC,13/12/2022,T&S UK - Accommodation,Innovation and Skills Group,Corporate Travel Management (North) Ltd,99862888,0.80,T&S UK - Accommodation
BEIS,UKRI - BBSRC,13/12/2022,T&S UK - Accommodation,Innovation and Skills Group,Corporate Travel Management (North) Ltd,99862888,74.29,T&S UK - Accommodation
BEIS,UKRI - BBSRC,13/12/2022,T&S UK - Accommodation,Innovation and Skills Group,Corporate Travel Management (North) Ltd,99862888,13.19,T&S UK - Accommodation
BEIS,UKRI - BBSRC,13/12/2022,T&S UK - Accommodation,Innovation and Skills Group,Corporate Travel Management (North) Ltd,99862888,2.50,T&S UK - Accommodation
BEIS,UKRI - BBSRC,13/12/2022,T&S UK - Accommodation,Innovation and Skills Group,Corporate Travel Management (North) Ltd,99862888,0.80,T&S UK - Accommodation
BEIS,UKRI - BBSRC,13/12/2022,T&S UK - Accommodation,Innovation and Skills Group,Corporate Travel Management (North) Ltd,99862888,99.00,T&S UK - Accommodation
BEIS,UKRI - BBSRC,13/12/2022,T&S UK - Accommodation,Innovation and Skills Group,Corporate Travel Management (North) Ltd,99862888,0.32,T&S UK - Accommodation
BEIS,UKRI - BBSRC,13/12/2022,T&S UK - Accommodation,Innovation and Skills Group,Corporate Travel Management (North) Ltd,99862888,0.82,T&S UK - Accommodation
BEIS,UKRI - BBSRC,13/12/2022,T&S UK - Accommodation,JBOS - Staff,Corporate Travel Management (North) Ltd,99862888,4.00,T&S UK - Accommodation
BEIS,UKRI - BBSRC,13/12/2022,T&S UK - Accommodation,JBOS - Staff,Corporate Travel Management (North) Ltd,99862888,437.00,T&S UK - Accommodation
BEIS,UKRI - BBSRC,13/12/2022,T&S UK - Accommodation,JBOS - Staff,Corporate Travel Management (North) Ltd,99862888,2.00,T&S UK - Accommodation
BEIS,UKRI - BBSRC,13/12/2022,T&S UK - Accommodation,JBOS - Staff,Corporate Travel Management (North) Ltd,99862888,1.20,T&S UK - Accommodation
BEIS,UKRI - BBSRC,13/12/2022,T&S UK - Accommodation,Science Group,Corporate Travel Management (North) Ltd,99862888,0.80,T&S UK - Accommodation
BEIS,UKRI - BBSRC,13/12/2022,T&S UK - Accommodation,Science Group,Corporate Travel Management (North) Ltd,99862888,74.29,T&S UK - Accommodation
BEIS,UKRI - BBSRC,13/12/2022,T&S UK - Accommodation,Science Group,Corporate Travel Management (North) Ltd,99862888,0.80,T&S UK - Accommodation
BEIS,UKRI - BBSRC,13/12/2022,T&S UK - Accommodation,Science Group,Corporate Travel Management (North) Ltd,99862888,82.00,T&S UK - Accommodation
BEIS,UKRI - BBSRC,13/12/2022,T&S UK - Accommodation,Science Group,Corporate Travel Management (North) Ltd,99862888,0.80,T&S UK - Accommodation
BEIS,UKRI - BBSRC,13/12/2022,T&S UK - Accommodation,Science Group,Corporate Travel Management (North) Ltd,99862888,87.29,T&S UK - Accommodation
BEIS,UKRI - BBSRC,13/12/2022,T&S UK - Accommodation,Science Group,Corporate Travel Management (North) Ltd,99862888,2.00,T&S UK - Accommodation
BEIS,UKRI - BBSRC,13/12/2022,T&S UK - Accommodation,Science Group,Corporate Travel Management (North) Ltd,99862888,178.00,T&S UK - Accommodation
BEIS,UKRI - BBSRC,13/12/2022,T&S UK - Accommodation,Science Group,Corporate Travel Management (North) Ltd,99862888,0.80,T&S UK - Accommodation
BEIS,UKRI - BBSRC,13/12/2022,T&S UK - Accommodation,Science Group,Corporate Travel Management (North) Ltd,99862888,87.29,T&S UK - Accommodation
BEIS,UKRI - BBSRC,13/12/2022,T&S UK - Accommodation,Science Group,Corporate Travel Management (North) Ltd,99862888,0.80,T&S UK - Accommodation
BEIS,UKRI - BBSRC,13/12/2022,T&S UK - Accommodation,Science Group,Corporate Travel Management (North) Ltd,99862888,99.00,T&S UK - Accommodation
BEIS,UKRI - BBSRC,13/12/2022,T&S UK - Accommodation,Science Group,Corporate Travel Management (North) Ltd,99862888,0.80,T&S UK - Accommodation
BEIS,UKRI - BBSRC,13/12/2022,T&S UK - Accommodation,Science Group,Corporate Travel Management (North) Ltd,99862888,74.29,T&S UK - Accommodation
BEIS,UKRI - BBSRC,13/12/2022,T&S UK - Accommodation,Science Group,Corporate Travel Management (North) Ltd,99862888,0.80,T&S UK - Accommodation
BEIS,UKRI - BBSRC,13/12/2022,T&S UK - Accommodation,Science Group,Corporate Travel Management (North) Ltd,99862888,74.29,T&S UK - Accommodation
BEIS,UKRI - BBSRC,13/12/2022,T&S UK - Accommodation,Science Group,Corporate Travel Management (North) Ltd,99862888,0.80,T&S UK - Accommodation
BEIS,UKRI - BBSRC,13/12/2022,T&S UK - Accommodation,Science Group,Corporate Travel Management (North) Ltd,99862888,74.29,T&S UK - Accommodation
BEIS,UKRI - BBSRC,13/12/2022,T&S UK - Accommodation,Science Group,Corporate Travel Management (North) Ltd,99862888,0.80,T&S UK - Accommodation
BEIS,UKRI - BBSRC,13/12/2022,T&S UK - Accommodation,Science Group,Corporate Travel Management (North) Ltd,99862888,74.29,T&S UK - Accommodation
BEIS,UKRI - BBSRC,13/12/2022,T&S UK - Accommodation,Science Group,Corporate Travel Management (North) Ltd,99862888,0.80,T&S UK - Accommodation
BEIS,UKRI - BBSRC,13/12/2022,T&S UK - Accommodation,Science Group,Corporate Travel Management (North) Ltd,99862888,129.50,T&S UK - Accommodation
BEIS,UKRI - BBSRC,13/12/2022,T&S UK - Accommodation,Science Group,Corporate Travel Management (North) Ltd,99862888,0.80,T&S UK - Accommodation
BEIS,UKRI - BBSRC,13/12/2022,T&S UK - Accommodation,Science Group,Corporate Travel Management (North) Ltd,99862888,147.86,T&S UK - Accommodation
BEIS,UKRI - BBSRC,13/12/2022,T&S UK - Accommodation,Science Group,Corporate Travel Management (North) Ltd,99862888,0.80,T&S UK - Accommodation
BEIS,UKRI - BBSRC,13/12/2022,T&S UK - Accommodation,Science Group,Corporate Travel Management (North) Ltd,99862888,591.44,T&S UK - Accommodation
BEIS,UKRI - BBSRC,13/12/2022,T&S UK - Accommodation,Science Group,Corporate Travel Management (North) Ltd,99862888,0.80,T&S UK - Accommodation
BEIS,UKRI - BBSRC,13/12/2022,T&S UK - Accommodation,Science Group,Corporate Travel Management (North) Ltd,99862888,390.00,T&S UK - Accommodation
BEIS,UKRI - BBSRC,13/12/2022,T&S UK - Accommodation,Science Group,Corporate Travel Management (North) Ltd,99862888,0.80,T&S UK - Accommodation
BEIS,UKRI - BBSRC,13/12/2022,T&S UK - Accommodation,Science Group,Corporate Travel Management (North) Ltd,99862888,0.80,T&S UK - Accommodation
BEIS,UKRI - BBSRC,13/12/2022,T&S UK - Accommodation,Science Group,Corporate Travel Management (North) Ltd,99862888,95.05,T&S UK - Accommodation
BEIS,UKRI - BBSRC,13/12/2022,T&S UK - Accommodation,Science Group,Corporate Travel Management (North) Ltd,99862888,0.80,T&S UK - Accommodation
BEIS,UKRI - BBSRC,13/12/2022,T&S UK - Accommodation,Science Group,Corporate Travel Management (North) Ltd,99862888,0.16,T&S UK - Accommodation
BEIS,UKRI - BBSRC,13/12/2022,T&S UK - Accommodation,Science Group,Corporate Travel Management (North) Ltd,99862888,2.80,T&S UK - Accommodation
BEIS,UKRI - BBSRC,13/12/2022,T&S UK - Accommodation,Science Group – Admin Function,Corporate Travel Management (North) Ltd,99862888,0.80,T&S UK - Accommodation
BEIS,UKRI - BBSRC,13/12/2022,T&S UK - Accommodation,Science Group – Admin Function,Corporate Travel Management (North) Ltd,99862888,116.85,T&S UK - Accommodation
BEIS,UKRI - BBSRC,13/12/2022,T&S UK - Accommodation,Science Group – Admin Function,Corporate Travel Management (North) Ltd,99862888,2.00,T&S UK - Accommodation
BEIS,UKRI - BBSRC,13/12/2022,T&S UK - Accommodation,Science Group – Admin Function,Corporate Travel Management (North) Ltd,99862888,224.25,T&S UK - Accommodation
BEIS,UKRI - BBSRC,13/12/2022,T&S UK - Accommodation,Science Group – Admin Function,Corporate Travel Management (North) Ltd,99862888,0.80,T&S UK - Accommodation
BEIS,UKRI - BBSRC,13/12/2022,T&S UK - Accommodation,Science Group – Admin Function,Corporate Travel Management (North) Ltd,99862888,0.40,T&S UK - Accommodation
BEIS,UKRI - BBSRC,13/12/2022,T&S UK - Accommodation,Science Group – Admin Function,Corporate Travel Management (North) Ltd,99862888,0.32,T&S UK - Accommodation
BEIS,UKRI - BBSRC,13/12/2022,T&S UK - Flights,Science Group – Admin Function,Corporate Travel Management (North) Ltd,99862888,2.50,T&S UK - Flights
BEIS,UKRI - BBSRC,13/12/2022,T&S UK - Flights,Science Group – Admin Function,Corporate Travel Management (North) Ltd,99862888,479.57,T&S UK - Flights
BEIS,UKRI - BBSRC,13/12/2022,T&S UK - Parking Tolls Congestion Charges,European Initiatives,Corporate Travel Management (North) Ltd,99862888,4.50,T&S UK - Parking Tolls Congestion Charges
BEIS,UKRI - BBSRC,13/12/2022,T&S UK - Parking Tolls Congestion Charges,European Initiatives,Corporate Travel Management (North) Ltd,99862888,59.99,T&S UK - Parking Tolls Congestion Charges
BEIS,UKRI - BBSRC,13/12/2022,T&S UK - Parking Tolls Congestion Charges,European Initiatives,Corporate Travel Management (North) Ltd,99862888,0.90,T&S UK - Parking Tolls Congestion Charges
BEIS,UKRI - BBSRC,13/12/2022,T&S UK - Parking Tolls Congestion Charges,Science Group,Corporate Travel Management (North) Ltd,99862888,4.50,T&S UK - Parking Tolls Congestion Charges
BEIS,UKRI - BBSRC,13/12/2022,T&S UK - Parking Tolls Congestion Charges,Science Group,Corporate Travel Management (North) Ltd,99862888,81.50,T&S UK - Parking Tolls Congestion Charges
BEIS,UKRI - BBSRC,13/12/2022,T&S UK - Parking Tolls Congestion Charges,Science Group,Corporate Travel Management (North) Ltd,99862888,0.90,T&S UK - Parking Tolls Congestion Charges
BEIS,UKRI - BBSRC,13/12/2022,T&S UK - Public Transport,CE - CPS,Corporate Travel Management (North) Ltd,99862888,0.25,T&S UK - Public Transport
BEIS,UKRI - BBSRC,13/12/2022,T&S UK - Public Transport,CE - CPS,Corporate Travel Management (North) Ltd,99862888,210.70,T&S UK - Public Transport
BEIS,UKRI - BBSRC,13/12/2022,T&S UK - Public Transport,CE - CPS,Corporate Travel Management (North) Ltd,99862888,0.25,T&S UK - Public Transport
BEIS,UKRI - BBSRC,13/12/2022,T&S UK - Public Transport,CE - CPS,Corporate Travel Management (North) Ltd,99862888,193.80,T&S UK - Public Transport
BEIS,UKRI - BBSRC,13/12/2022,T&S UK - Public Transport,CE - CPS,Corporate Travel Management (North) Ltd,99862888,0.25,T&S UK - Public Transport
BEIS,UKRI - BBSRC,13/12/2022,T&S UK - Public Transport,CE - CPS,Corporate Travel Management (North) Ltd,99862888,151.80,T&S UK - Public Transport
BEIS,UKRI - BBSRC,13/12/2022,T&S UK - Public Transport,CE - CPS,Corporate Travel Management (North) Ltd,99862888,0.25,T&S UK - Public Transport
BEIS,UKRI - BBSRC,13/12/2022,T&S UK - Public Transport,CE - CPS,Corporate Travel Management (North) Ltd,99862888,158.70,T&S UK - Public Transport
BEIS,UKRI - BBSRC,13/12/2022,T&S UK - Public Transport,CE - CPS,Corporate Travel Management (North) Ltd,99862888,0.25,T&S UK - Public Transport
BEIS,UKRI - BBSRC,13/12/2022,T&S UK - Public Transport,CE - CPS,Corporate Travel Management (North) Ltd,99862888,138.20,T&S UK - Public Transport
BEIS,UKRI - BBSRC,13/12/2022,T&S UK - Public Transport,CE - CPS,Corporate Travel Management (North) Ltd,99862888,10.00,T&S UK - Public Transport
BEIS,UKRI - BBSRC,13/12/2022,T&S UK - Public Transport,CE - CPS,Corporate Travel Management (North) Ltd,99862888,-27.00,T&S UK - Public Transport
BEIS,UKRI - BBSRC,13/12/2022,T&S UK - Public Transport,CE - Chief Executive,Corporate Travel Management (North) Ltd,99862888,0.25,T&S UK - Public Transport
BEIS,UKRI - BBSRC,13/12/2022,T&S UK - Public Transport,CE - Chief Executive,Corporate Travel Management (North) Ltd,99862888,112.30,T&S UK - Public Transport
BEIS,UKRI - BBSRC,13/12/2022,T&S UK - Public Transport,CE - Chief Executive,Corporate Travel Management (North) Ltd,99862888,0.25,T&S UK - Public Transport
BEIS,UKRI - BBSRC,13/12/2022,T&S UK - Public Transport,CE - Chief Executive,Corporate Travel Management (North) Ltd,99862888,132.20,T&S UK - Public Transport
BEIS,UKRI - BBSRC,13/12/2022,T&S UK - Public Transport,CE - Chief Executive,Corporate Travel Management (North) Ltd,99862888,0.25,T&S UK - Public Transport
BEIS,UKRI - BBSRC,13/12/2022,T&S UK - Public Transport,CE - Chief Executive,Corporate Travel Management (North) Ltd,99862888,98.20,T&S UK - Public Transport
BEIS,UKRI - BBSRC,13/12/2022,T&S UK - Public Transport,CE - Chief Executive,Corporate Travel Management (North) Ltd,99862888,5.00,T&S UK - Public Transport
BEIS,UKRI - BBSRC,13/12/2022,T&S UK - Public Transport,CE - Chief Executive,Corporate Travel Management (North) Ltd,99862888,-34.00,T&S UK - Public Transport
BEIS,UKRI - BBSRC,13/12/2022,T&S UK - Public Transport,CE - Chief Executive,Corporate Travel Management (North) Ltd,99862888,0.25,T&S UK - Public Transport
BEIS,UKRI - BBSRC,13/12/2022,T&S UK - Public Transport,CE - Chief Executive,Corporate Travel Management (North) Ltd,99862888,98.30,T&S UK - Public Transport
BEIS,UKRI - BBSRC,13/12/2022,T&S UK - Public Transport,CE - Chief Executive,Corporate Travel Management (North) Ltd,99862888,0.25,T&S UK - Public Transport
BEIS,UKRI - BBSRC,13/12/2022,T&S UK - Public Transport,CE - Chief Executive,Corporate Travel Management (North) Ltd,99862888,42.00,T&S UK - Public Transport
BEIS,UKRI - BBSRC,13/12/2022,T&S UK - Public Transport,CE - Chief Executive,Corporate Travel Management (North) Ltd,99862888,0.75,T&S UK - Public Transport
BEIS,UKRI - BBSRC,13/12/2022,T&S UK - Public Transport,CE - Chief Executive,Corporate Travel Management (North) Ltd,99862888,16.40,T&S UK - Public Transport
BEIS,UKRI - BBSRC,13/12/2022,T&S UK - Public Transport,CE - Chief Executive,Corporate Travel Management (North) Ltd,99862888,16.50,T&S UK - Public Transport
BEIS,UKRI - BBSRC,13/12/2022,T&S UK - Public Transport,CE - Chief Executive,Corporate Travel Management (North) Ltd,99862888,97.50,T&S UK - Public Transport
BEIS,UKRI - BBSRC,13/12/2022,T&S UK - Public Transport,CE - Chief Executive,Corporate Travel Management (North) Ltd,99862888,0.25,T&S UK - Public Transport
BEIS,UKRI - BBSRC,13/12/2022,T&S UK - Public Transport,CE - Chief Executive,Corporate Travel Management (North) Ltd,99862888,95.50,T&S UK - Public Transport
BEIS,UKRI - BBSRC,13/12/2022,T&S UK - Public Transport,CE - Chief Executive,Corporate Travel Management (North) Ltd,99862888,0.25,T&S UK - Public Transport
BEIS,UKRI - BBSRC,13/12/2022,T&S UK - Public Transport,CE - Chief Executive,Corporate Travel Management (North) Ltd,99862888,124.90,T&S UK - Public Transport
BEIS,UKRI - BBSRC,13/12/2022,T&S UK - Public Transport,CE - Chief Executive,Corporate Travel Management (North) Ltd,99862888,0.25,T&S UK - Public Transport
BEIS,UKRI - BBSRC,13/12/2022,T&S UK - Public Transport,CE - Chief Executive,Corporate Travel Management (North) Ltd,99862888,48.10,T&S UK - Public Transport
BEIS,UKRI - BBSRC,13/12/2022,T&S UK - Public Transport,CE - Chief Executive,Corporate Travel Management (North) Ltd,99862888,0.25,T&S UK - Public Transport
BEIS,UKRI - BBSRC,13/12/2022,T&S UK - Public Transport,CE - Chief Executive,Corporate Travel Management (North) Ltd,99862888,46.20,T&S UK - Public Transport
BEIS,UKRI - BBSRC,13/12/2022,T&S UK - Public Transport,CE - Chief Executive,Corporate Travel Management (North) Ltd,99862888,5.00,T&S UK - Public Transport
BEIS,UKRI - BBSRC,13/12/2022,T&S UK - Public Transport,CE - Chief Executive,Corporate Travel Management (North) Ltd,99862888,-190.00,T&S UK - Public Transport
BEIS,UKRI - BBSRC,13/12/2022,T&S UK - Public Transport,CE - Chief Executive,Corporate Travel Management (North) Ltd,99862888,0.25,T&S UK - Public Transport
BEIS,UKRI - BBSRC,13/12/2022,T&S UK - Public Transport,CE - Chief Executive,Corporate Travel Management (North) Ltd,99862888,132.20,T&S UK - Public Transport
BEIS,UKRI - BBSRC,13/12/2022,T&S UK - Public Transport,CE - Chief Executive,Corporate Travel Management (North) Ltd,99862888,0.25,T&S UK - Public Transport
BEIS,UKRI - BBSRC,13/12/2022,T&S UK - Public Transport,CE - Chief Executive,Corporate Travel Management (North) Ltd,99862888,37.00,T&S UK - Public Transport
BEIS,UKRI - BBSRC,13/12/2022,T&S UK - Public Transport,CE - Chief Executive,Corporate Travel Management (North) Ltd,99862888,5.00,T&S UK - Public Transport
BEIS,UKRI - BBSRC,13/12/2022,T&S UK - Public Transport,CE - Chief Executive,Corporate Travel Management (North) Ltd,99862888,-136.00,T&S UK - Public Transport
BEIS,UKRI - BBSRC,13/12/2022,T&S UK - Public Transport,CE - IRU,Corporate Travel Management (North) Ltd,99862888,5.00,T&S UK - Public Transport
BEIS,UKRI - BBSRC,13/12/2022,T&S UK - Public Transport,CE - IRU,Corporate Travel Management (North) Ltd,99862888,-72.30,T&S UK - Public Transport
BEIS,UKRI - BBSRC,13/12/2022,T&S UK - Public Transport,CE - IRU,Corporate Travel Management (North) Ltd,99862888,0.25,T&S UK - Public Transport
BEIS,UKRI - BBSRC,13/12/2022,T&S UK - Public Transport,CE - IRU,Corporate Travel Management (North) Ltd,99862888,180.80,T&S UK - Public Transport
BEIS,UKRI - BBSRC,13/12/2022,T&S UK - Public Transport,CE - IRU,Corporate Travel Management (North) Ltd,99862888,0.50,T&S UK - Public Transport
BEIS,UKRI - BBSRC,13/12/2022,T&S UK - Public Transport,CE - IRU,Corporate Travel Management (North) Ltd,99862888,20.30,T&S UK - Public Transport
BEIS,UKRI - BBSRC,13/12/2022,T&S UK - Public Transport,CE - IRU,Corporate Travel Management (North) Ltd,99862888,151.20,T&S UK - Public Transport
BEIS,UKRI - BBSRC,13/12/2022,T&S UK - Public Transport,CE - IRU,Corporate Travel Management (North) Ltd,99862888,0.25,T&S UK - Public Transport
BEIS,UKRI - BBSRC,13/12/2022,T&S UK - Public Transport,CE - IRU,Corporate Travel Management (North) Ltd,99862888,113.20,T&S UK - Public Transport
BEIS,UKRI - BBSRC,13/12/2022,T&S UK - Public Transport,CE - IRU,Corporate Travel Management (North) Ltd,99862888,2.60,T&S UK - Public Transport
BEIS,UKRI - BBSRC,13/12/2022,T&S UK - Public Transport,CE - IRU,Corporate Travel Management (North) Ltd,99862888,18.27,T&S UK - Public Transport
BEIS,UKRI - BBSRC,13/12/2022,T&S UK - Public Transport,CIMG - Director,Corporate Travel Management (North) Ltd,99862888,0.25,T&S UK - Public Transport
BEIS,UKRI - BBSRC,13/12/2022,T&S UK - Public Transport,CIMG - Director,Corporate Travel Management (North) Ltd,99862888,112.70,T&S UK - Public Transport
BEIS,UKRI - BBSRC,13/12/2022,T&S UK - Public Transport,CIMG - Director,Corporate Travel Management (North) Ltd,99862888,0.25,T&S UK - Public Transport
BEIS,UKRI - BBSRC,13/12/2022,T&S UK - Public Transport,CIMG - Director,Corporate Travel Management (North) Ltd,99862888,112.70,T&S UK - Public Transport
BEIS,UKRI - BBSRC,13/12/2022,T&S UK - Public Transport,European Initiatives,Corporate Travel Management (North) Ltd,99862888,2.60,T&S UK - Public Transport
BEIS,UKRI - BBSRC,13/12/2022,T&S UK - Public Transport,European Initiatives,Corporate Travel Management (North) Ltd,99862888,18.27,T&S UK - Public Transport
BEIS,UKRI - BBSRC,13/12/2022,T&S UK - Public Transport,Innovation and Skills Group,Corporate Travel Management (North) Ltd,99862888,0.25,T&S UK - Public Transport
BEIS,UKRI - BBSRC,13/12/2022,T&S UK - Public Transport,Innovation and Skills Group,Corporate Travel Management (North) Ltd,99862888,115.80,T&S UK - Public Transport
BEIS,UKRI - BBSRC,13/12/2022,T&S UK - Public Transport,Innovation and Skills Group,Corporate Travel Management (North) Ltd,99862888,0.25,T&S UK - Public Transport
BEIS,UKRI - BBSRC,13/12/2022,T&S UK - Public Transport,Innovation and Skills Group,Corporate Travel Management (North) Ltd,99862888,151.70,T&S UK - Public Transport
BEIS,UKRI - BBSRC,13/12/2022,T&S UK - Public Transport,Innovation and Skills Group,Corporate Travel Management (North) Ltd,99862888,0.25,T&S UK - Public Transport
BEIS,UKRI - BBSRC,13/12/2022,T&S UK - Public Transport,Innovation and Skills Group,Corporate Travel Management (North) Ltd,99862888,129.50,T&S UK - Public Transport
BEIS,UKRI - BBSRC,13/12/2022,T&S UK - Public Transport,Innovation and Skills Group,Corporate Travel Management (North) Ltd,99862888,0.25,T&S UK - Public Transport
BEIS,UKRI - BBSRC,13/12/2022,T&S UK - Public Transport,Innovation and Skills Group,Corporate Travel Management (North) Ltd,99862888,133.30,T&S UK - Public Transport
BEIS,UKRI - BBSRC,13/12/2022,T&S UK - Public Transport,Innovation and Skills Group,Corporate Travel Management (North) Ltd,99862888,0.25,T&S UK - Public Transport
BEIS,UKRI - BBSRC,13/12/2022,T&S UK - Public Transport,Innovation and Skills Group,Corporate Travel Management (North) Ltd,99862888,140.00,T&S UK - Public Transport
BEIS,UKRI - BBSRC,13/12/2022,T&S UK - Public Transport,Innovation and Skills Group,Corporate Travel Management (North) Ltd,99862888,0.25,T&S UK - Public Transport
BEIS,UKRI - BBSRC,13/12/2022,T&S UK - Public Transport,Innovation and Skills Group,Corporate Travel Management (North) Ltd,99862888,180.20,T&S UK - Public Transport
BEIS,UKRI - BBSRC,13/12/2022,T&S UK - Public Transport,Innovation and Skills Group,Corporate Travel Management (North) Ltd,99862888,5.00,T&S UK - Public Transport
BEIS,UKRI - BBSRC,13/12/2022,T&S UK - Public Transport,Innovation and Skills Group,Corporate Travel Management (North) Ltd,99862888,-53.10,T&S UK - Public Transport
BEIS,UKRI - BBSRC,13/12/2022,T&S UK - Public Transport,Innovation and Skills Group,Corporate Travel Management (North) Ltd,99862888,0.25,T&S UK - Public Transport
BEIS,UKRI - BBSRC,13/12/2022,T&S UK - Public Transport,Innovation and Skills Group,Corporate Travel Management (North) Ltd,99862888,36.20,T&S UK - Public Transport
BEIS,UKRI - BBSRC,13/12/2022,T&S UK - Public Transport,Innovation and Skills Group,Corporate Travel Management (North) Ltd,99862888,0.25,T&S UK - Public Transport
BEIS,UKRI - BBSRC,13/12/2022,T&S UK - Public Transport,Innovation and Skills Group,Corporate Travel Management (North) Ltd,99862888,193.80,T&S UK - Public Transport
BEIS,UKRI - BBSRC,13/12/2022,T&S UK - Public Transport,Innovation and Skills Group,Corporate Travel Management (North) Ltd,99862888,0.25,T&S UK - Public Transport
BEIS,UKRI - BBSRC,13/12/2022,T&S UK - Public Transport,Innovation and Skills Group,Corporate Travel Management (North) Ltd,99862888,127.90,T&S UK - Public Transport
BEIS,UKRI - BBSRC,13/12/2022,T&S UK - Public Transport,Innovation and Skills Group,Corporate Travel Management (North) Ltd,99862888,0.25,T&S UK - Public Transport
BEIS,UKRI - BBSRC,13/12/2022,T&S UK - Public Transport,Innovation and Skills Group,Corporate Travel Management (North) Ltd,99862888,157.20,T&S UK - Public Transport
BEIS,UKRI - BBSRC,13/12/2022,T&S UK - Public Transport,Innovation and Skills Group,Corporate Travel Management (North) Ltd,99862888,0.25,T&S UK - Public Transport
BEIS,UKRI - BBSRC,13/12/2022,T&S UK - Public Transport,Innovation and Skills Group,Corporate Travel Management (North) Ltd,99862888,30.50,T&S UK - Public Transport
BEIS,UKRI - BBSRC,13/12/2022,T&S UK - Public Transport,Innovation and Skills Group,Corporate Travel Management (North) Ltd,99862888,0.25,T&S UK - Public Transport
BEIS,UKRI - BBSRC,13/12/2022,T&S UK - Public Transport,Innovation and Skills Group,Corporate Travel Management (North) Ltd,99862888,167.60,T&S UK - Public Transport
BEIS,UKRI - BBSRC,13/12/2022,T&S UK - Public Transport,Innovation and Skills Group,Corporate Travel Management (North) Ltd,99862888,0.50,T&S UK - Public Transport
BEIS,UKRI - BBSRC,13/12/2022,T&S UK - Public Transport,Innovation and Skills Group,Corporate Travel Management (North) Ltd,99862888,127.30,T&S UK - Public Transport
BEIS,UKRI - BBSRC,13/12/2022,T&S UK - Public Transport,Innovation and Skills Group,Corporate Travel Management (North) Ltd,99862888,14.40,T&S UK - Public Transport
BEIS,UKRI - BBSRC,13/12/2022,T&S UK - Public Transport,Innovation and Skills Group,Corporate Travel Management (North) Ltd,99862888,0.25,T&S UK - Public Transport
BEIS,UKRI - BBSRC,13/12/2022,T&S UK - Public Transport,Innovation and Skills Group,Corporate Travel Management (North) Ltd,99862888,175.50,T&S UK - Public Transport
BEIS,UKRI - BBSRC,13/12/2022,T&S UK - Public Transport,Innovation and Skills Group,Corporate Travel Management (North) Ltd,99862888,0.25,T&S UK - Public Transport
BEIS,UKRI - BBSRC,13/12/2022,T&S UK - Public Transport,Innovation and Skills Group,Corporate Travel Management (North) Ltd,99862888,71.20,T&S UK - Public Transport
BEIS,UKRI - BBSRC,13/12/2022,T&S UK - Public Transport,Innovation and Skills Group,Corporate Travel Management (North) Ltd,99862888,5.00,T&S UK - Public Transport
BEIS,UKRI - BBSRC,13/12/2022,T&S UK - Public Transport,Innovation and Skills Group,Corporate Travel Management (North) Ltd,99862888,-48.50,T&S UK - Public Transport
BEIS,UKRI - BBSRC,13/12/2022,T&S UK - Public Transport,Innovation and Skills Group,Corporate Travel Management (North) Ltd,99862888,5.00,T&S UK - Public Transport
BEIS,UKRI - BBSRC,13/12/2022,T&S UK - Public Transport,Innovation and Skills Group,Corporate Travel Management (North) Ltd,99862888,21.49,T&S UK - Public Transport
BEIS,UKRI - BBSRC,13/12/2022,T&S UK - Public Transport,Innovation and Skills Group,Corporate Travel Management (North) Ltd,99862888,32.86,T&S UK - Public Transport
BEIS,UKRI - BBSRC,13/12/2022,T&S UK - Public Transport,Innovation and Skills Group,Corporate Travel Management (North) Ltd,99862888,0.25,T&S UK - Public Transport
BEIS,UKRI - BBSRC,13/12/2022,T&S UK - Public Transport,Innovation and Skills Group,Corporate Travel Management (North) Ltd,99862888,59.10,T&S UK - Public Transport
BEIS,UKRI - BBSRC,13/12/2022,T&S UK - Public Transport,Innovation and Skills Group,Corporate Travel Management (North) Ltd,99862888,0.25,T&S UK - Public Transport
BEIS,UKRI - BBSRC,13/12/2022,T&S UK - Public Transport,Innovation and Skills Group,Corporate Travel Management (North) Ltd,99862888,182.00,T&S UK - Public Transport
BEIS,UKRI - BBSRC,13/12/2022,T&S UK - Public Transport,Innovation and Skills Group,Corporate Travel Management (North) Ltd,99862888,0.25,T&S UK - Public Transport
BEIS,UKRI - BBSRC,13/12/2022,T&S UK - Public Transport,Innovation and Skills Group,Corporate Travel Management (North) Ltd,99862888,244.80,T&S UK - Public Transport
BEIS,UKRI - BBSRC,13/12/2022,T&S UK - Public Transport,Innovation and Skills Group,Corporate Travel Management (North) Ltd,99862888,0.25,T&S UK - Public Transport
BEIS,UKRI - BBSRC,13/12/2022,T&S UK - Public Transport,Innovation and Skills Group,Corporate Travel Management (North) Ltd,99862888,133.70,T&S UK - Public Transport
BEIS,UKRI - BBSRC,13/12/2022,T&S UK - Public Transport,Innovation and Skills Group,Corporate Travel Management (North) Ltd,99862888,0.50,T&S UK - Public Transport
BEIS,UKRI - BBSRC,13/12/2022,T&S UK - Public Transport,Innovation and Skills Group,Corporate Travel Management (North) Ltd,99862888,34.60,T&S UK - Public Transport
BEIS,UKRI - BBSRC,13/12/2022,T&S UK - Public Transport,Innovation and Skills Group,Corporate Travel Management (North) Ltd,99862888,30.60,T&S UK - Public Transport
BEIS,UKRI - BBSRC,13/12/2022,T&S UK - Public Transport,Innovation and Skills Group,Corporate Travel Management (North) Ltd,99862888,0.25,T&S UK - Public Transport
BEIS,UKRI - BBSRC,13/12/2022,T&S UK - Public Transport,Innovation and Skills Group,Corporate Travel Management (North) Ltd,99862888,100.30,T&S UK - Public Transport
BEIS,UKRI - BBSRC,13/12/2022,T&S UK - Public Transport,Innovation and Skills Group,Corporate Travel Management (North) Ltd,99862888,0.25,T&S UK - Public Transport
BEIS,UKRI - BBSRC,13/12/2022,T&S UK - Public Transport,Innovation and Skills Group,Corporate Travel Management (North) Ltd,99862888,79.70,T&S UK - Public Transport
BEIS,UKRI - BBSRC,13/12/2022,T&S UK - Public Transport,Innovation and Skills Group,Corporate Travel Management (North) Ltd,99862888,0.50,T&S UK - Public Transport
BEIS,UKRI - BBSRC,13/12/2022,T&S UK - Public Transport,Innovation and Skills Group,Corporate Travel Management (North) Ltd,99862888,50.30,T&S UK - Public Transport
BEIS,UKRI - BBSRC,13/12/2022,T&S UK - Public Transport,Innovation and Skills Group,Corporate Travel Management (North) Ltd,99862888,14.80,T&S UK - Public Transport
BEIS,UKRI - BBSRC,13/12/2022,T&S UK - Public Transport,Innovation and Skills Group,Corporate Travel Management (North) Ltd,99862888,0.25,T&S UK - Public Transport
BEIS,UKRI - BBSRC,13/12/2022,T&S UK - Public Transport,Innovation and Skills Group,Corporate Travel Management (North) Ltd,99862888,89.50,T&S UK - Public Transport
BEIS,UKRI - BBSRC,13/12/2022,T&S UK - Public Transport,Innovation and Skills Group,Corporate Travel Management (North) Ltd,99862888,5.00,T&S UK - Public Transport
BEIS,UKRI - BBSRC,13/12/2022,T&S UK - Public Transport,Innovation and Skills Group,Corporate Travel Management (North) Ltd,99862888,-41.40,T&S UK - Public Transport
BEIS,UKRI - BBSRC,13/12/2022,T&S UK - Public Transport,Innovation and Skills Group,Corporate Travel Management (North) Ltd,99862888,0.25,T&S UK - Public Transport
BEIS,UKRI - BBSRC,13/12/2022,T&S UK - Public Transport,Innovation and Skills Group,Corporate Travel Management (North) Ltd,99862888,38.00,T&S UK - Public Transport
BEIS,UKRI - BBSRC,13/12/2022,T&S UK - Public Transport,Innovation and Skills Group,Corporate Travel Management (North) Ltd,99862888,0.25,T&S UK - Public Transport
BEIS,UKRI - BBSRC,13/12/2022,T&S UK - Public Transport,Innovation and Skills Group,Corporate Travel Management (North) Ltd,99862888,159.60,T&S UK - Public Transport
BEIS,UKRI - BBSRC,13/12/2022,T&S UK - Public Transport,Innovation and Skills Group,Corporate Travel Management (North) Ltd,99862888,0.25,T&S UK - Public Transport
BEIS,UKRI - BBSRC,13/12/2022,T&S UK - Public Transport,Innovation and Skills Group,Corporate Travel Management (North) Ltd,99862888,63.10,T&S UK - Public Transport
BEIS,UKRI - BBSRC,13/12/2022,T&S UK - Public Transport,Innovation and Skills Group,Corporate Travel Management (North) Ltd,99862888,0.25,T&S UK - Public Transport
BEIS,UKRI - BBSRC,13/12/2022,T&S UK - Public Transport,Innovation and Skills Group,Corporate Travel Management (North) Ltd,99862888,204.50,T&S UK - Public Transport
BEIS,UKRI - BBSRC,13/12/2022,T&S UK - Public Transport,Innovation and Skills Group,Corporate Travel Management (North) Ltd,99862888,0.25,T&S UK - Public Transport
BEIS,UKRI - BBSRC,13/12/2022,T&S UK - Public Transport,Innovation and Skills Group,Corporate Travel Management (North) Ltd,99862888,68.60,T&S UK - Public Transport
BEIS,UKRI - BBSRC,13/12/2022,T&S UK - Public Transport,Innovation and Skills Group,Corporate Travel Management (North) Ltd,99862888,0.25,T&S UK - Public Transport
BEIS,UKRI - BBSRC,13/12/2022,T&S UK - Public Transport,Innovation and Skills Group,Corporate Travel Management (North) Ltd,99862888,119.90,T&S UK - Public Transport
BEIS,UKRI - BBSRC,13/12/2022,T&S UK - Public Transport,Innovation and Skills Group,Corporate Travel Management (North) Ltd,99862888,0.25,T&S UK - Public Transport
BEIS,UKRI - BBSRC,13/12/2022,T&S UK - Public Transport,Innovation and Skills Group,Corporate Travel Management (North) Ltd,99862888,193.80,T&S UK - Public Transport
BEIS,UKRI - BBSRC,13/12/2022,T&S UK - Public Transport,Innovation and Skills Group,Corporate Travel Management (North) Ltd,99862888,0.25,T&S UK - Public Transport
BEIS,UKRI - BBSRC,13/12/2022,T&S UK - Public Transport,Innovation and Skills Group,Corporate Travel Management (North) Ltd,99862888,239.70,T&S UK - Public Transport
BEIS,UKRI - BBSRC,13/12/2022,T&S UK - Public Transport,Innovation and Skills Group,Corporate Travel Management (North) Ltd,99862888,0.25,T&S UK - Public Transport
BEIS,UKRI - BBSRC,13/12/2022,T&S UK - Public Transport,Innovation and Skills Group,Corporate Travel Management (North) Ltd,99862888,44.00,T&S UK - Public Transport
BEIS,UKRI - BBSRC,13/12/2022,T&S UK - Public Transport,Innovation and Skills Group,Corporate Travel Management (North) Ltd,99862888,1.00,T&S UK - Public Transport
BEIS,UKRI - BBSRC,13/12/2022,T&S UK - Public Transport,Science Group,Corporate Travel Management (North) Ltd,99862888,0.50,T&S UK - Public Transport
BEIS,UKRI - BBSRC,13/12/2022,T&S UK - Public Transport,Science Group,Corporate Travel Management (North) Ltd,99862888,31.90,T&S UK - Public Transport
BEIS,UKRI - BBSRC,13/12/2022,T&S UK - Public Transport,Science Group,Corporate Travel Management (North) Ltd,99862888,87.90,T&S UK - Public Transport
BEIS,UKRI - BBSRC,13/12/2022,T&S UK - Public Transport,Science Group,Corporate Travel Management (North) Ltd,99862888,0.75,T&S UK - Public Transport
BEIS,UKRI - BBSRC,13/12/2022,T&S UK - Public Transport,Science Group,Corporate Travel Management (North) Ltd,99862888,48.40,T&S UK - Public Transport
BEIS,UKRI - BBSRC,13/12/2022,T&S UK - Public Transport,Science Group,Corporate Travel Management (North) Ltd,99862888,90.40,T&S UK - Public Transport
BEIS,UKRI - BBSRC,13/12/2022,T&S UK - Public Transport,Science Group,Corporate Travel Management (North) Ltd,99862888,90.40,T&S UK - Public Transport
BEIS,UKRI - BBSRC,13/12/2022,T&S UK - Public Transport,Science Group,Corporate Travel Management (North) Ltd,99862888,0.25,T&S UK - Public Transport
BEIS,UKRI - BBSRC,13/12/2022,T&S UK - Public Transport,Science Group,Corporate Travel Management (North) Ltd,99862888,228.40,T&S UK - Public Transport
BEIS,UKRI - BBSRC,13/12/2022,T&S UK - Public Transport,Science Group,Corporate Travel Management (North) Ltd,99862888,-2.30,T&S UK - Public Transport
BEIS,UKRI - BBSRC,13/12/2022,T&S UK - Public Transport,Science Group,Corporate Travel Management (North) Ltd,99862888,5.00,T&S UK - Public Transport
BEIS,UKRI - BBSRC,13/12/2022,T&S UK - Public Transport,Science Group,Corporate Travel Management (North) Ltd,99862888,-73.60,T&S UK - Public Transport
BEIS,UKRI - BBSRC,13/12/2022,T&S UK - Public Transport,Science Group,Corporate Travel Management (North) Ltd,99862888,0.25,T&S UK - Public Transport
BEIS,UKRI - BBSRC,13/12/2022,T&S UK - Public Transport,Science Group,Corporate Travel Management (North) Ltd,99862888,99.20,T&S UK - Public Transport
BEIS,UKRI - BBSRC,13/12/2022,T&S UK - Public Transport,Science Group,Corporate Travel Management (North) Ltd,99862888,0.25,T&S UK - Public Transport
BEIS,UKRI - BBSRC,13/12/2022,T&S UK - Public Transport,Science Group,Corporate Travel Management (North) Ltd,99862888,271.00,T&S UK - Public Transport
BEIS,UKRI - BBSRC,13/12/2022,T&S UK - Public Transport,Science Group,Corporate Travel Management (North) Ltd,99862888,0.25,T&S UK - Public Transport
BEIS,UKRI - BBSRC,13/12/2022,T&S UK - Public Transport,Science Group,Corporate Travel Management (North) Ltd,99862888,79.00,T&S UK - Public Transport
BEIS,UKRI - BBSRC,13/12/2022,T&S UK - Public Transport,Science Group,Corporate Travel Management (North) Ltd,99862888,5.00,T&S UK - Public Transport
BEIS,UKRI - BBSRC,13/12/2022,T&S UK - Public Transport,Science Group,Corporate Travel Management (North) Ltd,99862888,-124.50,T&S UK - Public Transport
BEIS,UKRI - BBSRC,13/12/2022,T&S UK - Public Transport,Science Group,Corporate Travel Management (North) Ltd,99862888,0.50,T&S UK - Public Transport
BEIS,UKRI - BBSRC,13/12/2022,T&S UK - Public Transport,Science Group,Corporate Travel Management (North) Ltd,99862888,9.00,T&S UK - Public Transport
BEIS,UKRI - BBSRC,13/12/2022,T&S UK - Public Transport,Science Group,Corporate Travel Management (North) Ltd,99862888,9.30,T&S UK - Public Transport
BEIS,UKRI - BBSRC,13/12/2022,T&S UK - Public Transport,Science Group,Corporate Travel Management (North) Ltd,99862888,0.25,T&S UK - Public Transport
BEIS,UKRI - BBSRC,13/12/2022,T&S UK - Public Transport,Science Group,Corporate Travel Management (North) Ltd,99862888,124.80,T&S UK - Public Transport
BEIS,UKRI - BBSRC,13/12/2022,T&S UK - Public Transport,Science Group,Corporate Travel Management (North) Ltd,99862888,0.25,T&S UK - Public Transport
BEIS,UKRI - BBSRC,13/12/2022,T&S UK - Public Transport,Science Group,Corporate Travel Management (North) Ltd,99862888,72.90,T&S UK - Public Transport
BEIS,UKRI - BBSRC,13/12/2022,T&S UK - Public Transport,Science Group,Corporate Travel Management (North) Ltd,99862888,0.25,T&S UK - Public Transport
BEIS,UKRI - BBSRC,13/12/2022,T&S UK - Public Transport,Science Group,Corporate Travel Management (North) Ltd,99862888,60.70,T&S UK - Public Transport
BEIS,UKRI - BBSRC,13/12/2022,T&S UK - Public Transport,Science Group,Corporate Travel Management (North) Ltd,99862888,0.25,T&S UK - Public Transport
BEIS,UKRI - BBSRC,13/12/2022,T&S UK - Public Transport,Science Group,Corporate Travel Management (North) Ltd,99862888,38.60,T&S UK - Public Transport
BEIS,UKRI - BBSRC,13/12/2022,T&S UK - Public Transport,Science Group,Corporate Travel Management (North) Ltd,99862888,0.25,T&S UK - Public Transport
BEIS,UKRI - BBSRC,13/12/2022,T&S UK - Public Transport,Science Group,Corporate Travel Management (North) Ltd,99862888,185.55,T&S UK - Public Transport
BEIS,UKRI - BBSRC,13/12/2022,T&S UK - Public Transport,Science Group,Corporate Travel Management (North) Ltd,99862888,0.25,T&S UK - Public Transport
BEIS,UKRI - BBSRC,13/12/2022,T&S UK - Public Transport,Science Group,Corporate Travel Management (North) Ltd,99862888,185.55,T&S UK - Public Transport
BEIS,UKRI - BBSRC,13/12/2022,T&S UK - Public Transport,Science Group,Corporate Travel Management (North) Ltd,99862888,5.00,T&S UK - Public Transport
BEIS,UKRI - BBSRC,13/12/2022,T&S UK - Public Transport,Science Group,Corporate Travel Management (North) Ltd,99862888,-54.70,T&S UK - Public Transport
BEIS,UKRI - BBSRC,13/12/2022,T&S UK - Public Transport,Science Group,Corporate Travel Management (North) Ltd,99862888,0.25,T&S UK - Public Transport
BEIS,UKRI - BBSRC,13/12/2022,T&S UK - Public Transport,Science Group,Corporate Travel Management (North) Ltd,99862888,113.20,T&S UK - Public Transport
BEIS,UKRI - BBSRC,13/12/2022,T&S UK - Public Transport,Science Group,Corporate Travel Management (North) Ltd,99862888,0.25,T&S UK - Public Transport
BEIS,UKRI - BBSRC,13/12/2022,T&S UK - Public Transport,Science Group,Corporate Travel Management (North) Ltd,99862888,72.90,T&S UK - Public Transport
BEIS,UKRI - BBSRC,13/12/2022,T&S UK - Public Transport,Science Group,Corporate Travel Management (North) Ltd,99862888,0.25,T&S UK - Public Transport
BEIS,UKRI - BBSRC,13/12/2022,T&S UK - Public Transport,Science Group,Corporate Travel Management (North) Ltd,99862888,164.10,T&S UK - Public Transport
BEIS,UKRI - BBSRC,13/12/2022,T&S UK - Public Transport,Science Group,Corporate Travel Management (North) Ltd,99862888,0.25,T&S UK - Public Transport
BEIS,UKRI - BBSRC,13/12/2022,T&S UK - Public Transport,Science Group,Corporate Travel Management (North) Ltd,99862888,133.20,T&S UK - Public Transport
BEIS,UKRI - BBSRC,13/12/2022,T&S UK - Public Transport,Science Group,Corporate Travel Management (North) Ltd,99862888,0.25,T&S UK - Public Transport
BEIS,UKRI - BBSRC,13/12/2022,T&S UK - Public Transport,Science Group,Corporate Travel Management (North) Ltd,99862888,53.50,T&S UK - Public Transport
BEIS,UKRI - BBSRC,13/12/2022,T&S UK - Public Transport,Science Group,Corporate Travel Management (North) Ltd,99862888,0.25,T&S UK - Public Transport
BEIS,UKRI - BBSRC,13/12/2022,T&S UK - Public Transport,Science Group,Corporate Travel Management (North) Ltd,99862888,50.70,T&S UK - Public Transport
BEIS,UKRI - BBSRC,13/12/2022,T&S UK - Public Transport,Science Group,Corporate Travel Management (North) Ltd,99862888,0.25,T&S UK - Public Transport
BEIS,UKRI - BBSRC,13/12/2022,T&S UK - Public Transport,Science Group,Corporate Travel Management (North) Ltd,99862888,108.00,T&S UK - Public Transport
BEIS,UKRI - BBSRC,13/12/2022,T&S UK - Public Transport,Science Group,Corporate Travel Management (North) Ltd,99862888,0.25,T&S UK - Public Transport
BEIS,UKRI - BBSRC,13/12/2022,T&S UK - Public Transport,Science Group,Corporate Travel Management (North) Ltd,99862888,104.50,T&S UK - Public Transport
BEIS,UKRI - BBSRC,13/12/2022,T&S UK - Public Transport,Science Group,Corporate Travel Management (North) Ltd,99862888,0.25,T&S UK - Public Transport
BEIS,UKRI - BBSRC,13/12/2022,T&S UK - Public Transport,Science Group,Corporate Travel Management (North) Ltd,99862888,53.50,T&S UK - Public Transport
BEIS,UKRI - BBSRC,13/12/2022,T&S UK - Public Transport,Science Group,Corporate Travel Management (North) Ltd,99862888,0.50,T&S UK - Public Transport
BEIS,UKRI - BBSRC,13/12/2022,T&S UK - Public Transport,Science Group,Corporate Travel Management (North) Ltd,99862888,17.20,T&S UK - Public Transport
BEIS,UKRI - BBSRC,13/12/2022,T&S UK - Public Transport,Science Group,Corporate Travel Management (North) Ltd,99862888,14.20,T&S UK - Public Transport
